Workbook

Sheet 1 - CSS INPUT
A1: U.S. EPA Combined Sewer Overflow Model for Small Communities. CSS Data Input, Page 1. This page is intended as a total system overview, describing attributes that apply to the entire combined sewer system. Attributes of individual combined sewer overflows will be entered on subsequent pages. Data input cells are identified as such along with a description of the data to be entered. Some data input cells are optional and some are required for the model to function. Those that are required for the model to function are identified as such. There are 15 lines of input required on this page, organized in column E from cell E6 down to cell E20. Each line is prefixed by an item number in column C and an line letter in column D for a unique identification. For example, the first required input is the combined sewer system community name, to be entered in line 1a. The tab key can be used to navigate sequentially through the required inputs.
C3: U.S. EPA Combined Sewer Overflow Model for Small Communities
C4: CSS DATA INPUT, Page 1
C5: GENERAL INFORMATION
C6: 1. Community Information | D6: a. Community Name
C7: 1. Community Information | D7: b. NPDES Permit Number
C8: 1. Community Information | D8: c. Date
C9: 1. Community Information | D9: d. Name of entity that owns and operates your facility
C10: 1. Community Information | D10: e. Facility name
C11: 1. Community Information | D11: f. Street address
C12: 1. Community Information | D12: g. City, state, and ZIP code
C13: 1. Community Information | D13: h. Telephone number
C14: 1. Community Information | D14: i. Fax number
C15: 1. Community Information | D15: j. Email address
C16: 2. System Type | D16: a. Does the CSS have a WWTP? (yes or no) | H16: Yes
C17: 3. CSS Information | D17: a. Area of CSS (acres).* | H17: No
C18: 3. CSS Information | D18: b. Number of CSO outfalls.*
C19: 4. WWTP | D19: a. Primary treatment capacity (MGD).
C20: 4.WWTP | D20: b. Secondary treatment capacity (MGD).

Sheet 2 - CSO INPUT
A1: U.S. EPA Combined Sewer Overflow Model for Small Communities. CSO Data Input, Page 2. Information describing individual CSOs is entered on this page. The page is structured similar to page 1, with the main difference being the ability to enter data for up to 28 individual CSOs instead of 1 CSS. Data input cells are oriented from top to bottom with respect to individual line items, and left to right with respect to CSO number. Each line is prefixed by an item number in column C and a line letter in column D for a unique identification. The item number is continued sequentially from page 1. For example, the first line on this page is Line 5 a. Data input cells are identified as such along with a description of the data to be entered. Some data input cells are optional and some are required for the model to function. Those that are required for the model to function are identified as such. For specific instruction and recommendations on how to obtain certain data inputs, see the accompanying CSO Model User Guide. There are 10 lines of input required on this page for up to 28 individual CSOs. Data input starts in column E for CSO 001 and extends to column AR for CSO 028. Information for as few as 1 CSO can be entered, and the remaining columns can be left blank. Due to print formatting requirements, there are periodic gaps in column lettering to allow information for the 28 CSOs to be distributed over 4 separate pages. The column gaps are locked and cannot be accessed to allow for continuous navigation from left to right, from CSO 001 to CSO 028. The tab key can be used to navigate sequentially through the required inputs.
C3: U.S. EPA Combined Sewer Overflow Model for Small Communities | K3: blank | L3: U.S. EPA Combined Sewer Overflow Model for Small Communities | X3: U.S. EPA Combined Sewer Overflow Model for Small Communities | AJ3: U.S. EPA Combined Sewer Overflow Model for Small Communities
C4: CSO DATA INPUT, Page 2 | K4: blank | L4: CSO DATA INPUT, Page 2, Extension 1 | X4: CSO DATA INPUT, Page 2, Extension 2 | AJ4: CSO DATA INPUT, Page 2, Extension 3
C5: Community name: | D5: ='1 - CSS INPUT'!E6 -> 0 | K5: blank | L5: Community name: | M5: ='1 - CSS INPUT'!E6 -> 0 | X5: Community name: | Y5: ='1 - CSS INPUT'!E6 -> 0 | AJ5: Community name: | AK5: ='1 - CSS INPUT'!E6 -> 0
C6: NPDES number: | D6: ='1 - CSS INPUT'!E7 -> 0 | K6: blank | L6: NPDES number: | M6: ='1 - CSS INPUT'!E7 -> 0 | X6: NPDES number: | Y6: ='1 - CSS INPUT'!E7 -> 0 | AJ6: NPDES number: | AK6: ='1 - CSS INPUT'!E7 -> 0
C7: Date: | D7: ='1 - CSS INPUT'!E8 -> 00:00:00 | K7: blank | L7: Date: | M7: ='1 - CSS INPUT'!E8 -> 00:00:00 | X7: Date: | Y7: ='1 - CSS INPUT'!E8 -> 00:00:00 | AJ7: Date: | AK7: ='1 - CSS INPUT'!E8 -> 00:00:00
C8: SYSTEM CHARACTERIZATION | K8: blank | L8: SYSTEM CHARACTERIZATION | X8: SYSTEM CHARACTERIZATION | AJ8: SYSTEM CHARACTERIZATION
C9: blank | D9: blank | E9: =IF(E10="","CSO 001",E10) -> CSO 001 | F9: =IF(F10="","CSO 002",F10) -> CSO 002 | G9: =IF(G10="","CSO 003",G10) -> CSO 003 | H9: =IF(H10="","CSO 004",H10) -> CSO 004 | K9: blank | M9: =IF(M10="","CSO 005",M10) -> CSO 005 | N9: =IF(N10="","CSO 006",N10) -> CSO 006 | O9: =IF(O10="","CSO 007",O10) -> CSO 007 | P9: =IF(P10="","CSO 008",P10) -> CSO 008 | Q9: =IF(Q10="","CSO 009",Q10) -> CSO 009 | R9: =IF(R10="","CSO 010",R10) -> CSO 010 | S9: =IF(S10="","CSO 011",S10) -> CSO 011 | T9: =IF(T10="","CSO 012",T10) -> CSO 012 | Y9: =IF(Y10="","CSO 013",Y10) -> CSO 013 | Z9: =IF(Z10="","CSO 014",Z10) -> CSO 014 | AA9: =IF(AA10="","CSO 015",AA10) -> CSO 015 | AB9: =IF(AB10="","CSO 016",AB10) -> CSO 016 | AC9: =IF(AC10="","CSO 017",AC10) -> CSO 017 | AD9: =IF(AD10="","CSO 018",AD10) -> CSO 018 | AE9: =IF(AE10="","CSO 019",AE10) -> CSO 019 | AF9: =IF(AF10="","CSO 020",AF10) -> CSO 020 | AK9: =IF(AK10="","CSO 021",AK10) -> CSO 021 | AL9: =IF(AL10="","CSO 022",AL10) -> CSO 022 | AM9: =IF(AM10="","CSO 023",AM10) -> CSO 023 | AN9: =IF(AN10="","CSO 024",AN10) -> CSO 024 | AO9: =IF(AO10="","CSO 025",AO10) -> CSO 025 | AP9: =IF(AP10="","CSO 026",AP10) -> CSO 026 | AQ9: =IF(AQ10="","CSO 027",AQ10) -> CSO 027 | AR9: =IF(AR10="","CSO 028",AR10) -> CSO 028
C10: 5. CSO Outfall Information | D10: a. Permitted CSO outfall number. | K10: blank | L10: 5a. | X10: 5a. | AJ10: 5a.
C11: 5. CSO Outfall Information | D11: b. Description of location. | K11: blank | L11: 5b. | X11: 5b. | AJ11: 5b.
C12: 5. CSO Outfall Information | D12: c. Latitude/longitude. | K12: blank | L12: 5c. | X12: 5c. | AJ12: 5c.
C13: 5. CSO Outfall Information | D13: d. Receiving water. | K13: blank | L13: 5d. | X13: 5d. | AJ13: 5d.
C14: 6. CSS Attributes | D14: a. Sub-sewershed area (acres).* | K14: blank | L14: 6a. | X14: 6a. | AJ14: 6a.
C15: 6. CSS Attributes | D15: b. Average impervious surface (%).* | K15: blank | L15: 6b. | X15: 6b. | AJ15: 6b.
C16: 7. CSO Attributes | D16: a. Type of CSO hydraulic control. | K16: blank | L16: 7a. | X16: 7a. | AJ16: 7a.
C17: 7. CSO Attributes | D17: b. CSO hydraulic control capacity (MGD).* | K17: blank | L17: 7b. | X17: 7b. | AJ17: 7b.
C18: 7. CSO Attributes | D18: c. CSO treatment capacity (MGD).* | K18: blank | L18: 7c. | X18: 7c. | AJ18: 7c.
C19: 7. CSO Attributes | D19: d. Name of interceptor or downstream pipe. | K19: blank | L19: 7d. | X19: 7d. | AJ19: 7d.

Sheet 3 - Tc & RAINFALL
A1: U.S. EPA Combined Sewer Overflow Model for Small Communities. Runoff Model Data Input, Page 3. Information describing the runoff generating potential of each CSO and a 24 hour rainfall time series is entered on this page. The is structured similar to page 2, with the main difference being the presence of automatically calculated cells in combination with data input cells. Each type of cell can be accessed and is identified accordingly. Data input and calculation cells are oriented from top to bottom with respect to individual line items, and left to right with respect to CSO number. Each line is prefixed by an item number in column C and a line letter in column D for a unique identification. The item number is continued sequentially from page 2. For example, the first line item on this page is Line 8a. Data input cells are identified as such along with a description of the data to be entered. Some data input cells are optional and some are required for the model to function. Those that are required for the model to function are identified as such. Calculation cells are identified as such and should not be changed in any way. Line 10b, the last line item on this page, consists of one cell requiring input for the simulation start time, one column that is 24 cells high for input of hourly rainfall, and one column that is 96 cells high for input of 15 minute rainfall. Only one rainfall time series should be entered, either as hourly or 15 minute. For specific instruction and recommendations on how to obtain certain data inputs, see the accompanying CSO Model User Guide. Enter information for as many CSOs as were included on the prior page. The tab key can be used to navigate sequentially through the required inputs, including the final rainfall time series input.
C3: U.S. EPA Combined Sewer Overflow Model for Small Communities | L3: U.S. EPA Combined Sewer Overflow Model for Small Communities | X3: U.S. EPA Combined Sewer Overflow Model for Small Communities | AJ3: U.S. EPA Combined Sewer Overflow Model for Small Communities
C4: RUNOFF MODEL DATA INPUT, Page 3 | L4: RUNOFF MODEL DATA INPUT, Page 3, Extension 1 | X4: RUNOFF MODEL DATA INPUT, Page 3, Extension 2 | AJ4: RUNOFF MODEL DATA INPUT, Page 3, Extension 3
C5: Community name: | D5: ='1 - CSS INPUT'!E6 -> 0 | L5: Community name: | M5: ='1 - CSS INPUT'!E6 -> 0 | X5: Community name: | Y5: ='1 - CSS INPUT'!E6 -> 0 | AJ5: Community name: | AK5: ='1 - CSS INPUT'!E6 -> 0
C6: NPDES number: | D6: ='1 - CSS INPUT'!E7 -> 0 | L6: NPDES number: | M6: ='1 - CSS INPUT'!E7 -> 0 | X6: NPDES number: | Y6: ='1 - CSS INPUT'!E7 -> 0 | AJ6: NPDES number: | AK6: ='1 - CSS INPUT'!E7 -> 0
C7: Date: | D7: ='1 - CSS INPUT'!E8 -> 00:00:00 | L7: Date: | M7: ='1 - CSS INPUT'!E8 -> 00:00:00 | X7: Date: | Y7: ='1 - CSS INPUT'!E8 -> 00:00:00 | AJ7: Date: | AK7: ='1 - CSS INPUT'!E8 -> 00:00:00
C8: TIME OF CONCENTRATION | L8: TIME OF CONCENTRATION | X8: TIME OF CONCENTRATION | AJ8: TIME OF CONCENTRATION
E9: ='2 - CSO INPUT'!E9 -> CSO 001 | F9: ='2 - CSO INPUT'!F9 -> CSO 002 | G9: ='2 - CSO INPUT'!G9 -> CSO 003 | H9: ='2 - CSO INPUT'!H9 -> CSO 004 | M9: ='2 - CSO INPUT'!M9 -> CSO 005 | N9: ='2 - CSO INPUT'!N9 -> CSO 006 | O9: ='2 - CSO INPUT'!O9 -> CSO 007 | P9: ='2 - CSO INPUT'!P9 -> CSO 008 | Q9: ='2 - CSO INPUT'!Q9 -> CSO 009 | R9: ='2 - CSO INPUT'!R9 -> CSO 010 | S9: ='2 - CSO INPUT'!S9 -> CSO 011 | T9: ='2 - CSO INPUT'!T9 -> CSO 012 | Y9: ='2 - CSO INPUT'!Y9 -> CSO 013 | Z9: ='2 - CSO INPUT'!Z9 -> CSO 014 | AA9: ='2 - CSO INPUT'!AA9 -> CSO 015 | AB9: ='2 - CSO INPUT'!AB9 -> CSO 016 | AC9: ='2 - CSO INPUT'!AC9 -> CSO 017 | AD9: ='2 - CSO INPUT'!AD9 -> CSO 018 | AE9: ='2 - CSO INPUT'!AE9 -> CSO 019 | AF9: ='2 - CSO INPUT'!AF9 -> CSO 020 | AK9: ='2 - CSO INPUT'!AK9 -> CSO 021 | AL9: ='2 - CSO INPUT'!AL9 -> CSO 022 | AM9: ='2 - CSO INPUT'!AM9 -> CSO 023 | AN9: ='2 - CSO INPUT'!AN9 -> CSO 024 | AO9: ='2 - CSO INPUT'!AO9 -> CSO 025 | AP9: ='2 - CSO INPUT'!AP9 -> CSO 026 | AQ9: ='2 - CSO INPUT'!AQ9 -> CSO 027 | AR9: ='2 - CSO INPUT'!AR9 -> CSO 028
C10: 8.Time of Concentration | D10: a. Length of main flow path (feet).* | L10: 8a. | X10: 8a. | AJ10: 8a.
C11: 8.Time of Concentration | D11: b. Elevation at upstream end of main flow path (feet).* | L11: 8b. | X11: 8b. | AJ11: 8b.
C12: 8.Time of Concentration | D12: c. Elevation at downstream end of main flow path (feet).* | L12: 8c. | X12: 8c. | AJ12: 8c.
C13: 8.Time of Concentration | D13: d. Main flow path slope (%). | E13: =IF(ISNUMBER(E12),IF((E11-E12)/E10<0.005,0.005,(E11-E12)/E10),"") ->  | F13: =IF(ISNUMBER(F12),IF((F11-F12)/F10<0.005,0.005,(F11-F12)/F10),"") ->  | H13: =IF(ISNUMBER(H12),IF((H11-H12)/H10<0.005,0.005,(H11-H12)/H10),"") ->  | L13: 8d. | M13: =IF(ISNUMBER(M12),IF((M11-M12)/M10<0.005,0.005,(M11-M12)/M10),"") ->  | N13: =IF(ISNUMBER(N12),IF((N11-N12)/N10<0.005,0.005,(N11-N12)/N10),"") ->  | T13: =IF(ISNUMBER(T12),IF((T11-T12)/T10<0.005,0.005,(T11-T12)/T10),"") ->  | X13: 8d. | Y13: =IF(ISNUMBER(Y12),IF((Y11-Y12)/Y10<0.005,0.005,(Y11-Y12)/Y10),"") ->  | Z13: =IF(ISNUMBER(Z12),IF((Z11-Z12)/Z10<0.005,0.005,(Z11-Z12)/Z10),"") ->  | AF13: =IF(ISNUMBER(AF12),IF((AF11-AF12)/AF10<0.005,0.005,(AF11-AF12)/AF10),"") ->  | AJ13: 8d. | AK13: =IF(ISNUMBER(AK12),IF((AK11-AK12)/AK10<0.005,0.005,(AK11-AK12)/AK10),"") ->  | AL13: =IF(ISNUMBER(AL12),IF((AL11-AL12)/AL10<0.005,0.005,(AL11-AL12)/AL10),"") -> 
C14: 8.Time of Concentration | D14: e. Time of concentration, tc (hour). | E14: =IF(ISNUMBER(E13),IF(ROUND(4*(0.0078*((E10^2)/E13)^0.385)/60,0)<1,0.25,ROUND(4*(0.0078*((E10^2)/E13)^0.385)/60,0)/4),"") ->  | F14: =IF(ISNUMBER(F13),IF(ROUND(4*(0.0078*((F10^2)/F13)^0.385)/60,0)<1,0.25,ROUND(4*(0.0078*((F10^2)/F13)^0.385)/60,0)/4),"") ->  | H14: =IF(ISNUMBER(H13),IF(ROUND(4*(0.0078*((H10^2)/H13)^0.385)/60,0)<1,0.25,ROUND(4*(0.0078*((H10^2)/H13)^0.385)/60,0)/4),"") ->  | L14: 8g. | M14: =IF(ISNUMBER(M13),IF(ROUND(4*(0.0078*((M10^2)/M13)^0.385)/60,0)<1,0.25,ROUND(4*(0.0078*((M10^2)/M13)^0.385)/60,0)/4),"") ->  | N14: =IF(ISNUMBER(N13),IF(ROUND(4*(0.0078*((N10^2)/N13)^0.385)/60,0)<1,0.25,ROUND(4*(0.0078*((N10^2)/N13)^0.385)/60,0)/4),"") ->  | T14: =IF(ISNUMBER(T13),IF(ROUND(4*(0.0078*((T10^2)/T13)^0.385)/60,0)<1,0.25,ROUND(4*(0.0078*((T10^2)/T13)^0.385)/60,0)/4),"") ->  | X14: 8g. | Y14: =IF(ISNUMBER(Y13),IF(ROUND(4*(0.0078*((Y10^2)/Y13)^0.385)/60,0)<1,0.25,ROUND(4*(0.0078*((Y10^2)/Y13)^0.385)/60,0)/4),"") ->  | Z14: =IF(ISNUMBER(Z13),IF(ROUND(4*(0.0078*((Z10^2)/Z13)^0.385)/60,0)<1,0.25,ROUND(4*(0.0078*((Z10^2)/Z13)^0.385)/60,0)/4),"") ->  | AF14: =IF(ISNUMBER(AF13),IF(ROUND(4*(0.0078*((AF10^2)/AF13)^0.385)/60,0)<1,0.25,ROUND(4*(0.0078*((AF10^2)/AF13)^0.385)/60,0)/4),"") ->  | AJ14: 8g. | AK14: =IF(ISNUMBER(AK13),IF(ROUND(4*(0.0078*((AK10^2)/AK13)^0.385)/60,0)<1,0.25,ROUND(4*(0.0078*((AK10^2)/AK13)^0.385)/60,0)/4),"") ->  | AL14: =IF(ISNUMBER(AL13),IF(ROUND(4*(0.0078*((AL10^2)/AL13)^0.385)/60,0)<1,0.25,ROUND(4*(0.0078*((AL10^2)/AL13)^0.385)/60,0)/4),"") -> 
C16: OBSERVED RAINFALL | L16: OBSERVED RAINFALL | X16: OBSERVED RAINFALL | AJ16: OBSERVED RAINFALL
C17: 9. Initial Abstraction | D17: a. Initial abstraction (inches). | E17: 0.1 | F17: 0.1 | G17: 0.1 | H17: 0.1 | L17: 9a. | M17: 0.1 | N17: 0.1 | O17: 0.1 | P17: 0.1 | Q17: 0.1 | R17: 0.1 | S17: 0.1 | T17: 0.1 | X17: 9a. | Y17: 0.1 | Z17: 0.1 | AA17: 0.1 | AB17: 0.1 | AC17: 0.1 | AD17: 0.1 | AE17: 0.1 | AF17: 0.1 | AJ17: 9a. | AK17: 0.1 | AL17: 0.1 | AM17: 0.1 | AN17: 0.1 | AO17: 0.1 | AP17: 0.1 | AQ17: 0.1 | AR17: 0.1
C18: 10. Rainfall | D18: a. Description of rainfall data source.
E19: Time (hour) | F19: Hour | G19: Hourly Rain (inches/hour) | H19: 15-Minute Rain (inches/15 min)
C20: 10. Rainfall | D20: b. Rainfall input (hourly or 15-minute) (inches).* | F20: 1
E21: =E20+1/(24*4) -> 00:15:00 | F21: =F20+0.25 -> 1.25
E22: =E21+1/(24*4) -> 00:30:00 | F22: =F21+0.25 -> 1.50
E23: 00:45:00 | F23: 1.75
E24: =E20+(1/24) -> 01:00:00 | F24: =F20+1 -> 2
E25: =E24+1/(24*4) -> 01:15:00 | F25: =F24+0.25 -> 2.25
E26: =E25+1/(24*4) -> 01:30:00 | F26: =F25+0.25 -> 2.50
E27: 01:45:00 | F27: 2.75
E28: =E24+(1/24) -> 02:00:00 | F28: =F24+1 -> 3
E29: =E28+1/(24*4) -> 02:15:00 | F29: =F28+0.25 -> 3.25
E30: =E29+1/(24*4) -> 02:30:00 | F30: =F29+0.25 -> 3.50
E31: 02:45:00 | F31: 3.75
E32: =E28+(1/24) -> 03:00:00 | F32: =F28+1 -> 4
E33: =E32+1/(24*4) -> 03:15:00 | F33: =F32+0.25 -> 4.25
E34: =E33+1/(24*4) -> 03:30:00 | F34: =F33+0.25 -> 4.50
E35: 03:45:00 | F35: 4.75
E36: =E32+(1/24) -> 04:00:00 | F36: =F32+1 -> 5
E37: =E36+1/(24*4) -> 04:15:00 | F37: =F36+0.25 -> 5.25
E38: =E37+1/(24*4) -> 04:30:00 | F38: =F37+0.25 -> 5.50
E39: 04:45:00 | F39: 5.75
E40: =E36+(1/24) -> 05:00:00 | F40: =F36+1 -> 6
E41: =E40+1/(24*4) -> 05:15:00 | F41: =F40+0.25 -> 6.25
E42: =E41+1/(24*4) -> 05:30:00 | F42: =F41+0.25 -> 6.50
E43: 05:45:00 | F43: 6.75
E44: =E40+(1/24) -> 06:00:00 | F44: =F40+1 -> 7
E45: =E44+1/(24*4) -> 06:15:00 | F45: =F44+0.25 -> 7.25
E46: =E45+1/(24*4) -> 06:30:00 | F46: =F45+0.25 -> 7.50
E47: 06:45:00 | F47: 7.75
E48: =E44+(1/24) -> 07:00:00 | F48: =F44+1 -> 8
E49: =E48+1/(24*4) -> 07:15:00 | F49: =F48+0.25 -> 8.25
E50: =E49+1/(24*4) -> 07:30:00 | F50: =F49+0.25 -> 8.50
E51: 07:45:00 | F51: 8.75
E52: =E48+(1/24) -> 08:00:00 | F52: =F48+1 -> 9
E53: =E52+1/(24*4) -> 08:15:00 | F53: =F52+0.25 -> 9.25
E54: =E53+1/(24*4) -> 08:30:00 | F54: =F53+0.25 -> 9.50
E55: 08:45:00 | F55: 9.75
E56: =E52+(1/24) -> 09:00:00 | F56: =F52+1 -> 10
E57: =E56+1/(24*4) -> 09:15:00 | F57: =F56+0.25 -> 10.25
E58: =E57+1/(24*4) -> 09:30:00 | F58: =F57+0.25 -> 10.50
E59: 09:45:00 | F59: 10.75
E60: =E56+(1/24) -> 10:00:00 | F60: =F56+1 -> 11
E61: =E60+1/(24*4) -> 10:15:00 | F61: =F60+0.25 -> 11.25
E62: =E61+1/(24*4) -> 10:30:00 | F62: =F61+0.25 -> 11.50
E63: 10:45:00 | F63: 11.75
E64: =E60+(1/24) -> 11:00:00 | F64: =F60+1 -> 12
E65: =E64+1/(24*4) -> 11:15:00 | F65: =F64+0.25 -> 12.25
E66: =E65+1/(24*4) -> 11:30:00 | F66: =F65+0.25 -> 12.50
E67: 11:45:00 | F67: 12.75
E68: =E64+(1/24) -> 12:00:00 | F68: =F64+1 -> 13
E69: =E68+1/(24*4) -> 12:15:00 | F69: =F68+0.25 -> 13.25
E70: =E69+1/(24*4) -> 12:30:00 | F70: =F69+0.25 -> 13.50
E71: 12:45:00 | F71: 13.75
E72: =E68+(1/24) -> 13:00:00 | F72: =F68+1 -> 14
E73: =E72+1/(24*4) -> 13:15:00 | F73: =F72+0.25 -> 14.25
E74: =E73+1/(24*4) -> 13:30:00 | F74: =F73+0.25 -> 14.50
E75: 13:45:00 | F75: 14.75
E76: =E72+(1/24) -> 14:00:00 | F76: =F72+1 -> 15
E77: =E76+1/(24*4) -> 14:15:00 | F77: =F76+0.25 -> 15.25
E78: =E77+1/(24*4) -> 14:30:00 | F78: =F77+0.25 -> 15.50
E79: 14:45:00 | F79: 15.75
E80: =E76+(1/24) -> 15:00:00 | F80: =F76+1 -> 16
E81: =E80+1/(24*4) -> 15:15:00 | F81: =F80+0.25 -> 16.25
E82: =E81+1/(24*4) -> 15:30:00 | F82: =F81+0.25 -> 16.50
E83: 15:45:00 | F83: 16.75
E84: =E80+(1/24) -> 16:00:00 | F84: =F80+1 -> 17
E85: =E84+1/(24*4) -> 16:15:00 | F85: =F84+0.25 -> 17.25
E86: =E85+1/(24*4) -> 16:30:00 | F86: =F85+0.25 -> 17.50
E87: 16:45:00 | F87: 17.75
E88: =E84+(1/24) -> 17:00:00 | F88: =F84+1 -> 18
E89: =E88+1/(24*4) -> 17:15:00 | F89: =F88+0.25 -> 18.25
E90: =E89+1/(24*4) -> 17:30:00 | F90: =F89+0.25 -> 18.50
E91: 17:45:00 | F91: 18.75
E92: =E88+(1/24) -> 18:00:00 | F92: =F88+1 -> 19
E93: =E92+1/(24*4) -> 18:15:00 | F93: =F92+0.25 -> 19.25
E94: =E93+1/(24*4) -> 18:30:00 | F94: =F93+0.25 -> 19.50
E95: 18:45:00 | F95: 19.75
E96: =E92+(1/24) -> 19:00:00 | F96: =F92+1 -> 20
E97: =E96+1/(24*4) -> 19:15:00 | F97: =F96+0.25 -> 20.25
E98: =E97+1/(24*4) -> 19:30:00 | F98: =F97+0.25 -> 20.50
E99: 19:45:00 | F99: 20.75
E100: =E96+(1/24) -> 20:00:00 | F100: =F96+1 -> 21
E101: =E100+1/(24*4) -> 20:15:00 | F101: =F100+0.25 -> 21.25
E102: =E101+1/(24*4) -> 20:30:00 | F102: =F101+0.25 -> 21.50
E103: 20:45:00 | F103: 21.75
E104: =E100+(1/24) -> 21:00:00 | F104: =F100+1 -> 22
E105: =E104+1/(24*4) -> 21:15:00 | F105: =F104+0.25 -> 22.25
E106: =E105+1/(24*4) -> 21:30:00 | F106: =F105+0.25 -> 22.50
E107: 21:45:00 | F107: 22.75
E108: =E104+(1/24) -> 22:00:00 | F108: =F104+1 -> 23
E109: =E108+1/(24*4) -> 22:15:00 | F109: =F108+0.25 -> 23.25
E110: =E109+1/(24*4) -> 22:30:00 | F110: =F109+0.25 -> 23.50
E111: 22:45:00 | F111: 23.75
E112: =E108+(1/24) -> 23:00:00 | F112: =F108+1 -> 24
E113: =E112+1/(24*4) -> 23:15:00 | F113: =F112+0.25 -> 24.25
E114: =E113+1/(24*4) -> 23:30:00 | F114: =F113+0.25 -> 24.50
E115: 23:45:00 | F115: 24.75

Sheet 4 - CSO VOLUME
A1: U.S. EPA Combined Sewer Overflow Model for Small Communities. Runoff Model Data Input, Page 4. Information required to simulate stormwater routing through individual CSOs is entered on this page. The page is structured similar to page 3. Data input and calculation cells are oriented from top to bottom with respect to individual line items, and left to right with respect to CSO number. Each line is prefixed by an item number in column C and a line letter in column D for a unique identification. The item number is continued sequentially from page 3. For example, the first line item on this page is Line 11 a. Data input cells are identified as such along with a description of the data to be entered. Some data input cells are optional and some are required for the model to function. Those that are required for the model to function are identified as such. Calculation cells are identified as such and should not be changed in any way. For specific instruction and recommendations on how to obtain certain data inputs, see the accompanying CSO Model User Guide. Enter information for as many CSOs as were included on the prior page. The tab key can be used to navigate sequentially through the required inputs.
C3: U.S. EPA Combined Sewer Overflow Model for Small Communities | L3: U.S. EPA Combined Sewer Overflow Model for Small Communities | X3: U.S. EPA Combined Sewer Overflow Model for Small Communities | AJ3: U.S. EPA Combined Sewer Overflow Model for Small Communities
C4: CSO VOLUME CALCULATIONS, Page 4 | L4: CSO VOLUME CALCULATIONS, Page 4, Extension 1 | X4: CSO VOLUME CALCULATIONS, Page 4, Extension 2 | AJ4: CSO VOLUME CALCULATIONS, Page 4, Extension 3
C5: Community name: | D5: ='1 - CSS INPUT'!E6 -> 0 | L5: Community name: | M5: ='1 - CSS INPUT'!E6 -> 0 | X5: Community name: | Y5: ='1 - CSS INPUT'!E6 -> 0 | AJ5: Community name: | AK5: ='1 - CSS INPUT'!E6 -> 0
C6: NPDES number: | D6: ='1 - CSS INPUT'!E7 -> 0 | L6: NPDES number: | M6: ='1 - CSS INPUT'!E7 -> 0 | X6: NPDES number: | Y6: ='1 - CSS INPUT'!E7 -> 0 | AJ6: NPDES number: | AK6: ='1 - CSS INPUT'!E7 -> 0
C7: Date: | D7: ='1 - CSS INPUT'!E8 -> 00:00:00 | L7: Date: | M7: ='1 - CSS INPUT'!E8 -> 00:00:00 | X7: Date: | Y7: ='1 - CSS INPUT'!E8 -> 00:00:00 | AJ7: Date: | AK7: ='1 - CSS INPUT'!E8 -> 00:00:00
C8: CSO VOLUME CALCULATIONS | L8: CSO VOLUME CALCULATIONS | X8: CSO VOLUME CALCULATIONS | AJ8: CSO VOLUME CALCULATIONS
E9: ='2 - CSO INPUT'!E9 -> CSO 001 | F9: ='2 - CSO INPUT'!F9 -> CSO 002 | G9: ='2 - CSO INPUT'!G9 -> CSO 003 | H9: ='2 - CSO INPUT'!H9 -> CSO 004 | M9: ='2 - CSO INPUT'!M9 -> CSO 005 | N9: ='2 - CSO INPUT'!N9 -> CSO 006 | O9: ='2 - CSO INPUT'!O9 -> CSO 007 | P9: ='2 - CSO INPUT'!P9 -> CSO 008 | Q9: ='2 - CSO INPUT'!Q9 -> CSO 009 | R9: ='2 - CSO INPUT'!R9 -> CSO 010 | S9: ='2 - CSO INPUT'!S9 -> CSO 011 | T9: ='2 - CSO INPUT'!T9 -> CSO 012 | Y9: ='2 - CSO INPUT'!Y9 -> CSO 013 | Z9: ='2 - CSO INPUT'!Z9 -> CSO 014 | AA9: ='2 - CSO INPUT'!AA9 -> CSO 015 | AB9: ='2 - CSO INPUT'!AB9 -> CSO 016 | AC9: ='2 - CSO INPUT'!AC9 -> CSO 017 | AD9: ='2 - CSO INPUT'!AD9 -> CSO 018 | AE9: ='2 - CSO INPUT'!AE9 -> CSO 019 | AF9: ='2 - CSO INPUT'!AF9 -> CSO 020 | AK9: ='2 - CSO INPUT'!AK9 -> CSO 021 | AL9: ='2 - CSO INPUT'!AL9 -> CSO 022 | AM9: ='2 - CSO INPUT'!AM9 -> CSO 023 | AN9: ='2 - CSO INPUT'!AN9 -> CSO 024 | AO9: ='2 - CSO INPUT'!AO9 -> CSO 025 | AP9: ='2 - CSO INPUT'!AP9 -> CSO 026 | AQ9: ='2 - CSO INPUT'!AQ9 -> CSO 027 | AR9: ='2 - CSO INPUT'!AR9 -> CSO 028
C10: 11. Runoff Generated | D10: a. Stormwater runoff (MG). | E10: =IF(ISBLANK(HLOOKUP(E$9,'2 - CSO INPUT'!$E$9:$AS$14,6,FALSE)),"",VLOOKUP(CONCATENATE('4 - CSO VOLUME'!E$9,'4 - CSO VOLUME'!$L10),'CSO CALCULATIONS'!$A:$DA,105,FALSE)) ->  | F10: =IF(ISBLANK(HLOOKUP(F$9,'2 - CSO INPUT'!$E$9:$AS$14,6,FALSE)),"",VLOOKUP(CONCATENATE('4 - CSO VOLUME'!F$9,'4 - CSO VOLUME'!$L10),'CSO CALCULATIONS'!$A:$DA,105,FALSE)) ->  | G10: =IF(ISBLANK(HLOOKUP(G$9,'2 - CSO INPUT'!$E$9:$AS$14,6,FALSE)),"",VLOOKUP(CONCATENATE('4 - CSO VOLUME'!G$9,'4 - CSO VOLUME'!$L10),'CSO CALCULATIONS'!$A:$DA,105,FALSE)) ->  | H10: =IF(ISBLANK(HLOOKUP(H$9,'2 - CSO INPUT'!$E$9:$AS$14,6,FALSE)),"",VLOOKUP(CONCATENATE('4 - CSO VOLUME'!H$9,'4 - CSO VOLUME'!$L10),'CSO CALCULATIONS'!$A:$DA,105,FALSE)) ->  | L10: 11a. | M10: =IF(ISBLANK(HLOOKUP(M$9,'2 - CSO INPUT'!$E$9:$AS$14,6,FALSE)),"",VLOOKUP(CONCATENATE('4 - CSO VOLUME'!M$9,'4 - CSO VOLUME'!$L10),'CSO CALCULATIONS'!$A:$DA,105,FALSE)) ->  | N10: =IF(ISBLANK(HLOOKUP(N$9,'2 - CSO INPUT'!$E$9:$AS$14,6,FALSE)),"",VLOOKUP(CONCATENATE('4 - CSO VOLUME'!N$9,'4 - CSO VOLUME'!$L10),'CSO CALCULATIONS'!$A:$DA,105,FALSE)) ->  | O10: =IF(ISBLANK(HLOOKUP(O$9,'2 - CSO INPUT'!$E$9:$AS$14,6,FALSE)),"",VLOOKUP(CONCATENATE('4 - CSO VOLUME'!O$9,'4 - CSO VOLUME'!$L10),'CSO CALCULATIONS'!$A:$DA,105,FALSE)) ->  | P10: =IF(ISBLANK(HLOOKUP(P$9,'2 - CSO INPUT'!$E$9:$AS$14,6,FALSE)),"",VLOOKUP(CONCATENATE('4 - CSO VOLUME'!P$9,'4 - CSO VOLUME'!$L10),'CSO CALCULATIONS'!$A:$DA,105,FALSE)) ->  | Q10: =IF(ISBLANK(HLOOKUP(Q$9,'2 - CSO INPUT'!$E$9:$AS$14,6,FALSE)),"",VLOOKUP(CONCATENATE('4 - CSO VOLUME'!Q$9,'4 - CSO VOLUME'!$L10),'CSO CALCULATIONS'!$A:$DA,105,FALSE)) ->  | R10: =IF(ISBLANK(HLOOKUP(R$9,'2 - CSO INPUT'!$E$9:$AS$14,6,FALSE)),"",VLOOKUP(CONCATENATE('4 - CSO VOLUME'!R$9,'4 - CSO VOLUME'!$L10),'CSO CALCULATIONS'!$A:$DA,105,FALSE)) ->  | S10: =IF(ISBLANK(HLOOKUP(S$9,'2 - CSO INPUT'!$E$9:$AS$14,6,FALSE)),"",VLOOKUP(CONCATENATE('4 - CSO VOLUME'!S$9,'4 - CSO VOLUME'!$L10),'CSO CALCULATIONS'!$A:$DA,105,FALSE)) ->  | T10: =IF(ISBLANK(HLOOKUP(T$9,'2 - CSO INPUT'!$E$9:$AS$14,6,FALSE)),"",VLOOKUP(CONCATENATE('4 - CSO VOLUME'!T$9,'4 - CSO VOLUME'!$L10),'CSO CALCULATIONS'!$A:$DA,105,FALSE)) ->  | X10: 11a. | Y10: =IF(ISBLANK(HLOOKUP(Y$9,'2 - CSO INPUT'!$E$9:$AS$14,6,FALSE)),"",VLOOKUP(CONCATENATE('4 - CSO VOLUME'!Y$9,'4 - CSO VOLUME'!$X10),'CSO CALCULATIONS'!$A:$DA,105,FALSE)) ->  | Z10: =IF(ISBLANK(HLOOKUP(Z$9,'2 - CSO INPUT'!$E$9:$AS$14,6,FALSE)),"",VLOOKUP(CONCATENATE('4 - CSO VOLUME'!Z$9,'4 - CSO VOLUME'!$X10),'CSO CALCULATIONS'!$A:$DA,105,FALSE)) ->  | AA10: =IF(ISBLANK(HLOOKUP(AA$9,'2 - CSO INPUT'!$E$9:$AS$14,6,FALSE)),"",VLOOKUP(CONCATENATE('4 - CSO VOLUME'!AA$9,'4 - CSO VOLUME'!$X10),'CSO CALCULATIONS'!$A:$DA,105,FALSE)) ->  | AB10: =IF(ISBLANK(HLOOKUP(AB$9,'2 - CSO INPUT'!$E$9:$AS$14,6,FALSE)),"",VLOOKUP(CONCATENATE('4 - CSO VOLUME'!AB$9,'4 - CSO VOLUME'!$X10),'CSO CALCULATIONS'!$A:$DA,105,FALSE)) ->  | AC10: =IF(ISBLANK(HLOOKUP(AC$9,'2 - CSO INPUT'!$E$9:$AS$14,6,FALSE)),"",VLOOKUP(CONCATENATE('4 - CSO VOLUME'!AC$9,'4 - CSO VOLUME'!$X10),'CSO CALCULATIONS'!$A:$DA,105,FALSE)) ->  | AD10: =IF(ISBLANK(HLOOKUP(AD$9,'2 - CSO INPUT'!$E$9:$AS$14,6,FALSE)),"",VLOOKUP(CONCATENATE('4 - CSO VOLUME'!AD$9,'4 - CSO VOLUME'!$X10),'CSO CALCULATIONS'!$A:$DA,105,FALSE)) ->  | AE10: =IF(ISBLANK(HLOOKUP(AE$9,'2 - CSO INPUT'!$E$9:$AS$14,6,FALSE)),"",VLOOKUP(CONCATENATE('4 - CSO VOLUME'!AE$9,'4 - CSO VOLUME'!$X10),'CSO CALCULATIONS'!$A:$DA,105,FALSE)) ->  | AF10: =IF(ISBLANK(HLOOKUP(AF$9,'2 - CSO INPUT'!$E$9:$AS$14,6,FALSE)),"",VLOOKUP(CONCATENATE('4 - CSO VOLUME'!AF$9,'4 - CSO VOLUME'!$X10),'CSO CALCULATIONS'!$A:$DA,105,FALSE)) ->  | AJ10: 11a. | AK10: =IF(ISBLANK(HLOOKUP(AK$9,'2 - CSO INPUT'!$E$9:$AS$14,6,FALSE)),"",VLOOKUP(CONCATENATE('4 - CSO VOLUME'!AK$9,'4 - CSO VOLUME'!$AJ10),'CSO CALCULATIONS'!$A:$DA,105,FALSE)) ->  | AL10: =IF(ISBLANK(HLOOKUP(AL$9,'2 - CSO INPUT'!$E$9:$AS$14,6,FALSE)),"",VLOOKUP(CONCATENATE('4 - CSO VOLUME'!AL$9,'4 - CSO VOLUME'!$AJ10),'CSO CALCULATIONS'!$A:$DA,105,FALSE)) ->  | AM10: =IF(ISBLANK(HLOOKUP(AM$9,'2 - CSO INPUT'!$E$9:$AS$14,6,FALSE)),"",VLOOKUP(CONCATENATE('4 - CSO VOLUME'!AM$9,'4 - CSO VOLUME'!$AJ10),'CSO CALCULATIONS'!$A:$DA,105,FALSE)) ->  | AN10: =IF(ISBLANK(HLOOKUP(AN$9,'2 - CSO INPUT'!$E$9:$AS$14,6,FALSE)),"",VLOOKUP(CONCATENATE('4 - CSO VOLUME'!AN$9,'4 - CSO VOLUME'!$AJ10),'CSO CALCULATIONS'!$A:$DA,105,FALSE)) ->  | AO10: =IF(ISBLANK(HLOOKUP(AO$9,'2 - CSO INPUT'!$E$9:$AS$14,6,FALSE)),"",VLOOKUP(CONCATENATE('4 - CSO VOLUME'!AO$9,'4 - CSO VOLUME'!$AJ10),'CSO CALCULATIONS'!$A:$DA,105,FALSE)) ->  | AP10: =IF(ISBLANK(HLOOKUP(AP$9,'2 - CSO INPUT'!$E$9:$AS$14,6,FALSE)),"",VLOOKUP(CONCATENATE('4 - CSO VOLUME'!AP$9,'4 - CSO VOLUME'!$AJ10),'CSO CALCULATIONS'!$A:$DA,105,FALSE)) ->  | AQ10: =IF(ISBLANK(HLOOKUP(AQ$9,'2 - CSO INPUT'!$E$9:$AS$14,6,FALSE)),"",VLOOKUP(CONCATENATE('4 - CSO VOLUME'!AQ$9,'4 - CSO VOLUME'!$AJ10),'CSO CALCULATIONS'!$A:$DA,105,FALSE)) ->  | AR10: =IF(ISBLANK(HLOOKUP(AR$9,'2 - CSO INPUT'!$E$9:$AS$14,6,FALSE)),"",VLOOKUP(CONCATENATE('4 - CSO VOLUME'!AR$9,'4 - CSO VOLUME'!$AJ10),'CSO CALCULATIONS'!$A:$DA,105,FALSE)) -> 
C11: 12. Green Infrastructure and | D11: a. Estimated stormwater control capacity (MG). | L11: 12a. | X11: 12a. | AJ11: 12a.
C12: Other Stormwater | D12: a1. Practice 1—Runoff standard or design storm depth (inches). | L12: 12a1. | X12: 12a1. | AJ12: 12a1.
C13: Controls | D13: a2. Practice 1—Total drainage area (acres). | L13: 12a2. | X13: 12a2. | AJ13: 12a2.
C14: 12. Green Infrastructure and Other Stormwater Controls | D14: a3. Practice 1—Volumetric runoff coefficient. | L14: 12a3. | X14: 12a3. | AJ14: 12a3.
C15: 12. Green Infrastructure and Other Stormwater Controls | D15: a4. Practice 2—Runoff standard or design storm depth (inches). | L15: 12a4. | X15: 12a4. | AJ15: 12a4.
C16: 12. Green Infrastructure and Other Stormwater Controls | D16: a5. Practice 2—Total drainage area (acres). | L16: 12a5. | X16: 12a5. | AJ16: 12a5.
C17: 12. Green Infrastructure and Other Stormwater Controls | D17: a6. Practice 2—Volumetric runoff coefficient. | L17: 12a6. | X17: 12a6. | AJ17: 12a6.
C18: 12. Green Infrastructure and Other Stormwater Controls | D18: a7. Practice 3—Runoff standard or design storm depth (inches). | L18: 12a7. | X18: 12a7. | AJ18: 12a7.
C19: 12. Green Infrastructure and Other Stormwater Controls | D19: a8. Practice 3—Total drainage area (acres). | L19: 12a8. | X19: 12a8. | AJ19: 12a8.
C20: 12. Green Infrastructure and Other Stormwater Controls | D20: a9. Practice 3—Volumetric runoff coefficient. | L20: 12a9. | X20: 12a9. | AJ20: 12a9.
C21: 12. Green Infrastructure and Other Stormwater Controls | D21: b. Total stormwater control capacity (MG). | E21: =IF((E11+(43560*7.48/(12*1000000))*((E12*E13*E14)+(E15*E16*E17)+(E18*E19*E20)))=0,"",(E11+(43560*7.48/(12*1000000))*((E12*E13*E14)+(E15*E16*E17)+(E18*E19*E20)))) ->  | F21: =IF((F11+(43560*7.48/(12*1000000))*((F12*F13*F14)+(F15*F16*F17)+(F18*F19*F20)))=0,"",(F11+(43560*7.48/(12*1000000))*((F12*F13*F14)+(F15*F16*F17)+(F18*F19*F20)))) ->  | H21: =IF((H11+(43560*7.48/(12*1000000))*((H12*H13*H14)+(H15*H16*H17)+(H18*H19*H20)))=0,"",(H11+(43560*7.48/(12*1000000))*((H12*H13*H14)+(H15*H16*H17)+(H18*H19*H20)))) ->  | L21: 12b. | M21: =IF((M11+(43560*7.48/(12*1000000))*((M12*M13*M14)+(M15*M16*M17)+(M18*M19*M20)))=0,"",(M11+(43560*7.48/(12*1000000))*((M12*M13*M14)+(M15*M16*M17)+(M18*M19*M20)))) ->  | N21: =IF((N11+(43560*7.48/(12*1000000))*((N12*N13*N14)+(N15*N16*N17)+(N18*N19*N20)))=0,"",(N11+(43560*7.48/(12*1000000))*((N12*N13*N14)+(N15*N16*N17)+(N18*N19*N20)))) ->  | T21: =IF((T11+(43560*7.48/(12*1000000))*((T12*T13*T14)+(T15*T16*T17)+(T18*T19*T20)))=0,"",(T11+(43560*7.48/(12*1000000))*((T12*T13*T14)+(T15*T16*T17)+(T18*T19*T20)))) ->  | X21: 12b. | Y21: =IF((Y11+(43560*7.48/(12*1000000))*((Y12*Y13*Y14)+(Y15*Y16*Y17)+(Y18*Y19*Y20)))=0,"",(Y11+(43560*7.48/(12*1000000))*((Y12*Y13*Y14)+(Y15*Y16*Y17)+(Y18*Y19*Y20)))) ->  | Z21: =IF((Z11+(43560*7.48/(12*1000000))*((Z12*Z13*Z14)+(Z15*Z16*Z17)+(Z18*Z19*Z20)))=0,"",(Z11+(43560*7.48/(12*1000000))*((Z12*Z13*Z14)+(Z15*Z16*Z17)+(Z18*Z19*Z20)))) ->  | AF21: =IF((AF11+(43560*7.48/(12*1000000))*((AF12*AF13*AF14)+(AF15*AF16*AF17)+(AF18*AF19*AF20)))=0,"",(AF11+(43560*7.48/(12*1000000))*((AF12*AF13*AF14)+(AF15*AF16*AF17)+(AF18*AF19*AF20)))) ->  | AJ21: 12b. | AK21: =IF((AK11+(43560*7.48/(12*1000000))*((AK12*AK13*AK14)+(AK15*AK16*AK17)+(AK18*AK19*AK20)))=0,"",(AK11+(43560*7.48/(12*1000000))*((AK12*AK13*AK14)+(AK15*AK16*AK17)+(AK18*AK19*AK20)))) ->  | AL21: =IF((AL11+(43560*7.48/(12*1000000))*((AL12*AL13*AL14)+(AL15*AL16*AL17)+(AL18*AL19*AL20)))=0,"",(AL11+(43560*7.48/(12*1000000))*((AL12*AL13*AL14)+(AL15*AL16*AL17)+(AL18*AL19*AL20)))) -> 
C22: 12. Green Infrastructure and Other Stormwater Controls | D22: c. Stormwater runoff (MG). | E22: =IF(ISBLANK(HLOOKUP(E$9,'2 - CSO INPUT'!$E$9:$AS$14,6,FALSE)),"",E10) ->  | F22: =IF(ISBLANK(HLOOKUP(F$9,'2 - CSO INPUT'!$E$9:$AS$14,6,FALSE)),"",F10) ->  | G22: =IF(ISBLANK(HLOOKUP(G$9,'2 - CSO INPUT'!$E$9:$AS$14,6,FALSE)),"",G10) ->  | H22: =IF(ISBLANK(HLOOKUP(H$9,'2 - CSO INPUT'!$E$9:$AS$14,6,FALSE)),"",H10) ->  | L22: 12c. | M22: =IF(ISBLANK(HLOOKUP(M$9,'2 - CSO INPUT'!$E$9:$AS$14,6,FALSE)),"",M10) ->  | N22: =IF(ISBLANK(HLOOKUP(N$9,'2 - CSO INPUT'!$E$9:$AS$14,6,FALSE)),"",N10) ->  | O22: =IF(ISBLANK(HLOOKUP(O$9,'2 - CSO INPUT'!$E$9:$AS$14,6,FALSE)),"",O10) ->  | P22: =IF(ISBLANK(HLOOKUP(P$9,'2 - CSO INPUT'!$E$9:$AS$14,6,FALSE)),"",P10) ->  | Q22: =IF(ISBLANK(HLOOKUP(Q$9,'2 - CSO INPUT'!$E$9:$AS$14,6,FALSE)),"",Q10) ->  | R22: =IF(ISBLANK(HLOOKUP(R$9,'2 - CSO INPUT'!$E$9:$AS$14,6,FALSE)),"",R10) ->  | S22: =IF(ISBLANK(HLOOKUP(S$9,'2 - CSO INPUT'!$E$9:$AS$14,6,FALSE)),"",S10) ->  | T22: =IF(ISBLANK(HLOOKUP(T$9,'2 - CSO INPUT'!$E$9:$AS$14,6,FALSE)),"",T10) ->  | X22: 12c. | Y22: =IF(ISBLANK(HLOOKUP(Y$9,'2 - CSO INPUT'!$E$9:$AS$14,6,FALSE)),"",Y10) ->  | Z22: =IF(ISBLANK(HLOOKUP(Z$9,'2 - CSO INPUT'!$E$9:$AS$14,6,FALSE)),"",Z10) ->  | AA22: =IF(ISBLANK(HLOOKUP(AA$9,'2 - CSO INPUT'!$E$9:$AS$14,6,FALSE)),"",AA10) ->  | AB22: =IF(ISBLANK(HLOOKUP(AB$9,'2 - CSO INPUT'!$E$9:$AS$14,6,FALSE)),"",AB10) ->  | AC22: =IF(ISBLANK(HLOOKUP(AC$9,'2 - CSO INPUT'!$E$9:$AS$14,6,FALSE)),"",AC10) ->  | AD22: =IF(ISBLANK(HLOOKUP(AD$9,'2 - CSO INPUT'!$E$9:$AS$14,6,FALSE)),"",AD10) ->  | AE22: =IF(ISBLANK(HLOOKUP(AE$9,'2 - CSO INPUT'!$E$9:$AS$14,6,FALSE)),"",AE10) ->  | AF22: =IF(ISBLANK(HLOOKUP(AF$9,'2 - CSO INPUT'!$E$9:$AS$14,6,FALSE)),"",AF10) ->  | AJ22: 12c. | AK22: =IF(ISBLANK(HLOOKUP(AK$9,'2 - CSO INPUT'!$E$9:$AS$14,6,FALSE)),"",AK10) ->  | AL22: =IF(ISBLANK(HLOOKUP(AL$9,'2 - CSO INPUT'!$E$9:$AS$14,6,FALSE)),"",AL10) ->  | AM22: =IF(ISBLANK(HLOOKUP(AM$9,'2 - CSO INPUT'!$E$9:$AS$14,6,FALSE)),"",AM10) ->  | AN22: =IF(ISBLANK(HLOOKUP(AN$9,'2 - CSO INPUT'!$E$9:$AS$14,6,FALSE)),"",AN10) ->  | AO22: =IF(ISBLANK(HLOOKUP(AO$9,'2 - CSO INPUT'!$E$9:$AS$14,6,FALSE)),"",AO10) ->  | AP22: =IF(ISBLANK(HLOOKUP(AP$9,'2 - CSO INPUT'!$E$9:$AS$14,6,FALSE)),"",AP10) ->  | AQ22: =IF(ISBLANK(HLOOKUP(AQ$9,'2 - CSO INPUT'!$E$9:$AS$14,6,FALSE)),"",AQ10) ->  | AR22: =IF(ISBLANK(HLOOKUP(AR$9,'2 - CSO INPUT'!$E$9:$AS$14,6,FALSE)),"",AR10) -> 
C23: 12. Green Infrastructure and Other Stormwater Controls | D23: d. Stormwater runoff after stormwater controls (MG). | E23: =IF(ISBLANK(HLOOKUP(E$9,'2 - CSO INPUT'!$E$9:$AS$14,6,FALSE)),"",VLOOKUP(CONCATENATE('4 - CSO VOLUME'!E$9,'4 - CSO VOLUME'!$L23),'CSO CALCULATIONS'!$A:$DA,105,FALSE)) ->  | F23: =IF(ISBLANK(HLOOKUP(F$9,'2 - CSO INPUT'!$E$9:$AS$14,6,FALSE)),"",VLOOKUP(CONCATENATE('4 - CSO VOLUME'!F$9,'4 - CSO VOLUME'!$L23),'CSO CALCULATIONS'!$A:$DA,105,FALSE)) ->  | G23: =IF(ISBLANK(HLOOKUP(G$9,'2 - CSO INPUT'!$E$9:$AS$14,6,FALSE)),"",VLOOKUP(CONCATENATE('4 - CSO VOLUME'!G$9,'4 - CSO VOLUME'!$L23),'CSO CALCULATIONS'!$A:$DA,105,FALSE)) ->  | H23: =IF(ISBLANK(HLOOKUP(H$9,'2 - CSO INPUT'!$E$9:$AS$14,6,FALSE)),"",VLOOKUP(CONCATENATE('4 - CSO VOLUME'!H$9,'4 - CSO VOLUME'!$L23),'CSO CALCULATIONS'!$A:$DA,105,FALSE)) ->  | L23: 12d. | M23: =IF(ISBLANK(HLOOKUP(M$9,'2 - CSO INPUT'!$E$9:$AS$14,6,FALSE)),"",VLOOKUP(CONCATENATE('4 - CSO VOLUME'!M$9,'4 - CSO VOLUME'!$L23),'CSO CALCULATIONS'!$A:$DA,105,FALSE)) ->  | N23: =IF(ISBLANK(HLOOKUP(N$9,'2 - CSO INPUT'!$E$9:$AS$14,6,FALSE)),"",VLOOKUP(CONCATENATE('4 - CSO VOLUME'!N$9,'4 - CSO VOLUME'!$L23),'CSO CALCULATIONS'!$A:$DA,105,FALSE)) ->  | O23: =IF(ISBLANK(HLOOKUP(O$9,'2 - CSO INPUT'!$E$9:$AS$14,6,FALSE)),"",VLOOKUP(CONCATENATE('4 - CSO VOLUME'!O$9,'4 - CSO VOLUME'!$L23),'CSO CALCULATIONS'!$A:$DA,105,FALSE)) ->  | P23: =IF(ISBLANK(HLOOKUP(P$9,'2 - CSO INPUT'!$E$9:$AS$14,6,FALSE)),"",VLOOKUP(CONCATENATE('4 - CSO VOLUME'!P$9,'4 - CSO VOLUME'!$L23),'CSO CALCULATIONS'!$A:$DA,105,FALSE)) ->  | Q23: =IF(ISBLANK(HLOOKUP(Q$9,'2 - CSO INPUT'!$E$9:$AS$14,6,FALSE)),"",VLOOKUP(CONCATENATE('4 - CSO VOLUME'!Q$9,'4 - CSO VOLUME'!$L23),'CSO CALCULATIONS'!$A:$DA,105,FALSE)) ->  | R23: =IF(ISBLANK(HLOOKUP(R$9,'2 - CSO INPUT'!$E$9:$AS$14,6,FALSE)),"",VLOOKUP(CONCATENATE('4 - CSO VOLUME'!R$9,'4 - CSO VOLUME'!$L23),'CSO CALCULATIONS'!$A:$DA,105,FALSE)) ->  | S23: =IF(ISBLANK(HLOOKUP(S$9,'2 - CSO INPUT'!$E$9:$AS$14,6,FALSE)),"",VLOOKUP(CONCATENATE('4 - CSO VOLUME'!S$9,'4 - CSO VOLUME'!$L23),'CSO CALCULATIONS'!$A:$DA,105,FALSE)) ->  | T23: =IF(ISBLANK(HLOOKUP(T$9,'2 - CSO INPUT'!$E$9:$AS$14,6,FALSE)),"",VLOOKUP(CONCATENATE('4 - CSO VOLUME'!T$9,'4 - CSO VOLUME'!$L23),'CSO CALCULATIONS'!$A:$DA,105,FALSE)) ->  | X23: 12d. | Y23: =IF(ISBLANK(HLOOKUP(Y$9,'2 - CSO INPUT'!$E$9:$AS$14,6,FALSE)),"",VLOOKUP(CONCATENATE('4 - CSO VOLUME'!Y$9,'4 - CSO VOLUME'!$X23),'CSO CALCULATIONS'!$A:$DA,105,FALSE)) ->  | Z23: =IF(ISBLANK(HLOOKUP(Z$9,'2 - CSO INPUT'!$E$9:$AS$14,6,FALSE)),"",VLOOKUP(CONCATENATE('4 - CSO VOLUME'!Z$9,'4 - CSO VOLUME'!$X23),'CSO CALCULATIONS'!$A:$DA,105,FALSE)) ->  | AA23: =IF(ISBLANK(HLOOKUP(AA$9,'2 - CSO INPUT'!$E$9:$AS$14,6,FALSE)),"",VLOOKUP(CONCATENATE('4 - CSO VOLUME'!AA$9,'4 - CSO VOLUME'!$X23),'CSO CALCULATIONS'!$A:$DA,105,FALSE)) ->  | AB23: =IF(ISBLANK(HLOOKUP(AB$9,'2 - CSO INPUT'!$E$9:$AS$14,6,FALSE)),"",VLOOKUP(CONCATENATE('4 - CSO VOLUME'!AB$9,'4 - CSO VOLUME'!$X23),'CSO CALCULATIONS'!$A:$DA,105,FALSE)) ->  | AC23: =IF(ISBLANK(HLOOKUP(AC$9,'2 - CSO INPUT'!$E$9:$AS$14,6,FALSE)),"",VLOOKUP(CONCATENATE('4 - CSO VOLUME'!AC$9,'4 - CSO VOLUME'!$X23),'CSO CALCULATIONS'!$A:$DA,105,FALSE)) ->  | AD23: =IF(ISBLANK(HLOOKUP(AD$9,'2 - CSO INPUT'!$E$9:$AS$14,6,FALSE)),"",VLOOKUP(CONCATENATE('4 - CSO VOLUME'!AD$9,'4 - CSO VOLUME'!$X23),'CSO CALCULATIONS'!$A:$DA,105,FALSE)) ->  | AE23: =IF(ISBLANK(HLOOKUP(AE$9,'2 - CSO INPUT'!$E$9:$AS$14,6,FALSE)),"",VLOOKUP(CONCATENATE('4 - CSO VOLUME'!AE$9,'4 - CSO VOLUME'!$X23),'CSO CALCULATIONS'!$A:$DA,105,FALSE)) ->  | AF23: =IF(ISBLANK(HLOOKUP(AF$9,'2 - CSO INPUT'!$E$9:$AS$14,6,FALSE)),"",VLOOKUP(CONCATENATE('4 - CSO VOLUME'!AF$9,'4 - CSO VOLUME'!$X23),'CSO CALCULATIONS'!$A:$DA,105,FALSE)) ->  | AJ23: 12d. | AK23: =IF(ISBLANK(HLOOKUP(AK$9,'2 - CSO INPUT'!$E$9:$AS$14,6,FALSE)),"",VLOOKUP(CONCATENATE('4 - CSO VOLUME'!AK$9,'4 - CSO VOLUME'!$AJ23),'CSO CALCULATIONS'!$A:$DA,105,FALSE)) ->  | AL23: =IF(ISBLANK(HLOOKUP(AL$9,'2 - CSO INPUT'!$E$9:$AS$14,6,FALSE)),"",VLOOKUP(CONCATENATE('4 - CSO VOLUME'!AL$9,'4 - CSO VOLUME'!$AJ23),'CSO CALCULATIONS'!$A:$DA,105,FALSE)) ->  | AM23: =IF(ISBLANK(HLOOKUP(AM$9,'2 - CSO INPUT'!$E$9:$AS$14,6,FALSE)),"",VLOOKUP(CONCATENATE('4 - CSO VOLUME'!AM$9,'4 - CSO VOLUME'!$AJ23),'CSO CALCULATIONS'!$A:$DA,105,FALSE)) ->  | AN23: =IF(ISBLANK(HLOOKUP(AN$9,'2 - CSO INPUT'!$E$9:$AS$14,6,FALSE)),"",VLOOKUP(CONCATENATE('4 - CSO VOLUME'!AN$9,'4 - CSO VOLUME'!$AJ23),'CSO CALCULATIONS'!$A:$DA,105,FALSE)) ->  | AO23: =IF(ISBLANK(HLOOKUP(AO$9,'2 - CSO INPUT'!$E$9:$AS$14,6,FALSE)),"",VLOOKUP(CONCATENATE('4 - CSO VOLUME'!AO$9,'4 - CSO VOLUME'!$AJ23),'CSO CALCULATIONS'!$A:$DA,105,FALSE)) ->  | AP23: =IF(ISBLANK(HLOOKUP(AP$9,'2 - CSO INPUT'!$E$9:$AS$14,6,FALSE)),"",VLOOKUP(CONCATENATE('4 - CSO VOLUME'!AP$9,'4 - CSO VOLUME'!$AJ23),'CSO CALCULATIONS'!$A:$DA,105,FALSE)) ->  | AQ23: =IF(ISBLANK(HLOOKUP(AQ$9,'2 - CSO INPUT'!$E$9:$AS$14,6,FALSE)),"",VLOOKUP(CONCATENATE('4 - CSO VOLUME'!AQ$9,'4 - CSO VOLUME'!$AJ23),'CSO CALCULATIONS'!$A:$DA,105,FALSE)) ->  | AR23: =IF(ISBLANK(HLOOKUP(AR$9,'2 - CSO INPUT'!$E$9:$AS$14,6,FALSE)),"",VLOOKUP(CONCATENATE('4 - CSO VOLUME'!AR$9,'4 - CSO VOLUME'!$AJ23),'CSO CALCULATIONS'!$A:$DA,105,FALSE)) -> 
C24: 13. Combined Sewage Controls | D24: a. Total combined sewage control (MG). | L24: 13a. | X24: 13a. | AJ24: 13a.
C25: 13. Combined Sewage Controls | D25: b. Dry weather flow rate (MGD). | L25: 13b. | X25: 13b. | AJ25: 13b.
C26: 13. Combined Sewage Controls | D26: c. Stormwater runoff after stormwater controls plus dry weather flow (MG). | E26: =IF(ISBLANK(HLOOKUP(E$9,'2 - CSO INPUT'!$E$9:$AS$14,6,FALSE)),"",VLOOKUP(CONCATENATE('4 - CSO VOLUME'!E$9,'4 - CSO VOLUME'!$L26),'CSO CALCULATIONS'!$A:$DA,105,FALSE)) ->  | F26: =IF(ISBLANK(HLOOKUP(F$9,'2 - CSO INPUT'!$E$9:$AS$14,6,FALSE)),"",VLOOKUP(CONCATENATE('4 - CSO VOLUME'!F$9,'4 - CSO VOLUME'!$L26),'CSO CALCULATIONS'!$A:$DA,105,FALSE)) ->  | G26: =IF(ISBLANK(HLOOKUP(G$9,'2 - CSO INPUT'!$E$9:$AS$14,6,FALSE)),"",VLOOKUP(CONCATENATE('4 - CSO VOLUME'!G$9,'4 - CSO VOLUME'!$L26),'CSO CALCULATIONS'!$A:$DA,105,FALSE)) ->  | H26: =IF(ISBLANK(HLOOKUP(H$9,'2 - CSO INPUT'!$E$9:$AS$14,6,FALSE)),"",VLOOKUP(CONCATENATE('4 - CSO VOLUME'!H$9,'4 - CSO VOLUME'!$L26),'CSO CALCULATIONS'!$A:$DA,105,FALSE)) ->  | L26: 13c. | M26: =IF(ISBLANK(HLOOKUP(M$9,'2 - CSO INPUT'!$E$9:$AS$14,6,FALSE)),"",VLOOKUP(CONCATENATE('4 - CSO VOLUME'!M$9,'4 - CSO VOLUME'!$L26),'CSO CALCULATIONS'!$A:$DA,105,FALSE)) ->  | N26: =IF(ISBLANK(HLOOKUP(N$9,'2 - CSO INPUT'!$E$9:$AS$14,6,FALSE)),"",VLOOKUP(CONCATENATE('4 - CSO VOLUME'!N$9,'4 - CSO VOLUME'!$L26),'CSO CALCULATIONS'!$A:$DA,105,FALSE)) ->  | O26: =IF(ISBLANK(HLOOKUP(O$9,'2 - CSO INPUT'!$E$9:$AS$14,6,FALSE)),"",VLOOKUP(CONCATENATE('4 - CSO VOLUME'!O$9,'4 - CSO VOLUME'!$L26),'CSO CALCULATIONS'!$A:$DA,105,FALSE)) ->  | P26: =IF(ISBLANK(HLOOKUP(P$9,'2 - CSO INPUT'!$E$9:$AS$14,6,FALSE)),"",VLOOKUP(CONCATENATE('4 - CSO VOLUME'!P$9,'4 - CSO VOLUME'!$L26),'CSO CALCULATIONS'!$A:$DA,105,FALSE)) ->  | Q26: =IF(ISBLANK(HLOOKUP(Q$9,'2 - CSO INPUT'!$E$9:$AS$14,6,FALSE)),"",VLOOKUP(CONCATENATE('4 - CSO VOLUME'!Q$9,'4 - CSO VOLUME'!$L26),'CSO CALCULATIONS'!$A:$DA,105,FALSE)) ->  | R26: =IF(ISBLANK(HLOOKUP(R$9,'2 - CSO INPUT'!$E$9:$AS$14,6,FALSE)),"",VLOOKUP(CONCATENATE('4 - CSO VOLUME'!R$9,'4 - CSO VOLUME'!$L26),'CSO CALCULATIONS'!$A:$DA,105,FALSE)) ->  | S26: =IF(ISBLANK(HLOOKUP(S$9,'2 - CSO INPUT'!$E$9:$AS$14,6,FALSE)),"",VLOOKUP(CONCATENATE('4 - CSO VOLUME'!S$9,'4 - CSO VOLUME'!$L26),'CSO CALCULATIONS'!$A:$DA,105,FALSE)) ->  | T26: =IF(ISBLANK(HLOOKUP(T$9,'2 - CSO INPUT'!$E$9:$AS$14,6,FALSE)),"",VLOOKUP(CONCATENATE('4 - CSO VOLUME'!T$9,'4 - CSO VOLUME'!$L26),'CSO CALCULATIONS'!$A:$DA,105,FALSE)) ->  | X26: 13c. | Y26: =IF(ISBLANK(HLOOKUP(Y$9,'2 - CSO INPUT'!$E$9:$AS$14,6,FALSE)),"",VLOOKUP(CONCATENATE('4 - CSO VOLUME'!Y$9,'4 - CSO VOLUME'!$X26),'CSO CALCULATIONS'!$A:$DA,105,FALSE)) ->  | Z26: =IF(ISBLANK(HLOOKUP(Z$9,'2 - CSO INPUT'!$E$9:$AS$14,6,FALSE)),"",VLOOKUP(CONCATENATE('4 - CSO VOLUME'!Z$9,'4 - CSO VOLUME'!$X26),'CSO CALCULATIONS'!$A:$DA,105,FALSE)) ->  | AA26: =IF(ISBLANK(HLOOKUP(AA$9,'2 - CSO INPUT'!$E$9:$AS$14,6,FALSE)),"",VLOOKUP(CONCATENATE('4 - CSO VOLUME'!AA$9,'4 - CSO VOLUME'!$X26),'CSO CALCULATIONS'!$A:$DA,105,FALSE)) ->  | AB26: =IF(ISBLANK(HLOOKUP(AB$9,'2 - CSO INPUT'!$E$9:$AS$14,6,FALSE)),"",VLOOKUP(CONCATENATE('4 - CSO VOLUME'!AB$9,'4 - CSO VOLUME'!$X26),'CSO CALCULATIONS'!$A:$DA,105,FALSE)) ->  | AC26: =IF(ISBLANK(HLOOKUP(AC$9,'2 - CSO INPUT'!$E$9:$AS$14,6,FALSE)),"",VLOOKUP(CONCATENATE('4 - CSO VOLUME'!AC$9,'4 - CSO VOLUME'!$X26),'CSO CALCULATIONS'!$A:$DA,105,FALSE)) ->  | AD26: =IF(ISBLANK(HLOOKUP(AD$9,'2 - CSO INPUT'!$E$9:$AS$14,6,FALSE)),"",VLOOKUP(CONCATENATE('4 - CSO VOLUME'!AD$9,'4 - CSO VOLUME'!$X26),'CSO CALCULATIONS'!$A:$DA,105,FALSE)) ->  | AE26: =IF(ISBLANK(HLOOKUP(AE$9,'2 - CSO INPUT'!$E$9:$AS$14,6,FALSE)),"",VLOOKUP(CONCATENATE('4 - CSO VOLUME'!AE$9,'4 - CSO VOLUME'!$X26),'CSO CALCULATIONS'!$A:$DA,105,FALSE)) ->  | AF26: =IF(ISBLANK(HLOOKUP(AF$9,'2 - CSO INPUT'!$E$9:$AS$14,6,FALSE)),"",VLOOKUP(CONCATENATE('4 - CSO VOLUME'!AF$9,'4 - CSO VOLUME'!$X26),'CSO CALCULATIONS'!$A:$DA,105,FALSE)) ->  | AJ26: 13c. | AK26: =IF(ISBLANK(HLOOKUP(AK$9,'2 - CSO INPUT'!$E$9:$AS$14,6,FALSE)),"",VLOOKUP(CONCATENATE('4 - CSO VOLUME'!AK$9,'4 - CSO VOLUME'!$AJ26),'CSO CALCULATIONS'!$A:$DA,105,FALSE)) ->  | AL26: =IF(ISBLANK(HLOOKUP(AL$9,'2 - CSO INPUT'!$E$9:$AS$14,6,FALSE)),"",VLOOKUP(CONCATENATE('4 - CSO VOLUME'!AL$9,'4 - CSO VOLUME'!$AJ26),'CSO CALCULATIONS'!$A:$DA,105,FALSE)) ->  | AM26: =IF(ISBLANK(HLOOKUP(AM$9,'2 - CSO INPUT'!$E$9:$AS$14,6,FALSE)),"",VLOOKUP(CONCATENATE('4 - CSO VOLUME'!AM$9,'4 - CSO VOLUME'!$AJ26),'CSO CALCULATIONS'!$A:$DA,105,FALSE)) ->  | AN26: =IF(ISBLANK(HLOOKUP(AN$9,'2 - CSO INPUT'!$E$9:$AS$14,6,FALSE)),"",VLOOKUP(CONCATENATE('4 - CSO VOLUME'!AN$9,'4 - CSO VOLUME'!$AJ26),'CSO CALCULATIONS'!$A:$DA,105,FALSE)) ->  | AO26: =IF(ISBLANK(HLOOKUP(AO$9,'2 - CSO INPUT'!$E$9:$AS$14,6,FALSE)),"",VLOOKUP(CONCATENATE('4 - CSO VOLUME'!AO$9,'4 - CSO VOLUME'!$AJ26),'CSO CALCULATIONS'!$A:$DA,105,FALSE)) ->  | AP26: =IF(ISBLANK(HLOOKUP(AP$9,'2 - CSO INPUT'!$E$9:$AS$14,6,FALSE)),"",VLOOKUP(CONCATENATE('4 - CSO VOLUME'!AP$9,'4 - CSO VOLUME'!$AJ26),'CSO CALCULATIONS'!$A:$DA,105,FALSE)) ->  | AQ26: =IF(ISBLANK(HLOOKUP(AQ$9,'2 - CSO INPUT'!$E$9:$AS$14,6,FALSE)),"",VLOOKUP(CONCATENATE('4 - CSO VOLUME'!AQ$9,'4 - CSO VOLUME'!$AJ26),'CSO CALCULATIONS'!$A:$DA,105,FALSE)) ->  | AR26: =IF(ISBLANK(HLOOKUP(AR$9,'2 - CSO INPUT'!$E$9:$AS$14,6,FALSE)),"",VLOOKUP(CONCATENATE('4 - CSO VOLUME'!AR$9,'4 - CSO VOLUME'!$AJ26),'CSO CALCULATIONS'!$A:$DA,105,FALSE)) -> 
C27: 13. Combined Sewage Controls | D27: d. Combined sewage after stormwater controls and combined sewage controls (MG). | E27: =IF(ISBLANK(HLOOKUP(E$9,'2 - CSO INPUT'!$E$9:$AS$14,6,FALSE)),"",VLOOKUP(CONCATENATE('4 - CSO VOLUME'!E$9,'4 - CSO VOLUME'!$L27),'CSO CALCULATIONS'!$A:$DA,105,FALSE)) ->  | F27: =IF(ISBLANK(HLOOKUP(F$9,'2 - CSO INPUT'!$E$9:$AS$14,6,FALSE)),"",VLOOKUP(CONCATENATE('4 - CSO VOLUME'!F$9,'4 - CSO VOLUME'!$L27),'CSO CALCULATIONS'!$A:$DA,105,FALSE)) ->  | G27: =IF(ISBLANK(HLOOKUP(G$9,'2 - CSO INPUT'!$E$9:$AS$14,6,FALSE)),"",VLOOKUP(CONCATENATE('4 - CSO VOLUME'!G$9,'4 - CSO VOLUME'!$L27),'CSO CALCULATIONS'!$A:$DA,105,FALSE)) ->  | H27: =IF(ISBLANK(HLOOKUP(H$9,'2 - CSO INPUT'!$E$9:$AS$14,6,FALSE)),"",VLOOKUP(CONCATENATE('4 - CSO VOLUME'!H$9,'4 - CSO VOLUME'!$L27),'CSO CALCULATIONS'!$A:$DA,105,FALSE)) ->  | L27: 13d. | M27: =IF(ISBLANK(HLOOKUP(M$9,'2 - CSO INPUT'!$E$9:$AS$14,6,FALSE)),"",VLOOKUP(CONCATENATE('4 - CSO VOLUME'!M$9,'4 - CSO VOLUME'!$L27),'CSO CALCULATIONS'!$A:$DA,105,FALSE)) ->  | N27: =IF(ISBLANK(HLOOKUP(N$9,'2 - CSO INPUT'!$E$9:$AS$14,6,FALSE)),"",VLOOKUP(CONCATENATE('4 - CSO VOLUME'!N$9,'4 - CSO VOLUME'!$L27),'CSO CALCULATIONS'!$A:$DA,105,FALSE)) ->  | O27: =IF(ISBLANK(HLOOKUP(O$9,'2 - CSO INPUT'!$E$9:$AS$14,6,FALSE)),"",VLOOKUP(CONCATENATE('4 - CSO VOLUME'!O$9,'4 - CSO VOLUME'!$L27),'CSO CALCULATIONS'!$A:$DA,105,FALSE)) ->  | P27: =IF(ISBLANK(HLOOKUP(P$9,'2 - CSO INPUT'!$E$9:$AS$14,6,FALSE)),"",VLOOKUP(CONCATENATE('4 - CSO VOLUME'!P$9,'4 - CSO VOLUME'!$L27),'CSO CALCULATIONS'!$A:$DA,105,FALSE)) ->  | Q27: =IF(ISBLANK(HLOOKUP(Q$9,'2 - CSO INPUT'!$E$9:$AS$14,6,FALSE)),"",VLOOKUP(CONCATENATE('4 - CSO VOLUME'!Q$9,'4 - CSO VOLUME'!$L27),'CSO CALCULATIONS'!$A:$DA,105,FALSE)) ->  | R27: =IF(ISBLANK(HLOOKUP(R$9,'2 - CSO INPUT'!$E$9:$AS$14,6,FALSE)),"",VLOOKUP(CONCATENATE('4 - CSO VOLUME'!R$9,'4 - CSO VOLUME'!$L27),'CSO CALCULATIONS'!$A:$DA,105,FALSE)) ->  | S27: =IF(ISBLANK(HLOOKUP(S$9,'2 - CSO INPUT'!$E$9:$AS$14,6,FALSE)),"",VLOOKUP(CONCATENATE('4 - CSO VOLUME'!S$9,'4 - CSO VOLUME'!$L27),'CSO CALCULATIONS'!$A:$DA,105,FALSE)) ->  | T27: =IF(ISBLANK(HLOOKUP(T$9,'2 - CSO INPUT'!$E$9:$AS$14,6,FALSE)),"",VLOOKUP(CONCATENATE('4 - CSO VOLUME'!T$9,'4 - CSO VOLUME'!$L27),'CSO CALCULATIONS'!$A:$DA,105,FALSE)) ->  | X27: 13d. | Y27: =IF(ISBLANK(HLOOKUP(Y$9,'2 - CSO INPUT'!$E$9:$AS$14,6,FALSE)),"",VLOOKUP(CONCATENATE('4 - CSO VOLUME'!Y$9,'4 - CSO VOLUME'!$X27),'CSO CALCULATIONS'!$A:$DA,105,FALSE)) ->  | Z27: =IF(ISBLANK(HLOOKUP(Z$9,'2 - CSO INPUT'!$E$9:$AS$14,6,FALSE)),"",VLOOKUP(CONCATENATE('4 - CSO VOLUME'!Z$9,'4 - CSO VOLUME'!$X27),'CSO CALCULATIONS'!$A:$DA,105,FALSE)) ->  | AA27: =IF(ISBLANK(HLOOKUP(AA$9,'2 - CSO INPUT'!$E$9:$AS$14,6,FALSE)),"",VLOOKUP(CONCATENATE('4 - CSO VOLUME'!AA$9,'4 - CSO VOLUME'!$X27),'CSO CALCULATIONS'!$A:$DA,105,FALSE)) ->  | AB27: =IF(ISBLANK(HLOOKUP(AB$9,'2 - CSO INPUT'!$E$9:$AS$14,6,FALSE)),"",VLOOKUP(CONCATENATE('4 - CSO VOLUME'!AB$9,'4 - CSO VOLUME'!$X27),'CSO CALCULATIONS'!$A:$DA,105,FALSE)) ->  | AC27: =IF(ISBLANK(HLOOKUP(AC$9,'2 - CSO INPUT'!$E$9:$AS$14,6,FALSE)),"",VLOOKUP(CONCATENATE('4 - CSO VOLUME'!AC$9,'4 - CSO VOLUME'!$X27),'CSO CALCULATIONS'!$A:$DA,105,FALSE)) ->  | AD27: =IF(ISBLANK(HLOOKUP(AD$9,'2 - CSO INPUT'!$E$9:$AS$14,6,FALSE)),"",VLOOKUP(CONCATENATE('4 - CSO VOLUME'!AD$9,'4 - CSO VOLUME'!$X27),'CSO CALCULATIONS'!$A:$DA,105,FALSE)) ->  | AE27: =IF(ISBLANK(HLOOKUP(AE$9,'2 - CSO INPUT'!$E$9:$AS$14,6,FALSE)),"",VLOOKUP(CONCATENATE('4 - CSO VOLUME'!AE$9,'4 - CSO VOLUME'!$X27),'CSO CALCULATIONS'!$A:$DA,105,FALSE)) ->  | AF27: =IF(ISBLANK(HLOOKUP(AF$9,'2 - CSO INPUT'!$E$9:$AS$14,6,FALSE)),"",VLOOKUP(CONCATENATE('4 - CSO VOLUME'!AF$9,'4 - CSO VOLUME'!$X27),'CSO CALCULATIONS'!$A:$DA,105,FALSE)) ->  | AJ27: 13d. | AK27: =IF(ISBLANK(HLOOKUP(AK$9,'2 - CSO INPUT'!$E$9:$AS$14,6,FALSE)),"",VLOOKUP(CONCATENATE('4 - CSO VOLUME'!AK$9,'4 - CSO VOLUME'!$AJ27),'CSO CALCULATIONS'!$A:$DA,105,FALSE)) ->  | AL27: =IF(ISBLANK(HLOOKUP(AL$9,'2 - CSO INPUT'!$E$9:$AS$14,6,FALSE)),"",VLOOKUP(CONCATENATE('4 - CSO VOLUME'!AL$9,'4 - CSO VOLUME'!$AJ27),'CSO CALCULATIONS'!$A:$DA,105,FALSE)) ->  | AM27: =IF(ISBLANK(HLOOKUP(AM$9,'2 - CSO INPUT'!$E$9:$AS$14,6,FALSE)),"",VLOOKUP(CONCATENATE('4 - CSO VOLUME'!AM$9,'4 - CSO VOLUME'!$AJ27),'CSO CALCULATIONS'!$A:$DA,105,FALSE)) ->  | AN27: =IF(ISBLANK(HLOOKUP(AN$9,'2 - CSO INPUT'!$E$9:$AS$14,6,FALSE)),"",VLOOKUP(CONCATENATE('4 - CSO VOLUME'!AN$9,'4 - CSO VOLUME'!$AJ27),'CSO CALCULATIONS'!$A:$DA,105,FALSE)) ->  | AO27: =IF(ISBLANK(HLOOKUP(AO$9,'2 - CSO INPUT'!$E$9:$AS$14,6,FALSE)),"",VLOOKUP(CONCATENATE('4 - CSO VOLUME'!AO$9,'4 - CSO VOLUME'!$AJ27),'CSO CALCULATIONS'!$A:$DA,105,FALSE)) ->  | AP27: =IF(ISBLANK(HLOOKUP(AP$9,'2 - CSO INPUT'!$E$9:$AS$14,6,FALSE)),"",VLOOKUP(CONCATENATE('4 - CSO VOLUME'!AP$9,'4 - CSO VOLUME'!$AJ27),'CSO CALCULATIONS'!$A:$DA,105,FALSE)) ->  | AQ27: =IF(ISBLANK(HLOOKUP(AQ$9,'2 - CSO INPUT'!$E$9:$AS$14,6,FALSE)),"",VLOOKUP(CONCATENATE('4 - CSO VOLUME'!AQ$9,'4 - CSO VOLUME'!$AJ27),'CSO CALCULATIONS'!$A:$DA,105,FALSE)) ->  | AR27: =IF(ISBLANK(HLOOKUP(AR$9,'2 - CSO INPUT'!$E$9:$AS$14,6,FALSE)),"",VLOOKUP(CONCATENATE('4 - CSO VOLUME'!AR$9,'4 - CSO VOLUME'!$AJ27),'CSO CALCULATIONS'!$A:$DA,105,FALSE)) -> 
C28: 14. CSO Flows | D28: a. CSO hydraulic control capacity (MGD). | E28: =IF(ISBLANK(HLOOKUP(E$9,'2 - CSO INPUT'!$E$9:$AS$14,6,FALSE)),"",HLOOKUP(E9,'2 - CSO INPUT'!$E$9:$AS$17,9,FALSE)) ->  | F28: =IF(ISBLANK(HLOOKUP(F$9,'2 - CSO INPUT'!$E$9:$AS$14,6,FALSE)),"",HLOOKUP(F9,'2 - CSO INPUT'!$E$9:$AS$17,9,FALSE)) ->  | G28: =IF(ISBLANK(HLOOKUP(G$9,'2 - CSO INPUT'!$E$9:$AS$14,6,FALSE)),"",HLOOKUP(G9,'2 - CSO INPUT'!$E$9:$AS$17,9,FALSE)) ->  | H28: =IF(ISBLANK(HLOOKUP(H$9,'2 - CSO INPUT'!$E$9:$AS$14,6,FALSE)),"",HLOOKUP(H9,'2 - CSO INPUT'!$E$9:$AS$17,9,FALSE)) ->  | L28: 14a. | M28: =IF(ISBLANK(HLOOKUP(M$9,'2 - CSO INPUT'!$E$9:$AS$14,6,FALSE)),"",HLOOKUP(M9,'2 - CSO INPUT'!$E$9:$AS$17,9,FALSE)) ->  | N28: =IF(ISBLANK(HLOOKUP(N$9,'2 - CSO INPUT'!$E$9:$AS$14,6,FALSE)),"",HLOOKUP(N9,'2 - CSO INPUT'!$E$9:$AS$17,9,FALSE)) ->  | O28: =IF(ISBLANK(HLOOKUP(O$9,'2 - CSO INPUT'!$E$9:$AS$14,6,FALSE)),"",HLOOKUP(O9,'2 - CSO INPUT'!$E$9:$AS$17,9,FALSE)) ->  | P28: =IF(ISBLANK(HLOOKUP(P$9,'2 - CSO INPUT'!$E$9:$AS$14,6,FALSE)),"",HLOOKUP(P9,'2 - CSO INPUT'!$E$9:$AS$17,9,FALSE)) ->  | Q28: =IF(ISBLANK(HLOOKUP(Q$9,'2 - CSO INPUT'!$E$9:$AS$14,6,FALSE)),"",HLOOKUP(Q9,'2 - CSO INPUT'!$E$9:$AS$17,9,FALSE)) ->  | R28: =IF(ISBLANK(HLOOKUP(R$9,'2 - CSO INPUT'!$E$9:$AS$14,6,FALSE)),"",HLOOKUP(R9,'2 - CSO INPUT'!$E$9:$AS$17,9,FALSE)) ->  | S28: =IF(ISBLANK(HLOOKUP(S$9,'2 - CSO INPUT'!$E$9:$AS$14,6,FALSE)),"",HLOOKUP(S9,'2 - CSO INPUT'!$E$9:$AS$17,9,FALSE)) ->  | T28: =IF(ISBLANK(HLOOKUP(T$9,'2 - CSO INPUT'!$E$9:$AS$14,6,FALSE)),"",HLOOKUP(T9,'2 - CSO INPUT'!$E$9:$AS$17,9,FALSE)) ->  | X28: 14a. | Y28: =IF(ISBLANK(HLOOKUP(Y$9,'2 - CSO INPUT'!$E$9:$AS$14,6,FALSE)),"",HLOOKUP(Y9,'2 - CSO INPUT'!$E$9:$AS$17,9,FALSE)) ->  | Z28: =IF(ISBLANK(HLOOKUP(Z$9,'2 - CSO INPUT'!$E$9:$AS$14,6,FALSE)),"",HLOOKUP(Z9,'2 - CSO INPUT'!$E$9:$AS$17,9,FALSE)) ->  | AA28: =IF(ISBLANK(HLOOKUP(AA$9,'2 - CSO INPUT'!$E$9:$AS$14,6,FALSE)),"",HLOOKUP(AA9,'2 - CSO INPUT'!$E$9:$AS$17,9,FALSE)) ->  | AB28: =IF(ISBLANK(HLOOKUP(AB$9,'2 - CSO INPUT'!$E$9:$AS$14,6,FALSE)),"",HLOOKUP(AB9,'2 - CSO INPUT'!$E$9:$AS$17,9,FALSE)) ->  | AC28: =IF(ISBLANK(HLOOKUP(AC$9,'2 - CSO INPUT'!$E$9:$AS$14,6,FALSE)),"",HLOOKUP(AC9,'2 - CSO INPUT'!$E$9:$AS$17,9,FALSE)) ->  | AD28: =IF(ISBLANK(HLOOKUP(AD$9,'2 - CSO INPUT'!$E$9:$AS$14,6,FALSE)),"",HLOOKUP(AD9,'2 - CSO INPUT'!$E$9:$AS$17,9,FALSE)) ->  | AE28: =IF(ISBLANK(HLOOKUP(AE$9,'2 - CSO INPUT'!$E$9:$AS$14,6,FALSE)),"",HLOOKUP(AE9,'2 - CSO INPUT'!$E$9:$AS$17,9,FALSE)) ->  | AF28: =IF(ISBLANK(HLOOKUP(AF$9,'2 - CSO INPUT'!$E$9:$AS$14,6,FALSE)),"",HLOOKUP(AF9,'2 - CSO INPUT'!$E$9:$AS$17,9,FALSE)) ->  | AJ28: 14a. | AK28: =IF(ISBLANK(HLOOKUP(AK$9,'2 - CSO INPUT'!$E$9:$AS$14,6,FALSE)),"",HLOOKUP(AK9,'2 - CSO INPUT'!$E$9:$AS$17,9,FALSE)) ->  | AL28: =IF(ISBLANK(HLOOKUP(AL$9,'2 - CSO INPUT'!$E$9:$AS$14,6,FALSE)),"",HLOOKUP(AL9,'2 - CSO INPUT'!$E$9:$AS$17,9,FALSE)) ->  | AM28: =IF(ISBLANK(HLOOKUP(AM$9,'2 - CSO INPUT'!$E$9:$AS$14,6,FALSE)),"",HLOOKUP(AM9,'2 - CSO INPUT'!$E$9:$AS$17,9,FALSE)) ->  | AN28: =IF(ISBLANK(HLOOKUP(AN$9,'2 - CSO INPUT'!$E$9:$AS$14,6,FALSE)),"",HLOOKUP(AN9,'2 - CSO INPUT'!$E$9:$AS$17,9,FALSE)) ->  | AO28: =IF(ISBLANK(HLOOKUP(AO$9,'2 - CSO INPUT'!$E$9:$AS$14,6,FALSE)),"",HLOOKUP(AO9,'2 - CSO INPUT'!$E$9:$AS$17,9,FALSE)) ->  | AP28: =IF(ISBLANK(HLOOKUP(AP$9,'2 - CSO INPUT'!$E$9:$AS$14,6,FALSE)),"",HLOOKUP(AP9,'2 - CSO INPUT'!$E$9:$AS$17,9,FALSE)) ->  | AQ28: =IF(ISBLANK(HLOOKUP(AQ$9,'2 - CSO INPUT'!$E$9:$AS$14,6,FALSE)),"",HLOOKUP(AQ9,'2 - CSO INPUT'!$E$9:$AS$17,9,FALSE)) ->  | AR28: =IF(ISBLANK(HLOOKUP(AR$9,'2 - CSO INPUT'!$E$9:$AS$14,6,FALSE)),"",HLOOKUP(AR9,'2 - CSO INPUT'!$E$9:$AS$17,9,FALSE)) -> 
C29: 14. CSO Flows | D29: b. Total CSO volume (MG). | E29: =IF(ISBLANK(HLOOKUP(E$9,'2 - CSO INPUT'!$E$9:$AS$14,6,FALSE)),"",VLOOKUP(CONCATENATE('4 - CSO VOLUME'!E$9,'4 - CSO VOLUME'!$L29),'CSO CALCULATIONS'!$A:$DA,105,FALSE)) ->  | F29: =IF(ISBLANK(HLOOKUP(F$9,'2 - CSO INPUT'!$E$9:$AS$14,6,FALSE)),"",VLOOKUP(CONCATENATE('4 - CSO VOLUME'!F$9,'4 - CSO VOLUME'!$L29),'CSO CALCULATIONS'!$A:$DA,105,FALSE)) ->  | G29: =IF(ISBLANK(HLOOKUP(G$9,'2 - CSO INPUT'!$E$9:$AS$14,6,FALSE)),"",VLOOKUP(CONCATENATE('4 - CSO VOLUME'!G$9,'4 - CSO VOLUME'!$L29),'CSO CALCULATIONS'!$A:$DA,105,FALSE)) ->  | H29: =IF(ISBLANK(HLOOKUP(H$9,'2 - CSO INPUT'!$E$9:$AS$14,6,FALSE)),"",VLOOKUP(CONCATENATE('4 - CSO VOLUME'!H$9,'4 - CSO VOLUME'!$L29),'CSO CALCULATIONS'!$A:$DA,105,FALSE)) ->  | L29: 14b. | M29: =IF(ISBLANK(HLOOKUP(M$9,'2 - CSO INPUT'!$E$9:$AS$14,6,FALSE)),"",VLOOKUP(CONCATENATE('4 - CSO VOLUME'!M$9,'4 - CSO VOLUME'!$L29),'CSO CALCULATIONS'!$A:$DA,105,FALSE)) ->  | N29: =IF(ISBLANK(HLOOKUP(N$9,'2 - CSO INPUT'!$E$9:$AS$14,6,FALSE)),"",VLOOKUP(CONCATENATE('4 - CSO VOLUME'!N$9,'4 - CSO VOLUME'!$L29),'CSO CALCULATIONS'!$A:$DA,105,FALSE)) ->  | O29: =IF(ISBLANK(HLOOKUP(O$9,'2 - CSO INPUT'!$E$9:$AS$14,6,FALSE)),"",VLOOKUP(CONCATENATE('4 - CSO VOLUME'!O$9,'4 - CSO VOLUME'!$L29),'CSO CALCULATIONS'!$A:$DA,105,FALSE)) ->  | P29: =IF(ISBLANK(HLOOKUP(P$9,'2 - CSO INPUT'!$E$9:$AS$14,6,FALSE)),"",VLOOKUP(CONCATENATE('4 - CSO VOLUME'!P$9,'4 - CSO VOLUME'!$L29),'CSO CALCULATIONS'!$A:$DA,105,FALSE)) ->  | Q29: =IF(ISBLANK(HLOOKUP(Q$9,'2 - CSO INPUT'!$E$9:$AS$14,6,FALSE)),"",VLOOKUP(CONCATENATE('4 - CSO VOLUME'!Q$9,'4 - CSO VOLUME'!$L29),'CSO CALCULATIONS'!$A:$DA,105,FALSE)) ->  | R29: =IF(ISBLANK(HLOOKUP(R$9,'2 - CSO INPUT'!$E$9:$AS$14,6,FALSE)),"",VLOOKUP(CONCATENATE('4 - CSO VOLUME'!R$9,'4 - CSO VOLUME'!$L29),'CSO CALCULATIONS'!$A:$DA,105,FALSE)) ->  | S29: =IF(ISBLANK(HLOOKUP(S$9,'2 - CSO INPUT'!$E$9:$AS$14,6,FALSE)),"",VLOOKUP(CONCATENATE('4 - CSO VOLUME'!S$9,'4 - CSO VOLUME'!$L29),'CSO CALCULATIONS'!$A:$DA,105,FALSE)) ->  | T29: =IF(ISBLANK(HLOOKUP(T$9,'2 - CSO INPUT'!$E$9:$AS$14,6,FALSE)),"",VLOOKUP(CONCATENATE('4 - CSO VOLUME'!T$9,'4 - CSO VOLUME'!$L29),'CSO CALCULATIONS'!$A:$DA,105,FALSE)) ->  | X29: 14b. | Y29: =IF(ISBLANK(HLOOKUP(Y$9,'2 - CSO INPUT'!$E$9:$AS$14,6,FALSE)),"",VLOOKUP(CONCATENATE('4 - CSO VOLUME'!Y$9,'4 - CSO VOLUME'!$X29),'CSO CALCULATIONS'!$A:$DA,105,FALSE)) ->  | Z29: =IF(ISBLANK(HLOOKUP(Z$9,'2 - CSO INPUT'!$E$9:$AS$14,6,FALSE)),"",VLOOKUP(CONCATENATE('4 - CSO VOLUME'!Z$9,'4 - CSO VOLUME'!$X29),'CSO CALCULATIONS'!$A:$DA,105,FALSE)) ->  | AA29: =IF(ISBLANK(HLOOKUP(AA$9,'2 - CSO INPUT'!$E$9:$AS$14,6,FALSE)),"",VLOOKUP(CONCATENATE('4 - CSO VOLUME'!AA$9,'4 - CSO VOLUME'!$X29),'CSO CALCULATIONS'!$A:$DA,105,FALSE)) ->  | AB29: =IF(ISBLANK(HLOOKUP(AB$9,'2 - CSO INPUT'!$E$9:$AS$14,6,FALSE)),"",VLOOKUP(CONCATENATE('4 - CSO VOLUME'!AB$9,'4 - CSO VOLUME'!$X29),'CSO CALCULATIONS'!$A:$DA,105,FALSE)) ->  | AC29: =IF(ISBLANK(HLOOKUP(AC$9,'2 - CSO INPUT'!$E$9:$AS$14,6,FALSE)),"",VLOOKUP(CONCATENATE('4 - CSO VOLUME'!AC$9,'4 - CSO VOLUME'!$X29),'CSO CALCULATIONS'!$A:$DA,105,FALSE)) ->  | AD29: =IF(ISBLANK(HLOOKUP(AD$9,'2 - CSO INPUT'!$E$9:$AS$14,6,FALSE)),"",VLOOKUP(CONCATENATE('4 - CSO VOLUME'!AD$9,'4 - CSO VOLUME'!$X29),'CSO CALCULATIONS'!$A:$DA,105,FALSE)) ->  | AE29: =IF(ISBLANK(HLOOKUP(AE$9,'2 - CSO INPUT'!$E$9:$AS$14,6,FALSE)),"",VLOOKUP(CONCATENATE('4 - CSO VOLUME'!AE$9,'4 - CSO VOLUME'!$X29),'CSO CALCULATIONS'!$A:$DA,105,FALSE)) ->  | AF29: =IF(ISBLANK(HLOOKUP(AF$9,'2 - CSO INPUT'!$E$9:$AS$14,6,FALSE)),"",VLOOKUP(CONCATENATE('4 - CSO VOLUME'!AF$9,'4 - CSO VOLUME'!$X29),'CSO CALCULATIONS'!$A:$DA,105,FALSE)) ->  | AJ29: 14b. | AK29: =IF(ISBLANK(HLOOKUP(AK$9,'2 - CSO INPUT'!$E$9:$AS$14,6,FALSE)),"",VLOOKUP(CONCATENATE('4 - CSO VOLUME'!AK$9,'4 - CSO VOLUME'!$AJ29),'CSO CALCULATIONS'!$A:$DA,105,FALSE)) ->  | AL29: =IF(ISBLANK(HLOOKUP(AL$9,'2 - CSO INPUT'!$E$9:$AS$14,6,FALSE)),"",VLOOKUP(CONCATENATE('4 - CSO VOLUME'!AL$9,'4 - CSO VOLUME'!$AJ29),'CSO CALCULATIONS'!$A:$DA,105,FALSE)) ->  | AM29: =IF(ISBLANK(HLOOKUP(AM$9,'2 - CSO INPUT'!$E$9:$AS$14,6,FALSE)),"",VLOOKUP(CONCATENATE('4 - CSO VOLUME'!AM$9,'4 - CSO VOLUME'!$AJ29),'CSO CALCULATIONS'!$A:$DA,105,FALSE)) ->  | AN29: =IF(ISBLANK(HLOOKUP(AN$9,'2 - CSO INPUT'!$E$9:$AS$14,6,FALSE)),"",VLOOKUP(CONCATENATE('4 - CSO VOLUME'!AN$9,'4 - CSO VOLUME'!$AJ29),'CSO CALCULATIONS'!$A:$DA,105,FALSE)) ->  | AO29: =IF(ISBLANK(HLOOKUP(AO$9,'2 - CSO INPUT'!$E$9:$AS$14,6,FALSE)),"",VLOOKUP(CONCATENATE('4 - CSO VOLUME'!AO$9,'4 - CSO VOLUME'!$AJ29),'CSO CALCULATIONS'!$A:$DA,105,FALSE)) ->  | AP29: =IF(ISBLANK(HLOOKUP(AP$9,'2 - CSO INPUT'!$E$9:$AS$14,6,FALSE)),"",VLOOKUP(CONCATENATE('4 - CSO VOLUME'!AP$9,'4 - CSO VOLUME'!$AJ29),'CSO CALCULATIONS'!$A:$DA,105,FALSE)) ->  | AQ29: =IF(ISBLANK(HLOOKUP(AQ$9,'2 - CSO INPUT'!$E$9:$AS$14,6,FALSE)),"",VLOOKUP(CONCATENATE('4 - CSO VOLUME'!AQ$9,'4 - CSO VOLUME'!$AJ29),'CSO CALCULATIONS'!$A:$DA,105,FALSE)) ->  | AR29: =IF(ISBLANK(HLOOKUP(AR$9,'2 - CSO INPUT'!$E$9:$AS$14,6,FALSE)),"",VLOOKUP(CONCATENATE('4 - CSO VOLUME'!AR$9,'4 - CSO VOLUME'!$AJ29),'CSO CALCULATIONS'!$A:$DA,105,FALSE)) -> 
C30: 14. CSO Flows | D30: c. CSO treatment capacity (MGD). | E30: =IF(ISBLANK(HLOOKUP(E$9,'2 - CSO INPUT'!$E$9:$AS$14,6,FALSE)),"",'2 - CSO INPUT'!E18) ->  | F30: =IF(ISBLANK(HLOOKUP(F$9,'2 - CSO INPUT'!$E$9:$AS$14,6,FALSE)),"",'2 - CSO INPUT'!F18) ->  | G30: =IF(ISBLANK(HLOOKUP(G$9,'2 - CSO INPUT'!$E$9:$AS$14,6,FALSE)),"",'2 - CSO INPUT'!G18) ->  | H30: =IF(ISBLANK(HLOOKUP(H$9,'2 - CSO INPUT'!$E$9:$AS$14,6,FALSE)),"",'2 - CSO INPUT'!H18) ->  | L30: 14c. | M30: =IF(ISBLANK(HLOOKUP(M$9,'2 - CSO INPUT'!$E$9:$AS$14,6,FALSE)),"",'2 - CSO INPUT'!M18) ->  | N30: =IF(ISBLANK(HLOOKUP(N$9,'2 - CSO INPUT'!$E$9:$AS$14,6,FALSE)),"",'2 - CSO INPUT'!N18) ->  | O30: =IF(ISBLANK(HLOOKUP(O$9,'2 - CSO INPUT'!$E$9:$AS$14,6,FALSE)),"",'2 - CSO INPUT'!O18) ->  | P30: =IF(ISBLANK(HLOOKUP(P$9,'2 - CSO INPUT'!$E$9:$AS$14,6,FALSE)),"",'2 - CSO INPUT'!P18) ->  | Q30: =IF(ISBLANK(HLOOKUP(Q$9,'2 - CSO INPUT'!$E$9:$AS$14,6,FALSE)),"",'2 - CSO INPUT'!Q18) ->  | R30: =IF(ISBLANK(HLOOKUP(R$9,'2 - CSO INPUT'!$E$9:$AS$14,6,FALSE)),"",'2 - CSO INPUT'!R18) ->  | S30: =IF(ISBLANK(HLOOKUP(S$9,'2 - CSO INPUT'!$E$9:$AS$14,6,FALSE)),"",'2 - CSO INPUT'!S18) ->  | T30: =IF(ISBLANK(HLOOKUP(T$9,'2 - CSO INPUT'!$E$9:$AS$14,6,FALSE)),"",'2 - CSO INPUT'!T18) ->  | X30: 14c. | Y30: =IF(ISBLANK(HLOOKUP(Y$9,'2 - CSO INPUT'!$E$9:$AS$14,6,FALSE)),"",'2 - CSO INPUT'!Y18) ->  | Z30: =IF(ISBLANK(HLOOKUP(Z$9,'2 - CSO INPUT'!$E$9:$AS$14,6,FALSE)),"",'2 - CSO INPUT'!Z18) ->  | AA30: =IF(ISBLANK(HLOOKUP(AA$9,'2 - CSO INPUT'!$E$9:$AS$14,6,FALSE)),"",'2 - CSO INPUT'!AA18) ->  | AB30: =IF(ISBLANK(HLOOKUP(AB$9,'2 - CSO INPUT'!$E$9:$AS$14,6,FALSE)),"",'2 - CSO INPUT'!AB18) ->  | AC30: =IF(ISBLANK(HLOOKUP(AC$9,'2 - CSO INPUT'!$E$9:$AS$14,6,FALSE)),"",'2 - CSO INPUT'!AC18) ->  | AD30: =IF(ISBLANK(HLOOKUP(AD$9,'2 - CSO INPUT'!$E$9:$AS$14,6,FALSE)),"",'2 - CSO INPUT'!AD18) ->  | AE30: =IF(ISBLANK(HLOOKUP(AE$9,'2 - CSO INPUT'!$E$9:$AS$14,6,FALSE)),"",'2 - CSO INPUT'!AE18) ->  | AF30: =IF(ISBLANK(HLOOKUP(AF$9,'2 - CSO INPUT'!$E$9:$AS$14,6,FALSE)),"",'2 - CSO INPUT'!AF18) ->  | AJ30: 14c. | AK30: =IF(ISBLANK(HLOOKUP(AK$9,'2 - CSO INPUT'!$E$9:$AS$14,6,FALSE)),"",'2 - CSO INPUT'!AK18) ->  | AL30: =IF(ISBLANK(HLOOKUP(AL$9,'2 - CSO INPUT'!$E$9:$AS$14,6,FALSE)),"",'2 - CSO INPUT'!AL18) ->  | AM30: =IF(ISBLANK(HLOOKUP(AM$9,'2 - CSO INPUT'!$E$9:$AS$14,6,FALSE)),"",'2 - CSO INPUT'!AM18) ->  | AN30: =IF(ISBLANK(HLOOKUP(AN$9,'2 - CSO INPUT'!$E$9:$AS$14,6,FALSE)),"",'2 - CSO INPUT'!AN18) ->  | AO30: =IF(ISBLANK(HLOOKUP(AO$9,'2 - CSO INPUT'!$E$9:$AS$14,6,FALSE)),"",'2 - CSO INPUT'!AO18) ->  | AP30: =IF(ISBLANK(HLOOKUP(AP$9,'2 - CSO INPUT'!$E$9:$AS$14,6,FALSE)),"",'2 - CSO INPUT'!AP18) ->  | AQ30: =IF(ISBLANK(HLOOKUP(AQ$9,'2 - CSO INPUT'!$E$9:$AS$14,6,FALSE)),"",'2 - CSO INPUT'!AQ18) ->  | AR30: =IF(ISBLANK(HLOOKUP(AR$9,'2 - CSO INPUT'!$E$9:$AS$14,6,FALSE)),"",'2 - CSO INPUT'!AR18) -> 
C31: 14. CSO Flows | D31: d. Treated CSO discharge (MG). | E31: =IF(ISBLANK(HLOOKUP(E$9,'2 - CSO INPUT'!$E$9:$AS$14,6,FALSE)),"",VLOOKUP(CONCATENATE('4 - CSO VOLUME'!E$9,'4 - CSO VOLUME'!$L31),'CSO CALCULATIONS'!$A:$DA,105,FALSE)) ->  | F31: =IF(ISBLANK(HLOOKUP(F$9,'2 - CSO INPUT'!$E$9:$AS$14,6,FALSE)),"",VLOOKUP(CONCATENATE('4 - CSO VOLUME'!F$9,'4 - CSO VOLUME'!$L31),'CSO CALCULATIONS'!$A:$DA,105,FALSE)) ->  | G31: =IF(ISBLANK(HLOOKUP(G$9,'2 - CSO INPUT'!$E$9:$AS$14,6,FALSE)),"",VLOOKUP(CONCATENATE('4 - CSO VOLUME'!G$9,'4 - CSO VOLUME'!$L31),'CSO CALCULATIONS'!$A:$DA,105,FALSE)) ->  | H31: =IF(ISBLANK(HLOOKUP(H$9,'2 - CSO INPUT'!$E$9:$AS$14,6,FALSE)),"",VLOOKUP(CONCATENATE('4 - CSO VOLUME'!H$9,'4 - CSO VOLUME'!$L31),'CSO CALCULATIONS'!$A:$DA,105,FALSE)) ->  | L31: 14d. | M31: =IF(ISBLANK(HLOOKUP(M$9,'2 - CSO INPUT'!$E$9:$AS$14,6,FALSE)),"",VLOOKUP(CONCATENATE('4 - CSO VOLUME'!M$9,'4 - CSO VOLUME'!$L31),'CSO CALCULATIONS'!$A:$DA,105,FALSE)) ->  | N31: =IF(ISBLANK(HLOOKUP(N$9,'2 - CSO INPUT'!$E$9:$AS$14,6,FALSE)),"",VLOOKUP(CONCATENATE('4 - CSO VOLUME'!N$9,'4 - CSO VOLUME'!$L31),'CSO CALCULATIONS'!$A:$DA,105,FALSE)) ->  | O31: =IF(ISBLANK(HLOOKUP(O$9,'2 - CSO INPUT'!$E$9:$AS$14,6,FALSE)),"",VLOOKUP(CONCATENATE('4 - CSO VOLUME'!O$9,'4 - CSO VOLUME'!$L31),'CSO CALCULATIONS'!$A:$DA,105,FALSE)) ->  | P31: =IF(ISBLANK(HLOOKUP(P$9,'2 - CSO INPUT'!$E$9:$AS$14,6,FALSE)),"",VLOOKUP(CONCATENATE('4 - CSO VOLUME'!P$9,'4 - CSO VOLUME'!$L31),'CSO CALCULATIONS'!$A:$DA,105,FALSE)) ->  | Q31: =IF(ISBLANK(HLOOKUP(Q$9,'2 - CSO INPUT'!$E$9:$AS$14,6,FALSE)),"",VLOOKUP(CONCATENATE('4 - CSO VOLUME'!Q$9,'4 - CSO VOLUME'!$L31),'CSO CALCULATIONS'!$A:$DA,105,FALSE)) ->  | R31: =IF(ISBLANK(HLOOKUP(R$9,'2 - CSO INPUT'!$E$9:$AS$14,6,FALSE)),"",VLOOKUP(CONCATENATE('4 - CSO VOLUME'!R$9,'4 - CSO VOLUME'!$L31),'CSO CALCULATIONS'!$A:$DA,105,FALSE)) ->  | S31: =IF(ISBLANK(HLOOKUP(S$9,'2 - CSO INPUT'!$E$9:$AS$14,6,FALSE)),"",VLOOKUP(CONCATENATE('4 - CSO VOLUME'!S$9,'4 - CSO VOLUME'!$L31),'CSO CALCULATIONS'!$A:$DA,105,FALSE)) ->  | T31: =IF(ISBLANK(HLOOKUP(T$9,'2 - CSO INPUT'!$E$9:$AS$14,6,FALSE)),"",VLOOKUP(CONCATENATE('4 - CSO VOLUME'!T$9,'4 - CSO VOLUME'!$L31),'CSO CALCULATIONS'!$A:$DA,105,FALSE)) ->  | X31: 14d. | Y31: =IF(ISBLANK(HLOOKUP(Y$9,'2 - CSO INPUT'!$E$9:$AS$14,6,FALSE)),"",VLOOKUP(CONCATENATE('4 - CSO VOLUME'!Y$9,'4 - CSO VOLUME'!$X31),'CSO CALCULATIONS'!$A:$DA,105,FALSE)) ->  | Z31: =IF(ISBLANK(HLOOKUP(Z$9,'2 - CSO INPUT'!$E$9:$AS$14,6,FALSE)),"",VLOOKUP(CONCATENATE('4 - CSO VOLUME'!Z$9,'4 - CSO VOLUME'!$X31),'CSO CALCULATIONS'!$A:$DA,105,FALSE)) ->  | AA31: =IF(ISBLANK(HLOOKUP(AA$9,'2 - CSO INPUT'!$E$9:$AS$14,6,FALSE)),"",VLOOKUP(CONCATENATE('4 - CSO VOLUME'!AA$9,'4 - CSO VOLUME'!$X31),'CSO CALCULATIONS'!$A:$DA,105,FALSE)) ->  | AB31: =IF(ISBLANK(HLOOKUP(AB$9,'2 - CSO INPUT'!$E$9:$AS$14,6,FALSE)),"",VLOOKUP(CONCATENATE('4 - CSO VOLUME'!AB$9,'4 - CSO VOLUME'!$X31),'CSO CALCULATIONS'!$A:$DA,105,FALSE)) ->  | AC31: =IF(ISBLANK(HLOOKUP(AC$9,'2 - CSO INPUT'!$E$9:$AS$14,6,FALSE)),"",VLOOKUP(CONCATENATE('4 - CSO VOLUME'!AC$9,'4 - CSO VOLUME'!$X31),'CSO CALCULATIONS'!$A:$DA,105,FALSE)) ->  | AD31: =IF(ISBLANK(HLOOKUP(AD$9,'2 - CSO INPUT'!$E$9:$AS$14,6,FALSE)),"",VLOOKUP(CONCATENATE('4 - CSO VOLUME'!AD$9,'4 - CSO VOLUME'!$X31),'CSO CALCULATIONS'!$A:$DA,105,FALSE)) ->  | AE31: =IF(ISBLANK(HLOOKUP(AE$9,'2 - CSO INPUT'!$E$9:$AS$14,6,FALSE)),"",VLOOKUP(CONCATENATE('4 - CSO VOLUME'!AE$9,'4 - CSO VOLUME'!$X31),'CSO CALCULATIONS'!$A:$DA,105,FALSE)) ->  | AF31: =IF(ISBLANK(HLOOKUP(AF$9,'2 - CSO INPUT'!$E$9:$AS$14,6,FALSE)),"",VLOOKUP(CONCATENATE('4 - CSO VOLUME'!AF$9,'4 - CSO VOLUME'!$X31),'CSO CALCULATIONS'!$A:$DA,105,FALSE)) ->  | AJ31: 14d. | AK31: =IF(ISBLANK(HLOOKUP(AK$9,'2 - CSO INPUT'!$E$9:$AS$14,6,FALSE)),"",VLOOKUP(CONCATENATE('4 - CSO VOLUME'!AK$9,'4 - CSO VOLUME'!$AJ31),'CSO CALCULATIONS'!$A:$DA,105,FALSE)) ->  | AL31: =IF(ISBLANK(HLOOKUP(AL$9,'2 - CSO INPUT'!$E$9:$AS$14,6,FALSE)),"",VLOOKUP(CONCATENATE('4 - CSO VOLUME'!AL$9,'4 - CSO VOLUME'!$AJ31),'CSO CALCULATIONS'!$A:$DA,105,FALSE)) ->  | AM31: =IF(ISBLANK(HLOOKUP(AM$9,'2 - CSO INPUT'!$E$9:$AS$14,6,FALSE)),"",VLOOKUP(CONCATENATE('4 - CSO VOLUME'!AM$9,'4 - CSO VOLUME'!$AJ31),'CSO CALCULATIONS'!$A:$DA,105,FALSE)) ->  | AN31: =IF(ISBLANK(HLOOKUP(AN$9,'2 - CSO INPUT'!$E$9:$AS$14,6,FALSE)),"",VLOOKUP(CONCATENATE('4 - CSO VOLUME'!AN$9,'4 - CSO VOLUME'!$AJ31),'CSO CALCULATIONS'!$A:$DA,105,FALSE)) ->  | AO31: =IF(ISBLANK(HLOOKUP(AO$9,'2 - CSO INPUT'!$E$9:$AS$14,6,FALSE)),"",VLOOKUP(CONCATENATE('4 - CSO VOLUME'!AO$9,'4 - CSO VOLUME'!$AJ31),'CSO CALCULATIONS'!$A:$DA,105,FALSE)) ->  | AP31: =IF(ISBLANK(HLOOKUP(AP$9,'2 - CSO INPUT'!$E$9:$AS$14,6,FALSE)),"",VLOOKUP(CONCATENATE('4 - CSO VOLUME'!AP$9,'4 - CSO VOLUME'!$AJ31),'CSO CALCULATIONS'!$A:$DA,105,FALSE)) ->  | AQ31: =IF(ISBLANK(HLOOKUP(AQ$9,'2 - CSO INPUT'!$E$9:$AS$14,6,FALSE)),"",VLOOKUP(CONCATENATE('4 - CSO VOLUME'!AQ$9,'4 - CSO VOLUME'!$AJ31),'CSO CALCULATIONS'!$A:$DA,105,FALSE)) ->  | AR31: =IF(ISBLANK(HLOOKUP(AR$9,'2 - CSO INPUT'!$E$9:$AS$14,6,FALSE)),"",VLOOKUP(CONCATENATE('4 - CSO VOLUME'!AR$9,'4 - CSO VOLUME'!$AJ31),'CSO CALCULATIONS'!$A:$DA,105,FALSE)) -> 
C32: 14. CSO Flows | D32: e. Untreated CSO discharge (MG). | E32: =IF(ISBLANK(HLOOKUP(E$9,'2 - CSO INPUT'!$E$9:$AS$14,6,FALSE)),"",VLOOKUP(CONCATENATE('4 - CSO VOLUME'!E$9,'4 - CSO VOLUME'!$L32),'CSO CALCULATIONS'!$A:$DA,105,FALSE)) ->  | F32: =IF(ISBLANK(HLOOKUP(F$9,'2 - CSO INPUT'!$E$9:$AS$14,6,FALSE)),"",VLOOKUP(CONCATENATE('4 - CSO VOLUME'!F$9,'4 - CSO VOLUME'!$L32),'CSO CALCULATIONS'!$A:$DA,105,FALSE)) ->  | G32: =IF(ISBLANK(HLOOKUP(G$9,'2 - CSO INPUT'!$E$9:$AS$14,6,FALSE)),"",VLOOKUP(CONCATENATE('4 - CSO VOLUME'!G$9,'4 - CSO VOLUME'!$L32),'CSO CALCULATIONS'!$A:$DA,105,FALSE)) ->  | H32: =IF(ISBLANK(HLOOKUP(H$9,'2 - CSO INPUT'!$E$9:$AS$14,6,FALSE)),"",VLOOKUP(CONCATENATE('4 - CSO VOLUME'!H$9,'4 - CSO VOLUME'!$L32),'CSO CALCULATIONS'!$A:$DA,105,FALSE)) ->  | L32: 14e. | M32: =IF(ISBLANK(HLOOKUP(M$9,'2 - CSO INPUT'!$E$9:$AS$14,6,FALSE)),"",VLOOKUP(CONCATENATE('4 - CSO VOLUME'!M$9,'4 - CSO VOLUME'!$L32),'CSO CALCULATIONS'!$A:$DA,105,FALSE)) ->  | N32: =IF(ISBLANK(HLOOKUP(N$9,'2 - CSO INPUT'!$E$9:$AS$14,6,FALSE)),"",VLOOKUP(CONCATENATE('4 - CSO VOLUME'!N$9,'4 - CSO VOLUME'!$L32),'CSO CALCULATIONS'!$A:$DA,105,FALSE)) ->  | O32: =IF(ISBLANK(HLOOKUP(O$9,'2 - CSO INPUT'!$E$9:$AS$14,6,FALSE)),"",VLOOKUP(CONCATENATE('4 - CSO VOLUME'!O$9,'4 - CSO VOLUME'!$L32),'CSO CALCULATIONS'!$A:$DA,105,FALSE)) ->  | P32: =IF(ISBLANK(HLOOKUP(P$9,'2 - CSO INPUT'!$E$9:$AS$14,6,FALSE)),"",VLOOKUP(CONCATENATE('4 - CSO VOLUME'!P$9,'4 - CSO VOLUME'!$L32),'CSO CALCULATIONS'!$A:$DA,105,FALSE)) ->  | Q32: =IF(ISBLANK(HLOOKUP(Q$9,'2 - CSO INPUT'!$E$9:$AS$14,6,FALSE)),"",VLOOKUP(CONCATENATE('4 - CSO VOLUME'!Q$9,'4 - CSO VOLUME'!$L32),'CSO CALCULATIONS'!$A:$DA,105,FALSE)) ->  | R32: =IF(ISBLANK(HLOOKUP(R$9,'2 - CSO INPUT'!$E$9:$AS$14,6,FALSE)),"",VLOOKUP(CONCATENATE('4 - CSO VOLUME'!R$9,'4 - CSO VOLUME'!$L32),'CSO CALCULATIONS'!$A:$DA,105,FALSE)) ->  | S32: =IF(ISBLANK(HLOOKUP(S$9,'2 - CSO INPUT'!$E$9:$AS$14,6,FALSE)),"",VLOOKUP(CONCATENATE('4 - CSO VOLUME'!S$9,'4 - CSO VOLUME'!$L32),'CSO CALCULATIONS'!$A:$DA,105,FALSE)) ->  | T32: =IF(ISBLANK(HLOOKUP(T$9,'2 - CSO INPUT'!$E$9:$AS$14,6,FALSE)),"",VLOOKUP(CONCATENATE('4 - CSO VOLUME'!T$9,'4 - CSO VOLUME'!$L32),'CSO CALCULATIONS'!$A:$DA,105,FALSE)) ->  | X32: 14e. | Y32: =IF(ISBLANK(HLOOKUP(Y$9,'2 - CSO INPUT'!$E$9:$AS$14,6,FALSE)),"",VLOOKUP(CONCATENATE('4 - CSO VOLUME'!Y$9,'4 - CSO VOLUME'!$X32),'CSO CALCULATIONS'!$A:$DA,105,FALSE)) ->  | Z32: =IF(ISBLANK(HLOOKUP(Z$9,'2 - CSO INPUT'!$E$9:$AS$14,6,FALSE)),"",VLOOKUP(CONCATENATE('4 - CSO VOLUME'!Z$9,'4 - CSO VOLUME'!$X32),'CSO CALCULATIONS'!$A:$DA,105,FALSE)) ->  | AA32: =IF(ISBLANK(HLOOKUP(AA$9,'2 - CSO INPUT'!$E$9:$AS$14,6,FALSE)),"",VLOOKUP(CONCATENATE('4 - CSO VOLUME'!AA$9,'4 - CSO VOLUME'!$X32),'CSO CALCULATIONS'!$A:$DA,105,FALSE)) ->  | AB32: =IF(ISBLANK(HLOOKUP(AB$9,'2 - CSO INPUT'!$E$9:$AS$14,6,FALSE)),"",VLOOKUP(CONCATENATE('4 - CSO VOLUME'!AB$9,'4 - CSO VOLUME'!$X32),'CSO CALCULATIONS'!$A:$DA,105,FALSE)) ->  | AC32: =IF(ISBLANK(HLOOKUP(AC$9,'2 - CSO INPUT'!$E$9:$AS$14,6,FALSE)),"",VLOOKUP(CONCATENATE('4 - CSO VOLUME'!AC$9,'4 - CSO VOLUME'!$X32),'CSO CALCULATIONS'!$A:$DA,105,FALSE)) ->  | AD32: =IF(ISBLANK(HLOOKUP(AD$9,'2 - CSO INPUT'!$E$9:$AS$14,6,FALSE)),"",VLOOKUP(CONCATENATE('4 - CSO VOLUME'!AD$9,'4 - CSO VOLUME'!$X32),'CSO CALCULATIONS'!$A:$DA,105,FALSE)) ->  | AE32: =IF(ISBLANK(HLOOKUP(AE$9,'2 - CSO INPUT'!$E$9:$AS$14,6,FALSE)),"",VLOOKUP(CONCATENATE('4 - CSO VOLUME'!AE$9,'4 - CSO VOLUME'!$X32),'CSO CALCULATIONS'!$A:$DA,105,FALSE)) ->  | AF32: =IF(ISBLANK(HLOOKUP(AF$9,'2 - CSO INPUT'!$E$9:$AS$14,6,FALSE)),"",VLOOKUP(CONCATENATE('4 - CSO VOLUME'!AF$9,'4 - CSO VOLUME'!$X32),'CSO CALCULATIONS'!$A:$DA,105,FALSE)) ->  | AJ32: 14e. | AK32: =IF(ISBLANK(HLOOKUP(AK$9,'2 - CSO INPUT'!$E$9:$AS$14,6,FALSE)),"",VLOOKUP(CONCATENATE('4 - CSO VOLUME'!AK$9,'4 - CSO VOLUME'!$AJ32),'CSO CALCULATIONS'!$A:$DA,105,FALSE)) ->  | AL32: =IF(ISBLANK(HLOOKUP(AL$9,'2 - CSO INPUT'!$E$9:$AS$14,6,FALSE)),"",VLOOKUP(CONCATENATE('4 - CSO VOLUME'!AL$9,'4 - CSO VOLUME'!$AJ32),'CSO CALCULATIONS'!$A:$DA,105,FALSE)) ->  | AM32: =IF(ISBLANK(HLOOKUP(AM$9,'2 - CSO INPUT'!$E$9:$AS$14,6,FALSE)),"",VLOOKUP(CONCATENATE('4 - CSO VOLUME'!AM$9,'4 - CSO VOLUME'!$AJ32),'CSO CALCULATIONS'!$A:$DA,105,FALSE)) ->  | AN32: =IF(ISBLANK(HLOOKUP(AN$9,'2 - CSO INPUT'!$E$9:$AS$14,6,FALSE)),"",VLOOKUP(CONCATENATE('4 - CSO VOLUME'!AN$9,'4 - CSO VOLUME'!$AJ32),'CSO CALCULATIONS'!$A:$DA,105,FALSE)) ->  | AO32: =IF(ISBLANK(HLOOKUP(AO$9,'2 - CSO INPUT'!$E$9:$AS$14,6,FALSE)),"",VLOOKUP(CONCATENATE('4 - CSO VOLUME'!AO$9,'4 - CSO VOLUME'!$AJ32),'CSO CALCULATIONS'!$A:$DA,105,FALSE)) ->  | AP32: =IF(ISBLANK(HLOOKUP(AP$9,'2 - CSO INPUT'!$E$9:$AS$14,6,FALSE)),"",VLOOKUP(CONCATENATE('4 - CSO VOLUME'!AP$9,'4 - CSO VOLUME'!$AJ32),'CSO CALCULATIONS'!$A:$DA,105,FALSE)) ->  | AQ32: =IF(ISBLANK(HLOOKUP(AQ$9,'2 - CSO INPUT'!$E$9:$AS$14,6,FALSE)),"",VLOOKUP(CONCATENATE('4 - CSO VOLUME'!AQ$9,'4 - CSO VOLUME'!$AJ32),'CSO CALCULATIONS'!$A:$DA,105,FALSE)) ->  | AR32: =IF(ISBLANK(HLOOKUP(AR$9,'2 - CSO INPUT'!$E$9:$AS$14,6,FALSE)),"",VLOOKUP(CONCATENATE('4 - CSO VOLUME'!AR$9,'4 - CSO VOLUME'!$AJ32),'CSO CALCULATIONS'!$A:$DA,105,FALSE)) -> 
C33: 14. CSO Flows | D33: f. Combined sewage diverted to WWTP (MG). | E33: =IF(ISBLANK(HLOOKUP(E$9,'2 - CSO INPUT'!$E$9:$AS$14,6,FALSE)),"",VLOOKUP(CONCATENATE('4 - CSO VOLUME'!E$9,'4 - CSO VOLUME'!$L33),'CSO CALCULATIONS'!$A:$DA,105,FALSE)) ->  | F33: =IF(ISBLANK(HLOOKUP(F$9,'2 - CSO INPUT'!$E$9:$AS$14,6,FALSE)),"",VLOOKUP(CONCATENATE('4 - CSO VOLUME'!F$9,'4 - CSO VOLUME'!$L33),'CSO CALCULATIONS'!$A:$DA,105,FALSE)) ->  | G33: =IF(ISBLANK(HLOOKUP(G$9,'2 - CSO INPUT'!$E$9:$AS$14,6,FALSE)),"",VLOOKUP(CONCATENATE('4 - CSO VOLUME'!G$9,'4 - CSO VOLUME'!$L33),'CSO CALCULATIONS'!$A:$DA,105,FALSE)) ->  | H33: =IF(ISBLANK(HLOOKUP(H$9,'2 - CSO INPUT'!$E$9:$AS$14,6,FALSE)),"",VLOOKUP(CONCATENATE('4 - CSO VOLUME'!H$9,'4 - CSO VOLUME'!$L33),'CSO CALCULATIONS'!$A:$DA,105,FALSE)) ->  | L33: 14f. | M33: =IF(ISBLANK(HLOOKUP(M$9,'2 - CSO INPUT'!$E$9:$AS$14,6,FALSE)),"",VLOOKUP(CONCATENATE('4 - CSO VOLUME'!M$9,'4 - CSO VOLUME'!$L33),'CSO CALCULATIONS'!$A:$DA,105,FALSE)) ->  | N33: =IF(ISBLANK(HLOOKUP(N$9,'2 - CSO INPUT'!$E$9:$AS$14,6,FALSE)),"",VLOOKUP(CONCATENATE('4 - CSO VOLUME'!N$9,'4 - CSO VOLUME'!$L33),'CSO CALCULATIONS'!$A:$DA,105,FALSE)) ->  | O33: =IF(ISBLANK(HLOOKUP(O$9,'2 - CSO INPUT'!$E$9:$AS$14,6,FALSE)),"",VLOOKUP(CONCATENATE('4 - CSO VOLUME'!O$9,'4 - CSO VOLUME'!$L33),'CSO CALCULATIONS'!$A:$DA,105,FALSE)) ->  | P33: =IF(ISBLANK(HLOOKUP(P$9,'2 - CSO INPUT'!$E$9:$AS$14,6,FALSE)),"",VLOOKUP(CONCATENATE('4 - CSO VOLUME'!P$9,'4 - CSO VOLUME'!$L33),'CSO CALCULATIONS'!$A:$DA,105,FALSE)) ->  | Q33: =IF(ISBLANK(HLOOKUP(Q$9,'2 - CSO INPUT'!$E$9:$AS$14,6,FALSE)),"",VLOOKUP(CONCATENATE('4 - CSO VOLUME'!Q$9,'4 - CSO VOLUME'!$L33),'CSO CALCULATIONS'!$A:$DA,105,FALSE)) ->  | R33: =IF(ISBLANK(HLOOKUP(R$9,'2 - CSO INPUT'!$E$9:$AS$14,6,FALSE)),"",VLOOKUP(CONCATENATE('4 - CSO VOLUME'!R$9,'4 - CSO VOLUME'!$L33),'CSO CALCULATIONS'!$A:$DA,105,FALSE)) ->  | S33: =IF(ISBLANK(HLOOKUP(S$9,'2 - CSO INPUT'!$E$9:$AS$14,6,FALSE)),"",VLOOKUP(CONCATENATE('4 - CSO VOLUME'!S$9,'4 - CSO VOLUME'!$L33),'CSO CALCULATIONS'!$A:$DA,105,FALSE)) ->  | T33: =IF(ISBLANK(HLOOKUP(T$9,'2 - CSO INPUT'!$E$9:$AS$14,6,FALSE)),"",VLOOKUP(CONCATENATE('4 - CSO VOLUME'!T$9,'4 - CSO VOLUME'!$L33),'CSO CALCULATIONS'!$A:$DA,105,FALSE)) ->  | X33: 14f. | Y33: =IF(ISBLANK(HLOOKUP(Y$9,'2 - CSO INPUT'!$E$9:$AS$14,6,FALSE)),"",VLOOKUP(CONCATENATE('4 - CSO VOLUME'!Y$9,'4 - CSO VOLUME'!$X33),'CSO CALCULATIONS'!$A:$DA,105,FALSE)) ->  | Z33: =IF(ISBLANK(HLOOKUP(Z$9,'2 - CSO INPUT'!$E$9:$AS$14,6,FALSE)),"",VLOOKUP(CONCATENATE('4 - CSO VOLUME'!Z$9,'4 - CSO VOLUME'!$X33),'CSO CALCULATIONS'!$A:$DA,105,FALSE)) ->  | AA33: =IF(ISBLANK(HLOOKUP(AA$9,'2 - CSO INPUT'!$E$9:$AS$14,6,FALSE)),"",VLOOKUP(CONCATENATE('4 - CSO VOLUME'!AA$9,'4 - CSO VOLUME'!$X33),'CSO CALCULATIONS'!$A:$DA,105,FALSE)) ->  | AB33: =IF(ISBLANK(HLOOKUP(AB$9,'2 - CSO INPUT'!$E$9:$AS$14,6,FALSE)),"",VLOOKUP(CONCATENATE('4 - CSO VOLUME'!AB$9,'4 - CSO VOLUME'!$X33),'CSO CALCULATIONS'!$A:$DA,105,FALSE)) ->  | AC33: =IF(ISBLANK(HLOOKUP(AC$9,'2 - CSO INPUT'!$E$9:$AS$14,6,FALSE)),"",VLOOKUP(CONCATENATE('4 - CSO VOLUME'!AC$9,'4 - CSO VOLUME'!$X33),'CSO CALCULATIONS'!$A:$DA,105,FALSE)) ->  | AD33: =IF(ISBLANK(HLOOKUP(AD$9,'2 - CSO INPUT'!$E$9:$AS$14,6,FALSE)),"",VLOOKUP(CONCATENATE('4 - CSO VOLUME'!AD$9,'4 - CSO VOLUME'!$X33),'CSO CALCULATIONS'!$A:$DA,105,FALSE)) ->  | AE33: =IF(ISBLANK(HLOOKUP(AE$9,'2 - CSO INPUT'!$E$9:$AS$14,6,FALSE)),"",VLOOKUP(CONCATENATE('4 - CSO VOLUME'!AE$9,'4 - CSO VOLUME'!$X33),'CSO CALCULATIONS'!$A:$DA,105,FALSE)) ->  | AF33: =IF(ISBLANK(HLOOKUP(AF$9,'2 - CSO INPUT'!$E$9:$AS$14,6,FALSE)),"",VLOOKUP(CONCATENATE('4 - CSO VOLUME'!AF$9,'4 - CSO VOLUME'!$X33),'CSO CALCULATIONS'!$A:$DA,105,FALSE)) ->  | AJ33: 14f. | AK33: =IF(ISBLANK(HLOOKUP(AK$9,'2 - CSO INPUT'!$E$9:$AS$14,6,FALSE)),"",VLOOKUP(CONCATENATE('4 - CSO VOLUME'!AK$9,'4 - CSO VOLUME'!$AJ33),'CSO CALCULATIONS'!$A:$DA,105,FALSE)) ->  | AL33: =IF(ISBLANK(HLOOKUP(AL$9,'2 - CSO INPUT'!$E$9:$AS$14,6,FALSE)),"",VLOOKUP(CONCATENATE('4 - CSO VOLUME'!AL$9,'4 - CSO VOLUME'!$AJ33),'CSO CALCULATIONS'!$A:$DA,105,FALSE)) ->  | AM33: =IF(ISBLANK(HLOOKUP(AM$9,'2 - CSO INPUT'!$E$9:$AS$14,6,FALSE)),"",VLOOKUP(CONCATENATE('4 - CSO VOLUME'!AM$9,'4 - CSO VOLUME'!$AJ33),'CSO CALCULATIONS'!$A:$DA,105,FALSE)) ->  | AN33: =IF(ISBLANK(HLOOKUP(AN$9,'2 - CSO INPUT'!$E$9:$AS$14,6,FALSE)),"",VLOOKUP(CONCATENATE('4 - CSO VOLUME'!AN$9,'4 - CSO VOLUME'!$AJ33),'CSO CALCULATIONS'!$A:$DA,105,FALSE)) ->  | AO33: =IF(ISBLANK(HLOOKUP(AO$9,'2 - CSO INPUT'!$E$9:$AS$14,6,FALSE)),"",VLOOKUP(CONCATENATE('4 - CSO VOLUME'!AO$9,'4 - CSO VOLUME'!$AJ33),'CSO CALCULATIONS'!$A:$DA,105,FALSE)) ->  | AP33: =IF(ISBLANK(HLOOKUP(AP$9,'2 - CSO INPUT'!$E$9:$AS$14,6,FALSE)),"",VLOOKUP(CONCATENATE('4 - CSO VOLUME'!AP$9,'4 - CSO VOLUME'!$AJ33),'CSO CALCULATIONS'!$A:$DA,105,FALSE)) ->  | AQ33: =IF(ISBLANK(HLOOKUP(AQ$9,'2 - CSO INPUT'!$E$9:$AS$14,6,FALSE)),"",VLOOKUP(CONCATENATE('4 - CSO VOLUME'!AQ$9,'4 - CSO VOLUME'!$AJ33),'CSO CALCULATIONS'!$A:$DA,105,FALSE)) ->  | AR33: =IF(ISBLANK(HLOOKUP(AR$9,'2 - CSO INPUT'!$E$9:$AS$14,6,FALSE)),"",VLOOKUP(CONCATENATE('4 - CSO VOLUME'!AR$9,'4 - CSO VOLUME'!$AJ33),'CSO CALCULATIONS'!$A:$DA,105,FALSE)) -> 

Sheet 5 - CSO VOLUME SUMMARY
A1: U.S. EPA Combined Sewer Overflow Model for Small Communities. Runoff Model Data Input, Page 5. Total combined sewer system results are presented here. Only two data input cells are included, which refer to flows coming from outside individual CSO sub-sewersheds. The page is structured similar to page 1, with a single column of data input and calculation cells. Each line is prefixed by an item number in column C and a line letter in column D for a unique identification. The item number is continued sequentially from page 4. For example, the first line item on this page is Line 15 a. Data input cells are identified as such along with a description of the data to be entered. Both data input cells on this page are optional and should only be populated if applicable to the combined sewer system. Calculation cells are identified as such and should not be changed in any way. For specific instruction and recommendations on how to obtain certain data inputs, see the accompanying CSO Model User Guide. The tab key can be used to navigate sequentially through the required inputs.
C3: U.S. EPA Combined Sewer Overflow Model for Small Communities
C4: CSO VOLUME SUMMARY, Page 5
C5: Community name: | D5: ='1 - CSS INPUT'!E6 -> 0
C6: NPDES number: | D6: ='1 - CSS INPUT'!E7 -> 0
C7: Date: | D7: ='1 - CSS INPUT'!E8 -> 00:00:00
C8: CSO AND CSS VOLUMES
C10: 15. Flow Conveyed to WWTP | D10: a. Combined sewage diverted to WWTP (MG). | E10: =IF('1 - CSS INPUT'!E16="Yes",'WWTP CALCULATIONS'!CX4,"") -> 
C11: 15. Flow Conveyed to WWTP | D11: b. Peak flow rate of sewage from non-CSO areas (MGD).
C12: 15. Flow Conveyed to WWTP | D12: c. Peak flow rate of sewage from satellite communities (MGD).
C13: 15. Flow Conveyed to WWTP | D13: d. Total sewage conveyed to WWTP (MG). | E13: =IF('1 - CSS INPUT'!E16="Yes",'WWTP CALCULATIONS'!CX7,"") -> 
C14: 16. Total Overflow Volumes | D14: a. Total CSO volume at all CSO outfalls (MG). | E14: =IF(ISBLANK('1 - CSS INPUT'!E18),"",'WWTP CALCULATIONS'!CX8) -> 
C15: 16. Total Overflow Volumes | D15: b. Total treated CSO discharge (MG). | E15: =IF(ISBLANK('1 - CSS INPUT'!E18),"",'WWTP CALCULATIONS'!CX9) -> 
C16: 16. Total Overflow Volumes | D16: c. Total untreated CSO discharge (MG). | E16: =IF(ISBLANK('1 - CSS INPUT'!E18),"",'WWTP CALCULATIONS'!CX10) -> 

Sheet F1 - RUNOFF VOLUME

Sheet F2 - CSO VOLUME

Sheet F3 - CSS FLOWS

Sheet A1 - RAINFALL DEPTHS
A1: U.S. EPA Combined Sewer Overflow Model for Small Communities 85th Percentile Rainfall Depth Lookup, Appendix 1. If using a design storm approach for Item 12 calculations, use the lookup tool below. The tool will return the 85th percentile rainfall depth associated with the entered ZIP Code. The 85th rainfall depth is increasingly being used in stormwater design manuals across the U.S. as a design standard that is protective of water quality (Shrestha et al., 2013). Press tab to go to the single data input cell, and tab again to go to the single result cell.
B3: U.S. EPA Combined Sewer Overflow Model for Small Communities
B4: 85th Percentile Rainfall Depth Lookup, Appendix 1
B5: If using a design storm approach for Item 12 calculations, use the lookup tool below. The tool will return the 85th percentile rainfall depth associated with the entered ZIP Code. The 85th rainfall depth is increasingly being used in stormwater design manuals across the U.S. as a design standard that is protective of water quality (Shrestha et al., 2013).
G6: ZIP_CODE | H6: Shrestha_8
B7: ZIP Code: | G7: National Average | H7: 0.9112852243
B8: 85th Percentile Rainfall Depth (inches): | C8: =IF(ISBLANK(C7),"",VLOOKUP(C7,G:H,2,FALSE)) ->  | G8: 36539 | H8: 1.3364
G9: 36584 | H9: 1.35792
G10: 36913 | H10: 1.29839
G11: 37501 | H11: 1.29883
G12: 37544 | H12: 1.29864
G13: 38001 | H13: 1.11617
G14: 38002 | H14: 1.26064
G15: 38004 | H15: 1.24241
G16: 38006 | H16: 1.12466
G17: 38007 | H17: 1.10396
G18: 38008 | H18: 1.1701
G19: 38010 | H19: 1.21102
G20: 38011 | H20: 1.2208
G21: 38012 | H21: 1.13967
G22: 38014 | H22: 1.26064
G23: 38015 | H23: 1.21175
G24: 38016 | H24: 1.27382
G25: 38017 | H25: 1.27115
G26: 38018 | H26: 1.28133
G27: 38019 | H27: 1.18295
G28: 38021 | H28: 1.10651
G29: 38023 | H29: 1.26323
G30: 38024 | H30: 1.10065
G31: 38025 | H31: 1.10065
G32: 38027 | H32: 1.27115
G33: 38028 | H33: 1.25843
G34: 38029 | H34: 1.28538
G35: 38030 | H35: 1.10391
G36: 38034 | H36: 1.10275
G37: 38036 | H37: 1.18413
G38: 38037 | H38: 1.10654
G39: 38039 | H39: 1.20369
G40: 38040 | H40: 1.11129
G41: 38041 | H41: 1.16219
G42: 38042 | H42: 1.18463
G43: 38044 | H43: 1.16669
G44: 38045 | H44: 1.18413
G45: 38046 | H45: 1.20369
G46: 38047 | H46: 1.10396
G47: 38048 | H47: 1.22603
G48: 38049 | H48: 1.20984
G49: 38050 | H49: 1.10651
G50: 38052 | H50: 1.17739
G51: 38053 | H51: 1.27995
G52: 38054 | H52: 1.27278
G53: 38055 | H53: 1.27278
G54: 38057 | H54: 1.22702
G55: 38058 | H55: 1.23395
G56: 38059 | H56: 1.10129
G57: 38060 | H57: 1.22603
G58: 38061 | H58: 1.17819
G59: 38063 | H59: 1.13155
G60: 38066 | H60: 1.25164
G61: 38067 | H61: 1.18304
G62: 38068 | H62: 1.21102
G63: 38069 | H63: 1.16347
G64: 38070 | H64: 1.10275
G65: 38071 | H65: 1.25507
G66: 38075 | H66: 1.16748
G67: 38076 | H67: 1.23548
G68: 38077 | H68: 1.10647
G69: 38079 | H69: 1.10718
G70: 38080 | H70: 1.10647
G71: 38083 | H71: 1.27995
G72: 38088 | H72: 1.28133
G73: 38101 | H73: 1.29864
G74: 38103 | H74: 1.29864
G75: 38104 | H75: 1.29864
G76: 38105 | H76: 1.29864
G77: 38106 | H77: 1.29864
G78: 38107 | H78: 1.29864
G79: 38108 | H79: 1.29179
G80: 38109 | H80: 1.29578
G81: 38111 | H81: 1.298
G82: 38112 | H82: 1.298
G83: 38113 | H83: 1.29488
G84: 38114 | H84: 1.29864
G85: 38115 | H85: 1.29348
G86: 38116 | H86: 1.29938
G87: 38117 | H87: 1.298
G88: 38118 | H88: 1.29883
G89: 38119 | H89: 1.29216
G90: 38120 | H90: 1.29216
G91: 38122 | H91: 1.298
G92: 38124 | H92: 1.298
G93: 38125 | H93: 1.29348
G94: 38126 | H94: 1.29864
G95: 38127 | H95: 1.29289
G96: 38128 | H96: 1.29179
G97: 38130 | H97: 1.29938
G98: 38131 | H98: 1.29938
G99: 38132 | H99: 1.29938
G100: 38133 | H100: 1.28538
G101: 38134 | H101: 1.28538
G102: 38135 | H102: 1.28538
G103: 38136 | H103: 1.29864
G104: 38137 | H104: 1.298
G105: 38138 | H105: 1.29216
G106: 38139 | H106: 1.28133
G107: 38141 | H107: 1.29348
G108: 38145 | H108: 1.29864
G109: 38148 | H109: 1.29864
G110: 38150 | H110: 1.29864
G111: 38151 | H111: 1.298
G112: 38152 | H112: 1.298
G113: 38157 | H113: 1.298
G114: 38159 | H114: 1.29864
G115: 38161 | H115: 1.29216
G116: 38163 | H116: 1.29864
G117: 38166 | H117: 1.29216
G118: 38167 | H118: 1.29289
G119: 38168 | H119: 1.29179
G120: 38173 | H120: 1.29864
G121: 38174 | H121: 1.29864
G122: 38175 | H122: 1.29348
G123: 38177 | H123: 1.298
G124: 38181 | H124: 1.29883
G125: 38182 | H125: 1.29289
G126: 38183 | H126: 1.29216
G127: 38184 | H127: 1.28538
G128: 38186 | H128: 1.29938
G129: 38187 | H129: 1.29216
G130: 38188 | H130: 1.29216
G131: 38190 | H131: 1.29938
G132: 38193 | H132: 1.29883
G133: 38194 | H133: 1.29938
G134: 38197 | H134: 1.29216
G135: 38201 | H135: 1.10103
G136: 38220 | H136: 1.11039
G137: 38223 | H137: 1.08169
G138: 38224 | H138: 1.07772
G139: 38225 | H139: 1.09556
G140: 38226 | H140: 1.0846
G141: 38229 | H141: 1.09486
G142: 38230 | H142: 1.10751
G143: 38231 | H143: 1.08046
G144: 38232 | H144: 1.1048
G145: 38233 | H145: 1.10444
G146: 38235 | H146: 1.10449
G147: 38237 | H147: 1.09865
G148: 38238 | H148: 1.09865
G149: 38240 | H149: 1.10302
G150: 38241 | H150: 1.08324
G151: 38253 | H151: 1.10412
G152: 38254 | H152: 1.10416
G153: 38255 | H153: 1.10091
G154: 38257 | H154: 1.09297
G155: 38258 | H155: 1.10725
G156: 38259 | H156: 1.10344
G157: 38260 | H157: 1.1026
G158: 38261 | H158: 1.10116
G159: 38271 | H159: 1.0993
G160: 38281 | H160: 1.0997
G161: 38301 | H161: 1.13405
G162: 38302 | H162: 1.13405
G163: 38303 | H163: 1.12798
G164: 38305 | H164: 1.12798
G165: 38308 | H165: 1.12798
G166: 38313 | H166: 1.13237
G167: 38314 | H167: 1.13405
G168: 38315 | H168: 1.155
G169: 38316 | H169: 1.10938
G170: 38321 | H170: 1.1118
G171: 38324 | H171: 1.10567
G172: 38330 | H172: 1.10715
G173: 38331 | H173: 1.10569
G174: 38332 | H174: 1.14559
G175: 38334 | H175: 1.14751
G176: 38336 | H176: 1.11876
G177: 38337 | H177: 1.11876
G178: 38338 | H178: 1.11839
G179: 38339 | H179: 1.16499
G180: 38340 | H180: 1.14293
G181: 38343 | H181: 1.11635
G182: 38344 | H182: 1.10086
G183: 38345 | H183: 1.1289
G184: 38346 | H184: 1.10938
G185: 38347 | H185: 1.13371
G186: 38348 | H186: 1.11384
G187: 38351 | H187: 1.11288
G188: 38352 | H188: 1.13083
G189: 38355 | H189: 1.11926
G190: 38356 | H190: 1.14062
G191: 38357 | H191: 1.1628
G192: 38358 | H192: 1.11168
G193: 38362 | H193: 1.12333
G194: 38366 | H194: 1.13919
G195: 38367 | H195: 1.17053
G196: 38369 | H196: 1.10488
G197: 38375 | H197: 1.15794
G198: 38377 | H198: 1.14062
G199: 38378 | H199: 1.12296
G200: 38379 | H200: 1.15829
G201: 38381 | H201: 1.14991
... 4299 more rows

Sheet CSO CALCULATIONS (hidden)
A1: 1 | B1: =A1+1 -> 2 | C1: =B1+1 -> 3 | D1: 4 | E1: =D1+1 -> 5 | F1: =E1+1 -> 6 | G1: =F1+1 -> 7 | H1: =G1+1 -> 8 | I1: =H1+1 -> 9 | J1: =I1+1 -> 10 | K1: =J1+1 -> 11 | L1: =K1+1 -> 12 | M1: =L1+1 -> 13 | N1: =M1+1 -> 14 | O1: =N1+1 -> 15 | P1: =O1+1 -> 16 | Q1: =P1+1 -> 17 | R1: =Q1+1 -> 18 | S1: =R1+1 -> 19 | T1: =S1+1 -> 20 | U1: =T1+1 -> 21 | V1: =U1+1 -> 22 | W1: =V1+1 -> 23 | X1: =W1+1 -> 24 | Y1: =X1+1 -> 25 | Z1: =Y1+1 -> 26 | AA1: =Z1+1 -> 27 | AB1: =AA1+1 -> 28 | AC1: =AB1+1 -> 29 | AD1: =AC1+1 -> 30 | AE1: =AD1+1 -> 31 | AF1: =AE1+1 -> 32 | AG1: =AF1+1 -> 33 | AH1: =AG1+1 -> 34 | AI1: =AH1+1 -> 35 | AJ1: =AI1+1 -> 36 | AK1: =AJ1+1 -> 37 | AL1: =AK1+1 -> 38 | AM1: =AL1+1 -> 39 | AN1: =AM1+1 -> 40 | AO1: =AN1+1 -> 41 | AP1: =AO1+1 -> 42 | AQ1: =AP1+1 -> 43 | AR1: =AQ1+1 -> 44 | AS1: =AR1+1 -> 45 | AT1: =AS1+1 -> 46 | AU1: =AT1+1 -> 47 | AV1: =AU1+1 -> 48 | AW1: =AV1+1 -> 49 | AX1: =AW1+1 -> 50 | AY1: =AX1+1 -> 51 | AZ1: =AY1+1 -> 52 | BA1: =AZ1+1 -> 53 | BB1: =BA1+1 -> 54 | BC1: =BB1+1 -> 55 | BD1: =BC1+1 -> 56 | BE1: =BD1+1 -> 57 | BF1: =BE1+1 -> 58 | BG1: =BF1+1 -> 59 | BH1: =BG1+1 -> 60 | BI1: =BH1+1 -> 61 | BJ1: =BI1+1 -> 62 | BK1: =BJ1+1 -> 63 | BL1: =BK1+1 -> 64 | BM1: =BL1+1 -> 65 | BN1: =BM1+1 -> 66 | BO1: =BN1+1 -> 67 | BP1: =BO1+1 -> 68 | BQ1: =BP1+1 -> 69 | BR1: =BQ1+1 -> 70 | BS1: =BR1+1 -> 71 | BT1: =BS1+1 -> 72 | BU1: =BT1+1 -> 73 | BV1: =BU1+1 -> 74 | BW1: =BV1+1 -> 75 | BX1: =BW1+1 -> 76 | BY1: =BX1+1 -> 77 | BZ1: =BY1+1 -> 78 | CA1: =BZ1+1 -> 79 | CB1: =CA1+1 -> 80 | CC1: =CB1+1 -> 81 | CD1: =CC1+1 -> 82 | CE1: =CD1+1 -> 83 | CF1: =CE1+1 -> 84 | CG1: =CF1+1 -> 85 | CH1: =CG1+1 -> 86 | CI1: =CH1+1 -> 87 | CJ1: =CI1+1 -> 88 | CK1: =CJ1+1 -> 89 | CL1: =CK1+1 -> 90 | CM1: =CL1+1 -> 91 | CN1: =CM1+1 -> 92 | CO1: =CN1+1 -> 93 | CP1: =CO1+1 -> 94 | CQ1: =CP1+1 -> 95 | CR1: =CQ1+1 -> 96 | CS1: =CR1+1 -> 97 | CT1: =CS1+1 -> 98 | CU1: =CT1+1 -> 99 | CV1: =CU1+1 -> 100 | CW1: =CV1+1 -> 101 | CX1: =CW1+1 -> 102 | CY1: =CX1+1 -> 103 | CZ1: =CY1+1 -> 104 | DA1: =CZ1+1 -> 105
H2: Input | I2: 1 | J2: =I2+0.25 -> 1.25 | K2: =J2+0.25 -> 1.50 | L2: 1.75 | M2: 2.00 | N2: 2.25 | O2: 2.50 | P2: 2.75 | Q2: 3.00 | R2: 3.25 | S2: 3.50 | T2: 3.75 | U2: 4.00 | V2: 4.25 | W2: 4.50 | X2: 4.75 | Y2: 5.00 | Z2: 5.25 | AA2: 5.50 | AB2: 5.75 | AC2: 6.00 | AD2: 6.25 | AE2: 6.50 | AF2: 6.75 | AG2: 7.00 | AH2: 7.25 | AI2: 7.50 | AJ2: 7.75 | AK2: 8.00 | AL2: 8.25 | AM2: 8.50 | AN2: 8.75 | AO2: 9.00 | AP2: 9.25 | AQ2: 9.50 | AR2: 9.75 | AS2: 10.00 | AT2: 10.25 | AU2: 10.50 | AV2: 10.75 | AW2: 11.00 | AX2: 11.25 | AY2: 11.50 | AZ2: 11.75 | BA2: 12.00 | BB2: 12.25 | BC2: 12.50 | BD2: 12.75 | BE2: 13.00 | BF2: 13.25 | BG2: 13.50 | BH2: 13.75 | BI2: 14.00 | BJ2: 14.25 | BK2: 14.50 | BL2: 14.75 | BM2: 15.00 | BN2: 15.25 | BO2: 15.50 | BP2: 15.75 | BQ2: 16.00 | BR2: 16.25 | BS2: 16.50 | BT2: 16.75 | BU2: 17.00 | BV2: 17.25 | BW2: =BV2+0.25 -> 17.50 | BX2: 17.75 | BY2: 18.00 | BZ2: 18.25 | CA2: 18.50 | CB2: 18.75 | CC2: 19.00 | CD2: 19.25 | CE2: 19.50 | CF2: 19.75 | CG2: 20.00 | CH2: 20.25 | CI2: 20.50 | CJ2: 20.75 | CK2: 21.00 | CL2: 21.25 | CM2: 21.50 | CN2: 21.75 | CO2: 22.00 | CP2: 22.25 | CQ2: 22.50 | CR2: 22.75 | CS2: 23.00 | CT2: 23.25 | CU2: 23.50 | CV2: 23.75 | CW2: 24.00 | CX2: 24.25 | CY2: 24.50 | CZ2: 24.75 | DA2: Total (MG) | DE2: Hour | DF2: Rainfall | DI2: Hour | DJ2: Rainfall | DK2: =TRANSPOSE(A3:A30) -> CSO 001 | DL2: CSO 002 | DM2: CSO 003 | DN2: CSO 004 | DO2: CSO 005 | DP2: CSO 006 | DQ2: CSO 007 | DR2: CSO 008 | DS2: CSO 009 | DT2: CSO 010 | DU2: CSO 011 | DV2: CSO 012 | DW2: CSO 013 | DX2: CSO 014 | DY2: CSO 015 | DZ2: CSO 016 | EA2: CSO 017 | EB2: CSO 018 | EC2: CSO 019 | ED2: CSO 020 | EE2: CSO 021 | EF2: CSO 022 | EG2: CSO 023 | EH2: CSO 024 | EI2: CSO 025 | EJ2: CSO 026 | EK2: CSO 027 | EL2: CSO 028 | EM2: Total | EN2: Cumu. | EQ2: Hour | ER2: Rainfall | ES2: =TRANSPOSE(A3:A30) -> CSO 001 | ET2: CSO 002 | EU2: CSO 003 | EV2: CSO 004 | EW2: CSO 005 | EX2: CSO 006 | EY2: CSO 007 | EZ2: CSO 008 | FA2: CSO 009 | FB2: CSO 010 | FC2: CSO 011 | FD2: CSO 012 | FE2: CSO 013 | FF2: CSO 014 | FG2: CSO 015 | FH2: CSO 016 | FI2: CSO 017 | FJ2: CSO 018 | FK2: CSO 019 | FL2: CSO 020 | FM2: CSO 021 | FN2: CSO 022 | FO2: CSO 023 | FP2: CSO 024 | FQ2: CSO 025 | FR2: CSO 026 | FS2: CSO 027 | FT2: CSO 028 | FU2: Total | FV2: Cumu. | FY2: Hour | FZ2: Total | GA2: Cumu. | GD2: Hour | GE2: Total | GF2: Cumu. | GI2: Hour | GJ2: Total | GK2: Cumu. | GN2: Hour | GO2: Total | GP2: Cumu. | GS2: Hour | GT2: Total | GU2: Cumu.
A3: ='2 - CSO INPUT'!E9 -> CSO 001 | B3: 11. Runoff Generated | C3: 11a. | D3: Stormwater runoff (MG) | G3: 11a. | H3: =A3 -> CSO 001 | I3: =IF(IFERROR(VLOOKUP(CONCATENATE($H3,$G3),$A:$DA,I$1,FALSE),"")=0,"",IFERROR(VLOOKUP(CONCATENATE($H3,$G3),$A:$DA,I$1,FALSE),"")) ->  | S3: =IF(IFERROR(VLOOKUP(CONCATENATE($H3,$G3),$A:$DA,S$1,FALSE),"")=0,"",IFERROR(VLOOKUP(CONCATENATE($H3,$G3),$A:$DA,S$1,FALSE),"")) ->  | AC3: =IF(IFERROR(VLOOKUP(CONCATENATE($H3,$G3),$A:$DA,AC$1,FALSE),"")=0,"",IFERROR(VLOOKUP(CONCATENATE($H3,$G3),$A:$DA,AC$1,FALSE),"")) ->  | AM3: =IF(IFERROR(VLOOKUP(CONCATENATE($H3,$G3),$A:$DA,AM$1,FALSE),"")=0,"",IFERROR(VLOOKUP(CONCATENATE($H3,$G3),$A:$DA,AM$1,FALSE),"")) ->  | AW3: =IF(IFERROR(VLOOKUP(CONCATENATE($H3,$G3),$A:$DA,AW$1,FALSE),"")=0,"",IFERROR(VLOOKUP(CONCATENATE($H3,$G3),$A:$DA,AW$1,FALSE),"")) ->  | BG3: =IF(IFERROR(VLOOKUP(CONCATENATE($H3,$G3),$A:$DA,BG$1,FALSE),"")=0,"",IFERROR(VLOOKUP(CONCATENATE($H3,$G3),$A:$DA,BG$1,FALSE),"")) ->  | BQ3: =IF(IFERROR(VLOOKUP(CONCATENATE($H3,$G3),$A:$DA,BQ$1,FALSE),"")=0,"",IFERROR(VLOOKUP(CONCATENATE($H3,$G3),$A:$DA,BQ$1,FALSE),"")) ->  | CA3: =IF(IFERROR(VLOOKUP(CONCATENATE($H3,$G3),$A:$DA,CA$1,FALSE),"")=0,"",IFERROR(VLOOKUP(CONCATENATE($H3,$G3),$A:$DA,CA$1,FALSE),"")) ->  | CK3: =IF(IFERROR(VLOOKUP(CONCATENATE($H3,$G3),$A:$DA,CK$1,FALSE),"")=0,"",IFERROR(VLOOKUP(CONCATENATE($H3,$G3),$A:$DA,CK$1,FALSE),"")) ->  | CU3: =IF(IFERROR(VLOOKUP(CONCATENATE($H3,$G3),$A:$DA,CU$1,FALSE),"")=0,"",IFERROR(VLOOKUP(CONCATENATE($H3,$G3),$A:$DA,CU$1,FALSE),"")) ->  | DA3: =IF(SUM(I3:CZ3)=0,"",SUM(I3:CZ3)) ->  | DD3: Rainfall (in) - 9a. | DE3: 1.00 | DF3: =IF(ISBLANK('3 - Tc & RAINFALL'!G20),'3 - Tc & RAINFALL'!H20,'3 - Tc & RAINFALL'!G20/4) -> 0.00 | DH3: 11a. Runoff (MG) | DI3: 1.00 | DJ3: =DF3 -> 0.00 | DK3: =TRANSPOSE(I3:CZ30) ->  | EM3: =SUM(DK3:EL3) -> 0.00 | EN3: =EM3 -> 0.00 | EP3: 14b. Overflow Volume by CSO Outfall (MG) | EQ3: 1.00 | ER3: =DF3 -> 0.00 | ES3: =TRANSPOSE(I63:CZ90) ->  | FU3: =SUM(ES3:FT3) -> 0.00 | FV3: =FU3 -> 0.00 | FX3: 13b. Dry Weather Flow (MGD) | FY3: 1.00 | FZ3: =TRANSPOSE(I61:CZ62) -> 0.00 | GA3: 0.00 | GC3: 11a + 13b - Runoff plus Dry Weather Flow (MGD) | GD3: 1.00 | GE3: =EM3+FZ3 -> 0.00 | GF3: =EN3+GA3 -> 0.00 | GH3: 14d. Treated CSO Volume (MG) | GI3: 1.00 | GJ3: =TRANSPOSE(I121:CZ122) -> 0.00 | GK3: 0.00 | GM3: 14e. Untreated CSO Volume (MG) | GN3: 1.00 | GO3: =TRANSPOSE(I151:CZ152) -> 0.00 | GP3: 0.00 | GR3: 14f. Combined Sewage Diverted to WWTP (MG) | GS3: 1.00 | GT3: =TRANSPOSE(I181:CZ182) -> 0.00 | GU3: 0.00
A4: ='2 - CSO INPUT'!F9 -> CSO 002 | G4: 11a. | H4: CSO 002 | DA4: =IF(SUM(I4:CZ4)=0,"",SUM(I4:CZ4)) ->  | DE4: 1.25 | DF4: =IF(ISBLANK('3 - Tc & RAINFALL'!G21),'3 - Tc & RAINFALL'!H21,'3 - Tc & RAINFALL'!G21/4) -> 0.00 | DI4: 1.25 | DJ4: 0.00 | EM4: =SUM(DK4:EL4) -> 0.00 | EN4: =EM4+EN3 -> 0.00 | EQ4: 1.25 | ER4: 0.00 | FU4: =SUM(ES4:FT4) -> 0.00 | FV4: =FU4+FV3 -> 0.00 | FY4: 1.25 | FZ4: 0.00 | GA4: 0.00 | GD4: 1.25 | GE4: =EM4+FZ4 -> 0.00 | GF4: =EN4+GA4 -> 0.00 | GI4: 1.25 | GJ4: 0.00 | GK4: 0.00 | GN4: 1.25 | GO4: 0.00 | GP4: 0.00 | GS4: 1.25 | GT4: 0.00 | GU4: 0.00
A5: ='2 - CSO INPUT'!G9 -> CSO 003 | G5: 11a. | H5: CSO 003 | DE5: 1.50 | DF5: =IF(ISBLANK('3 - Tc & RAINFALL'!G22),'3 - Tc & RAINFALL'!H22,'3 - Tc & RAINFALL'!G22/4) -> 0.00 | DI5: 1.50 | DJ5: =DF5 -> 0.00 | EM5: =SUM(DK5:EL5) -> 0.00 | EN5: =EM5+EN4 -> 0.00 | EQ5: 1.50 | ER5: 0.00 | FU5: =SUM(ES5:FT5) -> 0.00 | FV5: =FU5+FV4 -> 0.00 | FY5: 1.50 | FZ5: 0.00 | GA5: 0.00 | GD5: 1.50 | GE5: 0.00 | GF5: 0.00 | GI5: 1.50 | GJ5: 0.00 | GK5: 0.00 | GN5: 1.50 | GO5: 0.00 | GP5: 0.00 | GS5: 1.50 | GT5: 0.00 | GU5: 0.00
A6: ='2 - CSO INPUT'!H9 -> CSO 004 | G6: 11a. | H6: CSO 004 | DE6: 1.75 | DF6: =IF(ISBLANK('3 - Tc & RAINFALL'!G23),'3 - Tc & RAINFALL'!H23,'3 - Tc & RAINFALL'!G23/4) -> 0.00 | DI6: 1.75 | DJ6: 0.00 | EM6: 0.00 | EN6: 0.00 | EQ6: 1.75 | ER6: 0.00 | FU6: 0.00 | FV6: 0.00 | FY6: 1.75 | FZ6: 0.00 | GA6: 0.00 | GD6: 1.75 | GE6: 0.00 | GF6: 0.00 | GI6: 1.75 | GJ6: 0.00 | GK6: 0.00 | GN6: 1.75 | GO6: 0.00 | GP6: 0.00 | GS6: 1.75 | GT6: 0.00 | GU6: 0.00
A7: ='2 - CSO INPUT'!M9 -> CSO 005 | G7: 11a. | H7: CSO 005 | DE7: 2.00 | DF7: =IF(ISBLANK('3 - Tc & RAINFALL'!G24),'3 - Tc & RAINFALL'!H24,'3 - Tc & RAINFALL'!G24/4) -> 0.00 | DI7: 2.00 | DJ7: 0.00 | EM7: 0.00 | EN7: 0.00 | EQ7: 2.00 | ER7: 0.00 | FU7: 0.00 | FV7: 0.00 | FY7: 2.00 | FZ7: 0.00 | GA7: 0.00 | GD7: 2.00 | GE7: 0.00 | GF7: 0.00 | GI7: 2.00 | GJ7: 0.00 | GK7: 0.00 | GN7: 2.00 | GO7: 0.00 | GP7: 0.00 | GS7: 2.00 | GT7: 0.00 | GU7: 0.00
A8: ='2 - CSO INPUT'!N9 -> CSO 006 | G8: 11a. | H8: CSO 006 | DE8: 2.25 | DF8: =IF(ISBLANK('3 - Tc & RAINFALL'!G25),'3 - Tc & RAINFALL'!H25,'3 - Tc & RAINFALL'!G25/4) -> 0.00 | DI8: 2.25 | DJ8: =DF8 -> 0.00 | EM8: 0.00 | EN8: 0.00 | EQ8: 2.25 | ER8: 0.00 | FU8: 0.00 | FV8: 0.00 | FY8: 2.25 | FZ8: 0.00 | GA8: 0.00 | GD8: 2.25 | GE8: 0.00 | GF8: 0.00 | GI8: 2.25 | GJ8: 0.00 | GK8: 0.00 | GN8: 2.25 | GO8: 0.00 | GP8: 0.00 | GS8: 2.25 | GT8: 0.00 | GU8: 0.00
A9: ='2 - CSO INPUT'!O9 -> CSO 007 | G9: 11a. | H9: CSO 007 | DE9: 2.50 | DF9: =IF(ISBLANK('3 - Tc & RAINFALL'!G26),'3 - Tc & RAINFALL'!H26,'3 - Tc & RAINFALL'!G26/4) -> 0.00 | DI9: 2.50 | DJ9: 0.00 | EM9: 0.00 | EN9: 0.00 | EQ9: 2.50 | ER9: 0.00 | FU9: 0.00 | FV9: 0.00 | FY9: 2.50 | FZ9: 0.00 | GA9: 0.00 | GD9: 2.50 | GE9: 0.00 | GF9: 0.00 | GI9: 2.50 | GJ9: 0.00 | GK9: 0.00 | GN9: 2.50 | GO9: 0.00 | GP9: 0.00 | GS9: 2.50 | GT9: 0.00 | GU9: 0.00
A10: ='2 - CSO INPUT'!P9 -> CSO 008 | G10: 11a. | H10: CSO 008 | DE10: 2.75 | DF10: =IF(ISBLANK('3 - Tc & RAINFALL'!G27),'3 - Tc & RAINFALL'!H27,'3 - Tc & RAINFALL'!G27/4) -> 0.00 | DI10: 2.75 | DJ10: 0.00 | EM10: 0.00 | EN10: 0.00 | EQ10: 2.75 | ER10: 0.00 | FU10: 0.00 | FV10: 0.00 | FY10: 2.75 | FZ10: 0.00 | GA10: 0.00 | GD10: 2.75 | GE10: 0.00 | GF10: 0.00 | GI10: 2.75 | GJ10: 0.00 | GK10: 0.00 | GN10: 2.75 | GO10: 0.00 | GP10: 0.00 | GS10: 2.75 | GT10: 0.00 | GU10: 0.00
A11: ='2 - CSO INPUT'!Q9 -> CSO 009 | G11: 11a. | H11: CSO 009 | DE11: 3.00 | DF11: =IF(ISBLANK('3 - Tc & RAINFALL'!G28),'3 - Tc & RAINFALL'!H28,'3 - Tc & RAINFALL'!G28/4) -> 0.00 | DI11: 3.00 | DJ11: 0.00 | EM11: 0.00 | EN11: 0.00 | EQ11: 3.00 | ER11: 0.00 | FU11: 0.00 | FV11: 0.00 | FY11: 3.00 | FZ11: 0.00 | GA11: 0.00 | GD11: 3.00 | GE11: 0.00 | GF11: 0.00 | GI11: 3.00 | GJ11: 0.00 | GK11: 0.00 | GN11: 3.00 | GO11: 0.00 | GP11: 0.00 | GS11: 3.00 | GT11: 0.00 | GU11: 0.00
A12: ='2 - CSO INPUT'!R9 -> CSO 010 | G12: 11a. | H12: CSO 010 | DE12: 3.25 | DF12: =IF(ISBLANK('3 - Tc & RAINFALL'!G29),'3 - Tc & RAINFALL'!H29,'3 - Tc & RAINFALL'!G29/4) -> 0.00 | DI12: 3.25 | DJ12: 0.00 | EM12: 0.00 | EN12: 0.00 | EQ12: 3.25 | ER12: 0.00 | FU12: 0.00 | FV12: 0.00 | FY12: 3.25 | FZ12: 0.00 | GA12: 0.00 | GD12: 3.25 | GE12: 0.00 | GF12: 0.00 | GI12: 3.25 | GJ12: 0.00 | GK12: 0.00 | GN12: 3.25 | GO12: 0.00 | GP12: 0.00 | GS12: 3.25 | GT12: 0.00 | GU12: 0.00
A13: ='2 - CSO INPUT'!S9 -> CSO 011 | G13: 11a. | H13: CSO 011 | I13: =IF(IFERROR(VLOOKUP(CONCATENATE($H13,$G13),$A:$DA,I$1,FALSE),"")=0,"",IFERROR(VLOOKUP(CONCATENATE($H13,$G13),$A:$DA,I$1,FALSE),"")) ->  | S13: =IF(IFERROR(VLOOKUP(CONCATENATE($H13,$G13),$A:$DA,S$1,FALSE),"")=0,"",IFERROR(VLOOKUP(CONCATENATE($H13,$G13),$A:$DA,S$1,FALSE),"")) ->  | AC13: =IF(IFERROR(VLOOKUP(CONCATENATE($H13,$G13),$A:$DA,AC$1,FALSE),"")=0,"",IFERROR(VLOOKUP(CONCATENATE($H13,$G13),$A:$DA,AC$1,FALSE),"")) ->  | AM13: =IF(IFERROR(VLOOKUP(CONCATENATE($H13,$G13),$A:$DA,AM$1,FALSE),"")=0,"",IFERROR(VLOOKUP(CONCATENATE($H13,$G13),$A:$DA,AM$1,FALSE),"")) ->  | AW13: =IF(IFERROR(VLOOKUP(CONCATENATE($H13,$G13),$A:$DA,AW$1,FALSE),"")=0,"",IFERROR(VLOOKUP(CONCATENATE($H13,$G13),$A:$DA,AW$1,FALSE),"")) ->  | BG13: =IF(IFERROR(VLOOKUP(CONCATENATE($H13,$G13),$A:$DA,BG$1,FALSE),"")=0,"",IFERROR(VLOOKUP(CONCATENATE($H13,$G13),$A:$DA,BG$1,FALSE),"")) ->  | BQ13: =IF(IFERROR(VLOOKUP(CONCATENATE($H13,$G13),$A:$DA,BQ$1,FALSE),"")=0,"",IFERROR(VLOOKUP(CONCATENATE($H13,$G13),$A:$DA,BQ$1,FALSE),"")) ->  | CA13: =IF(IFERROR(VLOOKUP(CONCATENATE($H13,$G13),$A:$DA,CA$1,FALSE),"")=0,"",IFERROR(VLOOKUP(CONCATENATE($H13,$G13),$A:$DA,CA$1,FALSE),"")) ->  | CK13: =IF(IFERROR(VLOOKUP(CONCATENATE($H13,$G13),$A:$DA,CK$1,FALSE),"")=0,"",IFERROR(VLOOKUP(CONCATENATE($H13,$G13),$A:$DA,CK$1,FALSE),"")) ->  | CU13: =IF(IFERROR(VLOOKUP(CONCATENATE($H13,$G13),$A:$DA,CU$1,FALSE),"")=0,"",IFERROR(VLOOKUP(CONCATENATE($H13,$G13),$A:$DA,CU$1,FALSE),"")) ->  | DE13: 3.50 | DF13: =IF(ISBLANK('3 - Tc & RAINFALL'!G30),'3 - Tc & RAINFALL'!H30,'3 - Tc & RAINFALL'!G30/4) -> 0.00 | DI13: 3.50 | DJ13: 0.00 | EM13: 0.00 | EN13: 0.00 | EQ13: 3.50 | ER13: 0.00 | FU13: 0.00 | FV13: 0.00 | FY13: 3.50 | FZ13: 0.00 | GA13: 0.00 | GD13: 3.50 | GE13: 0.00 | GF13: 0.00 | GI13: 3.50 | GJ13: 0.00 | GK13: 0.00 | GN13: 3.50 | GO13: 0.00 | GP13: 0.00 | GS13: 3.50 | GT13: 0.00 | GU13: 0.00
A14: ='2 - CSO INPUT'!T9 -> CSO 012 | G14: 11a. | H14: CSO 012 | DE14: 3.75 | DF14: =IF(ISBLANK('3 - Tc & RAINFALL'!G31),'3 - Tc & RAINFALL'!H31,'3 - Tc & RAINFALL'!G31/4) -> 0.00 | DI14: 3.75 | DJ14: 0.00 | EM14: 0.00 | EN14: 0.00 | EQ14: 3.75 | ER14: 0.00 | FU14: 0.00 | FV14: 0.00 | FY14: 3.75 | FZ14: 0.00 | GA14: 0.00 | GD14: 3.75 | GE14: 0.00 | GF14: 0.00 | GI14: 3.75 | GJ14: 0.00 | GK14: 0.00 | GN14: 3.75 | GO14: 0.00 | GP14: 0.00 | GS14: 3.75 | GT14: 0.00 | GU14: 0.00
A15: ='2 - CSO INPUT'!Y9 -> CSO 013 | G15: 11a. | H15: CSO 013 | DE15: 4.00 | DF15: =IF(ISBLANK('3 - Tc & RAINFALL'!G32),'3 - Tc & RAINFALL'!H32,'3 - Tc & RAINFALL'!G32/4) -> 0.00 | DI15: 4.00 | DJ15: 0.00 | EM15: 0.00 | EN15: 0.00 | EQ15: 4.00 | ER15: 0.00 | FU15: 0.00 | FV15: 0.00 | FY15: 4.00 | FZ15: 0.00 | GA15: 0.00 | GD15: 4.00 | GE15: 0.00 | GF15: 0.00 | GI15: 4.00 | GJ15: 0.00 | GK15: 0.00 | GN15: 4.00 | GO15: 0.00 | GP15: 0.00 | GS15: 4.00 | GT15: 0.00 | GU15: 0.00
A16: ='2 - CSO INPUT'!Z9 -> CSO 014 | G16: 11a. | H16: CSO 014 | DE16: 4.25 | DF16: =IF(ISBLANK('3 - Tc & RAINFALL'!G33),'3 - Tc & RAINFALL'!H33,'3 - Tc & RAINFALL'!G33/4) -> 0.00 | DI16: 4.25 | DJ16: 0.00 | EM16: 0.00 | EN16: 0.00 | EQ16: 4.25 | ER16: 0.00 | FU16: 0.00 | FV16: 0.00 | FY16: 4.25 | FZ16: 0.00 | GA16: 0.00 | GD16: 4.25 | GE16: 0.00 | GF16: 0.00 | GI16: 4.25 | GJ16: 0.00 | GK16: 0.00 | GN16: 4.25 | GO16: 0.00 | GP16: 0.00 | GS16: 4.25 | GT16: 0.00 | GU16: 0.00
A17: ='2 - CSO INPUT'!AA9 -> CSO 015 | G17: 11a. | H17: CSO 015 | DE17: 4.50 | DF17: =IF(ISBLANK('3 - Tc & RAINFALL'!G34),'3 - Tc & RAINFALL'!H34,'3 - Tc & RAINFALL'!G34/4) -> 0.00 | DI17: 4.50 | DJ17: 0.00 | EM17: 0.00 | EN17: 0.00 | EQ17: 4.50 | ER17: 0.00 | FU17: 0.00 | FV17: 0.00 | FY17: 4.50 | FZ17: 0.00 | GA17: 0.00 | GD17: 4.50 | GE17: 0.00 | GF17: 0.00 | GI17: 4.50 | GJ17: 0.00 | GK17: 0.00 | GN17: 4.50 | GO17: 0.00 | GP17: 0.00 | GS17: 4.50 | GT17: 0.00 | GU17: 0.00
A18: ='2 - CSO INPUT'!AB9 -> CSO 016 | G18: 11a. | H18: CSO 016 | DE18: 4.75 | DF18: =IF(ISBLANK('3 - Tc & RAINFALL'!G35),'3 - Tc & RAINFALL'!H35,'3 - Tc & RAINFALL'!G35/4) -> 0.00 | DI18: 4.75 | DJ18: 0.00 | EM18: 0.00 | EN18: 0.00 | EQ18: 4.75 | ER18: 0.00 | FU18: 0.00 | FV18: 0.00 | FY18: 4.75 | FZ18: 0.00 | GA18: 0.00 | GD18: 4.75 | GE18: 0.00 | GF18: 0.00 | GI18: 4.75 | GJ18: 0.00 | GK18: 0.00 | GN18: 4.75 | GO18: 0.00 | GP18: 0.00 | GS18: 4.75 | GT18: 0.00 | GU18: 0.00
A19: ='2 - CSO INPUT'!AC9 -> CSO 017 | G19: 11a. | H19: CSO 017 | DE19: 5.00 | DF19: =IF(ISBLANK('3 - Tc & RAINFALL'!G36),'3 - Tc & RAINFALL'!H36,'3 - Tc & RAINFALL'!G36/4) -> 0.00 | DI19: 5.00 | DJ19: 0.00 | EM19: 0.00 | EN19: 0.00 | EQ19: 5.00 | ER19: 0.00 | FU19: 0.00 | FV19: 0.00 | FY19: 5.00 | FZ19: 0.00 | GA19: 0.00 | GD19: 5.00 | GE19: 0.00 | GF19: 0.00 | GI19: 5.00 | GJ19: 0.00 | GK19: 0.00 | GN19: 5.00 | GO19: 0.00 | GP19: 0.00 | GS19: 5.00 | GT19: 0.00 | GU19: 0.00
A20: ='2 - CSO INPUT'!AD9 -> CSO 018 | G20: 11a. | H20: CSO 018 | DE20: 5.25 | DF20: =IF(ISBLANK('3 - Tc & RAINFALL'!G37),'3 - Tc & RAINFALL'!H37,'3 - Tc & RAINFALL'!G37/4) -> 0.00 | DI20: 5.25 | DJ20: 0.00 | EM20: 0.00 | EN20: 0.00 | EQ20: 5.25 | ER20: 0.00 | FU20: 0.00 | FV20: 0.00 | FY20: 5.25 | FZ20: 0.00 | GA20: 0.00 | GD20: 5.25 | GE20: 0.00 | GF20: 0.00 | GI20: 5.25 | GJ20: 0.00 | GK20: 0.00 | GN20: 5.25 | GO20: 0.00 | GP20: 0.00 | GS20: 5.25 | GT20: 0.00 | GU20: 0.00
A21: ='2 - CSO INPUT'!AE9 -> CSO 019 | G21: 11a. | H21: CSO 019 | DE21: 5.50 | DF21: =IF(ISBLANK('3 - Tc & RAINFALL'!G38),'3 - Tc & RAINFALL'!H38,'3 - Tc & RAINFALL'!G38/4) -> 0.00 | DI21: 5.50 | DJ21: 0.00 | EM21: 0.00 | EN21: 0.00 | EQ21: 5.50 | ER21: 0.00 | FU21: 0.00 | FV21: 0.00 | FY21: 5.50 | FZ21: 0.00 | GA21: 0.00 | GD21: 5.50 | GE21: 0.00 | GF21: 0.00 | GI21: 5.50 | GJ21: 0.00 | GK21: 0.00 | GN21: 5.50 | GO21: 0.00 | GP21: 0.00 | GS21: 5.50 | GT21: 0.00 | GU21: 0.00
A22: ='2 - CSO INPUT'!AF9 -> CSO 020 | G22: 11a. | H22: CSO 020 | DE22: 5.75 | DF22: =IF(ISBLANK('3 - Tc & RAINFALL'!G39),'3 - Tc & RAINFALL'!H39,'3 - Tc & RAINFALL'!G39/4) -> 0.00 | DI22: 5.75 | DJ22: 0.00 | EM22: 0.00 | EN22: 0.00 | EQ22: 5.75 | ER22: 0.00 | FU22: 0.00 | FV22: 0.00 | FY22: 5.75 | FZ22: 0.00 | GA22: 0.00 | GD22: 5.75 | GE22: 0.00 | GF22: 0.00 | GI22: 5.75 | GJ22: 0.00 | GK22: 0.00 | GN22: 5.75 | GO22: 0.00 | GP22: 0.00 | GS22: 5.75 | GT22: 0.00 | GU22: 0.00
A23: ='2 - CSO INPUT'!AK9 -> CSO 021 | G23: 11a. | H23: CSO 021 | I23: =IF(IFERROR(VLOOKUP(CONCATENATE($H23,$G23),$A:$DA,I$1,FALSE),"")=0,"",IFERROR(VLOOKUP(CONCATENATE($H23,$G23),$A:$DA,I$1,FALSE),"")) ->  | S23: =IF(IFERROR(VLOOKUP(CONCATENATE($H23,$G23),$A:$DA,S$1,FALSE),"")=0,"",IFERROR(VLOOKUP(CONCATENATE($H23,$G23),$A:$DA,S$1,FALSE),"")) ->  | AC23: =IF(IFERROR(VLOOKUP(CONCATENATE($H23,$G23),$A:$DA,AC$1,FALSE),"")=0,"",IFERROR(VLOOKUP(CONCATENATE($H23,$G23),$A:$DA,AC$1,FALSE),"")) ->  | AM23: =IF(IFERROR(VLOOKUP(CONCATENATE($H23,$G23),$A:$DA,AM$1,FALSE),"")=0,"",IFERROR(VLOOKUP(CONCATENATE($H23,$G23),$A:$DA,AM$1,FALSE),"")) ->  | AW23: =IF(IFERROR(VLOOKUP(CONCATENATE($H23,$G23),$A:$DA,AW$1,FALSE),"")=0,"",IFERROR(VLOOKUP(CONCATENATE($H23,$G23),$A:$DA,AW$1,FALSE),"")) ->  | BG23: =IF(IFERROR(VLOOKUP(CONCATENATE($H23,$G23),$A:$DA,BG$1,FALSE),"")=0,"",IFERROR(VLOOKUP(CONCATENATE($H23,$G23),$A:$DA,BG$1,FALSE),"")) ->  | BQ23: =IF(IFERROR(VLOOKUP(CONCATENATE($H23,$G23),$A:$DA,BQ$1,FALSE),"")=0,"",IFERROR(VLOOKUP(CONCATENATE($H23,$G23),$A:$DA,BQ$1,FALSE),"")) ->  | CA23: =IF(IFERROR(VLOOKUP(CONCATENATE($H23,$G23),$A:$DA,CA$1,FALSE),"")=0,"",IFERROR(VLOOKUP(CONCATENATE($H23,$G23),$A:$DA,CA$1,FALSE),"")) ->  | CK23: =IF(IFERROR(VLOOKUP(CONCATENATE($H23,$G23),$A:$DA,CK$1,FALSE),"")=0,"",IFERROR(VLOOKUP(CONCATENATE($H23,$G23),$A:$DA,CK$1,FALSE),"")) ->  | CU23: =IF(IFERROR(VLOOKUP(CONCATENATE($H23,$G23),$A:$DA,CU$1,FALSE),"")=0,"",IFERROR(VLOOKUP(CONCATENATE($H23,$G23),$A:$DA,CU$1,FALSE),"")) ->  | DE23: 6.00 | DF23: =IF(ISBLANK('3 - Tc & RAINFALL'!G40),'3 - Tc & RAINFALL'!H40,'3 - Tc & RAINFALL'!G40/4) -> 0.00 | DI23: 6.00 | DJ23: 0.00 | EM23: 0.00 | EN23: 0.00 | EQ23: 6.00 | ER23: 0.00 | FU23: 0.00 | FV23: 0.00 | FY23: 6.00 | FZ23: 0.00 | GA23: 0.00 | GD23: 6.00 | GE23: 0.00 | GF23: 0.00 | GI23: 6.00 | GJ23: 0.00 | GK23: 0.00 | GN23: 6.00 | GO23: 0.00 | GP23: 0.00 | GS23: 6.00 | GT23: 0.00 | GU23: 0.00
A24: ='2 - CSO INPUT'!AL9 -> CSO 022 | G24: 11a. | H24: CSO 022 | DE24: 6.25 | DF24: =IF(ISBLANK('3 - Tc & RAINFALL'!G41),'3 - Tc & RAINFALL'!H41,'3 - Tc & RAINFALL'!G41/4) -> 0.00 | DI24: 6.25 | DJ24: 0.00 | EM24: 0.00 | EN24: 0.00 | EQ24: 6.25 | ER24: 0.00 | FU24: 0.00 | FV24: 0.00 | FY24: 6.25 | FZ24: 0.00 | GA24: 0.00 | GD24: 6.25 | GE24: 0.00 | GF24: 0.00 | GI24: 6.25 | GJ24: 0.00 | GK24: 0.00 | GN24: 6.25 | GO24: 0.00 | GP24: 0.00 | GS24: 6.25 | GT24: 0.00 | GU24: 0.00
A25: ='2 - CSO INPUT'!AM9 -> CSO 023 | G25: 11a. | H25: CSO 023 | DE25: 6.50 | DF25: =IF(ISBLANK('3 - Tc & RAINFALL'!G42),'3 - Tc & RAINFALL'!H42,'3 - Tc & RAINFALL'!G42/4) -> 0.00 | DI25: 6.50 | DJ25: 0.00 | EM25: 0.00 | EN25: 0.00 | EQ25: 6.50 | ER25: 0.00 | FU25: 0.00 | FV25: 0.00 | FY25: 6.50 | FZ25: 0.00 | GA25: 0.00 | GD25: 6.50 | GE25: 0.00 | GF25: 0.00 | GI25: 6.50 | GJ25: 0.00 | GK25: 0.00 | GN25: 6.50 | GO25: 0.00 | GP25: 0.00 | GS25: 6.50 | GT25: 0.00 | GU25: 0.00
A26: ='2 - CSO INPUT'!AN9 -> CSO 024 | G26: 11a. | H26: CSO 024 | DE26: 6.75 | DF26: =IF(ISBLANK('3 - Tc & RAINFALL'!G43),'3 - Tc & RAINFALL'!H43,'3 - Tc & RAINFALL'!G43/4) -> 0.00 | DI26: 6.75 | DJ26: 0.00 | EM26: 0.00 | EN26: 0.00 | EQ26: 6.75 | ER26: 0.00 | FU26: 0.00 | FV26: 0.00 | FY26: 6.75 | FZ26: 0.00 | GA26: 0.00 | GD26: 6.75 | GE26: 0.00 | GF26: 0.00 | GI26: 6.75 | GJ26: 0.00 | GK26: 0.00 | GN26: 6.75 | GO26: 0.00 | GP26: 0.00 | GS26: 6.75 | GT26: 0.00 | GU26: 0.00
A27: ='2 - CSO INPUT'!AO9 -> CSO 025 | G27: 11a. | H27: CSO 025 | DE27: 7.00 | DF27: =IF(ISBLANK('3 - Tc & RAINFALL'!G44),'3 - Tc & RAINFALL'!H44,'3 - Tc & RAINFALL'!G44/4) -> 0.00 | DI27: 7.00 | DJ27: 0.00 | EM27: 0.00 | EN27: 0.00 | EQ27: 7.00 | ER27: 0.00 | FU27: 0.00 | FV27: 0.00 | FY27: 7.00 | FZ27: 0.00 | GA27: 0.00 | GD27: 7.00 | GE27: 0.00 | GF27: 0.00 | GI27: 7.00 | GJ27: 0.00 | GK27: 0.00 | GN27: 7.00 | GO27: 0.00 | GP27: 0.00 | GS27: 7.00 | GT27: 0.00 | GU27: 0.00
A28: ='2 - CSO INPUT'!AP9 -> CSO 026 | G28: 11a. | H28: CSO 026 | DE28: 7.25 | DF28: =IF(ISBLANK('3 - Tc & RAINFALL'!G45),'3 - Tc & RAINFALL'!H45,'3 - Tc & RAINFALL'!G45/4) -> 0.00 | DI28: 7.25 | DJ28: 0.00 | EM28: 0.00 | EN28: 0.00 | EQ28: 7.25 | ER28: 0.00 | FU28: 0.00 | FV28: 0.00 | FY28: 7.25 | FZ28: 0.00 | GA28: 0.00 | GD28: 7.25 | GE28: 0.00 | GF28: 0.00 | GI28: 7.25 | GJ28: 0.00 | GK28: 0.00 | GN28: 7.25 | GO28: 0.00 | GP28: 0.00 | GS28: 7.25 | GT28: 0.00 | GU28: 0.00
A29: ='2 - CSO INPUT'!AQ9 -> CSO 027 | G29: 11a. | H29: CSO 027 | DE29: 7.50 | DF29: =IF(ISBLANK('3 - Tc & RAINFALL'!G46),'3 - Tc & RAINFALL'!H46,'3 - Tc & RAINFALL'!G46/4) -> 0.00 | DI29: 7.50 | DJ29: 0.00 | EM29: 0.00 | EN29: 0.00 | EQ29: 7.50 | ER29: 0.00 | FU29: 0.00 | FV29: 0.00 | FY29: 7.50 | FZ29: 0.00 | GA29: 0.00 | GD29: 7.50 | GE29: 0.00 | GF29: 0.00 | GI29: 7.50 | GJ29: 0.00 | GK29: 0.00 | GN29: 7.50 | GO29: 0.00 | GP29: 0.00 | GS29: 7.50 | GT29: 0.00 | GU29: 0.00
A30: ='2 - CSO INPUT'!AR9 -> CSO 028 | G30: 11a. | H30: CSO 028 | DE30: 7.75 | DF30: =IF(ISBLANK('3 - Tc & RAINFALL'!G47),'3 - Tc & RAINFALL'!H47,'3 - Tc & RAINFALL'!G47/4) -> 0.00 | DI30: 7.75 | DJ30: 0.00 | EM30: 0.00 | EN30: 0.00 | EQ30: 7.75 | ER30: 0.00 | FU30: 0.00 | FV30: 0.00 | FY30: 7.75 | FZ30: 0.00 | GA30: 0.00 | GD30: 7.75 | GE30: 0.00 | GF30: 0.00 | GI30: 7.75 | GJ30: 0.00 | GK30: 0.00 | GN30: 7.75 | GO30: 0.00 | GP30: 0.00 | GS30: 7.75 | GT30: 0.00 | GU30: 0.00
G31: 11a. | H31: Total | I31: =SUM(I3:I30) -> 0.00 | J31: =SUM(J3:J30) -> 0.00 | K31: 0.00 | L31: 0.00 | M31: 0.00 | N31: 0.00 | O31: 0.00 | P31: 0.00 | Q31: 0.00 | R31: 0.00 | S31: 0.00 | T31: 0.00 | U31: 0.00 | V31: 0.00 | W31: 0.00 | X31: 0.00 | Y31: 0.00 | Z31: 0.00 | AA31: 0.00 | AB31: 0.00 | AC31: 0.00 | AD31: 0.00 | AE31: 0.00 | AF31: 0.00 | AG31: 0.00 | AH31: 0.00 | AI31: 0.00 | AJ31: 0.00 | AK31: 0.00 | AL31: 0.00 | AM31: 0.00 | AN31: 0.00 | AO31: 0.00 | AP31: 0.00 | AQ31: 0.00 | AR31: 0.00 | AS31: 0.00 | AT31: 0.00 | AU31: 0.00 | AV31: 0.00 | AW31: 0.00 | AX31: 0.00 | AY31: 0.00 | AZ31: 0.00 | BA31: 0.00 | BB31: 0.00 | BC31: 0.00 | BD31: 0.00 | BE31: 0.00 | BF31: 0.00 | BG31: 0.00 | BH31: 0.00 | BI31: 0.00 | BJ31: 0.00 | BK31: 0.00 | BL31: 0.00 | BM31: 0.00 | BN31: 0.00 | BO31: 0.00 | BP31: 0.00 | BQ31: 0.00 | BR31: 0.00 | BS31: 0.00 | BT31: 0.00 | BU31: 0.00 | BV31: =SUM(BV3:BV30) -> 0.00 | BW31: 0.00 | BX31: 0.00 | BY31: 0.00 | BZ31: 0.00 | CA31: 0.00 | CB31: 0.00 | CC31: 0.00 | CD31: 0.00 | CE31: 0.00 | CF31: 0.00 | CG31: 0.00 | CH31: 0.00 | CI31: 0.00 | CJ31: 0.00 | CK31: 0.00 | CL31: 0.00 | CM31: 0.00 | CN31: 0.00 | CO31: 0.00 | CP31: 0.00 | CQ31: 0.00 | CR31: 0.00 | CS31: 0.00 | CT31: 0.00 | CU31: 0.00 | CV31: 0.00 | CW31: 0.00 | CX31: 0.00 | CY31: 0.00 | CZ31: 0.00 | DA31: =SUM(DA3:DA30) -> 0.00 | DE31: 8.00 | DF31: =IF(ISBLANK('3 - Tc & RAINFALL'!G48),'3 - Tc & RAINFALL'!H48,'3 - Tc & RAINFALL'!G48/4) -> 0.00 | DI31: 8.00 | DJ31: 0.00 | EM31: 0.00 | EN31: 0.00 | EQ31: 8.00 | ER31: 0.00 | FU31: 0.00 | FV31: 0.00 | FY31: 8.00 | FZ31: 0.00 | GA31: 0.00 | GD31: 8.00 | GE31: 0.00 | GF31: 0.00 | GI31: 8.00 | GJ31: 0.00 | GK31: 0.00 | GN31: 8.00 | GO31: 0.00 | GP31: 0.00 | GS31: 8.00 | GT31: 0.00 | GU31: 0.00
G32: 11a. | H32: Cumu. | I32: =I31 -> 0.00 | J32: =I32+J31 -> 0.00 | K32: =J32+K31 -> 0.00 | L32: 0.00 | M32: 0.00 | N32: 0.00 | O32: 0.00 | P32: 0.00 | Q32: 0.00 | R32: 0.00 | S32: 0.00 | T32: 0.00 | U32: 0.00 | V32: 0.00 | W32: 0.00 | X32: 0.00 | Y32: 0.00 | Z32: 0.00 | AA32: 0.00 | AB32: 0.00 | AC32: 0.00 | AD32: 0.00 | AE32: 0.00 | AF32: 0.00 | AG32: 0.00 | AH32: 0.00 | AI32: 0.00 | AJ32: 0.00 | AK32: 0.00 | AL32: 0.00 | AM32: 0.00 | AN32: 0.00 | AO32: 0.00 | AP32: 0.00 | AQ32: 0.00 | AR32: 0.00 | AS32: 0.00 | AT32: 0.00 | AU32: 0.00 | AV32: 0.00 | AW32: 0.00 | AX32: 0.00 | AY32: 0.00 | AZ32: 0.00 | BA32: 0.00 | BB32: 0.00 | BC32: 0.00 | BD32: 0.00 | BE32: 0.00 | BF32: 0.00 | BG32: 0.00 | BH32: 0.00 | BI32: 0.00 | BJ32: 0.00 | BK32: 0.00 | BL32: 0.00 | BM32: 0.00 | BN32: 0.00 | BO32: 0.00 | BP32: 0.00 | BQ32: 0.00 | BR32: 0.00 | BS32: 0.00 | BT32: 0.00 | BU32: 0.00 | BV32: 0.00 | BW32: =BV32+BW31 -> 0.00 | BX32: 0.00 | BY32: 0.00 | BZ32: 0.00 | CA32: 0.00 | CB32: 0.00 | CC32: 0.00 | CD32: 0.00 | CE32: 0.00 | CF32: 0.00 | CG32: 0.00 | CH32: 0.00 | CI32: 0.00 | CJ32: 0.00 | CK32: 0.00 | CL32: 0.00 | CM32: 0.00 | CN32: 0.00 | CO32: 0.00 | CP32: 0.00 | CQ32: 0.00 | CR32: 0.00 | CS32: 0.00 | CT32: 0.00 | CU32: 0.00 | CV32: 0.00 | CW32: 0.00 | CX32: 0.00 | CY32: 0.00 | CZ32: 0.00 | DE32: 8.25 | DF32: =IF(ISBLANK('3 - Tc & RAINFALL'!G49),'3 - Tc & RAINFALL'!H49,'3 - Tc & RAINFALL'!G49/4) -> 0.00 | DI32: 8.25 | DJ32: 0.00 | EM32: 0.00 | EN32: 0.00 | EQ32: 8.25 | ER32: 0.00 | FU32: 0.00 | FV32: 0.00 | FY32: 8.25 | FZ32: 0.00 | GA32: 0.00 | GD32: 8.25 | GE32: 0.00 | GF32: 0.00 | GI32: 8.25 | GJ32: 0.00 | GK32: 0.00 | GN32: 8.25 | GO32: 0.00 | GP32: 0.00 | GS32: 8.25 | GT32: 0.00 | GU32: 0.00
B33: 13. Runoff Controls | C33: 13b. | D33: Dry weather flow rate (MGD) | G33: 13b. | H33: =H3 -> CSO 001 | I33: =IF(IFERROR(VLOOKUP(CONCATENATE($H33,$G33),$A:$DA,I$1,FALSE),"")=0,"",IFERROR(VLOOKUP(CONCATENATE($H33,$G33),$A:$DA,I$1,FALSE),"")) ->  | S33: =IF(IFERROR(VLOOKUP(CONCATENATE($H33,$G33),$A:$DA,S$1,FALSE),"")=0,"",IFERROR(VLOOKUP(CONCATENATE($H33,$G33),$A:$DA,S$1,FALSE),"")) ->  | AC33: =IF(IFERROR(VLOOKUP(CONCATENATE($H33,$G33),$A:$DA,AC$1,FALSE),"")=0,"",IFERROR(VLOOKUP(CONCATENATE($H33,$G33),$A:$DA,AC$1,FALSE),"")) ->  | AM33: =IF(IFERROR(VLOOKUP(CONCATENATE($H33,$G33),$A:$DA,AM$1,FALSE),"")=0,"",IFERROR(VLOOKUP(CONCATENATE($H33,$G33),$A:$DA,AM$1,FALSE),"")) ->  | AW33: =IF(IFERROR(VLOOKUP(CONCATENATE($H33,$G33),$A:$DA,AW$1,FALSE),"")=0,"",IFERROR(VLOOKUP(CONCATENATE($H33,$G33),$A:$DA,AW$1,FALSE),"")) ->  | BG33: =IF(IFERROR(VLOOKUP(CONCATENATE($H33,$G33),$A:$DA,BG$1,FALSE),"")=0,"",IFERROR(VLOOKUP(CONCATENATE($H33,$G33),$A:$DA,BG$1,FALSE),"")) ->  | BQ33: =IF(IFERROR(VLOOKUP(CONCATENATE($H33,$G33),$A:$DA,BQ$1,FALSE),"")=0,"",IFERROR(VLOOKUP(CONCATENATE($H33,$G33),$A:$DA,BQ$1,FALSE),"")) ->  | CA33: =IF(IFERROR(VLOOKUP(CONCATENATE($H33,$G33),$A:$DA,CA$1,FALSE),"")=0,"",IFERROR(VLOOKUP(CONCATENATE($H33,$G33),$A:$DA,CA$1,FALSE),"")) ->  | CK33: =IF(IFERROR(VLOOKUP(CONCATENATE($H33,$G33),$A:$DA,CK$1,FALSE),"")=0,"",IFERROR(VLOOKUP(CONCATENATE($H33,$G33),$A:$DA,CK$1,FALSE),"")) ->  | CU33: =IF(IFERROR(VLOOKUP(CONCATENATE($H33,$G33),$A:$DA,CU$1,FALSE),"")=0,"",IFERROR(VLOOKUP(CONCATENATE($H33,$G33),$A:$DA,CU$1,FALSE),"")) ->  | DA33: =IF(SUM(I33:CZ33)=0,"",SUM(I33:CZ33)) ->  | DE33: 8.50 | DF33: =IF(ISBLANK('3 - Tc & RAINFALL'!G50),'3 - Tc & RAINFALL'!H50,'3 - Tc & RAINFALL'!G50/4) -> 0.00 | DI33: 8.50 | DJ33: 0.00 | EM33: 0.00 | EN33: 0.00 | EQ33: 8.50 | ER33: 0.00 | FU33: 0.00 | FV33: 0.00 | FY33: 8.50 | FZ33: 0.00 | GA33: 0.00 | GD33: 8.50 | GE33: 0.00 | GF33: 0.00 | GI33: 8.50 | GJ33: 0.00 | GK33: 0.00 | GN33: 8.50 | GO33: 0.00 | GP33: 0.00 | GS33: 8.50 | GT33: 0.00 | GU33: 0.00
G34: 13b. | H34: CSO 002 | DA34: =IF(SUM(I34:CZ34)=0,"",SUM(I34:CZ34)) ->  | DE34: 8.75 | DF34: =IF(ISBLANK('3 - Tc & RAINFALL'!G51),'3 - Tc & RAINFALL'!H51,'3 - Tc & RAINFALL'!G51/4) -> 0.00 | DI34: 8.75 | DJ34: 0.00 | EM34: 0.00 | EN34: 0.00 | EQ34: 8.75 | ER34: 0.00 | FU34: 0.00 | FV34: 0.00 | FY34: 8.75 | FZ34: 0.00 | GA34: 0.00 | GD34: 8.75 | GE34: 0.00 | GF34: 0.00 | GI34: 8.75 | GJ34: 0.00 | GK34: 0.00 | GN34: 8.75 | GO34: 0.00 | GP34: 0.00 | GS34: 8.75 | GT34: 0.00 | GU34: 0.00
G35: 13b. | H35: CSO 003 | DA35: =IF(SUM(I35:CZ35)=0,"",SUM(I35:CZ35)) ->  | DE35: 9.00 | DF35: =IF(ISBLANK('3 - Tc & RAINFALL'!G52),'3 - Tc & RAINFALL'!H52,'3 - Tc & RAINFALL'!G52/4) -> 0.00 | DI35: 9.00 | DJ35: =DF35 -> 0.00 | EM35: 0.00 | EN35: 0.00 | EQ35: 9.00 | ER35: =DF35 -> 0.00 | FU35: 0.00 | FV35: 0.00 | FY35: 9.00 | FZ35: 0.00 | GA35: 0.00 | GD35: 9.00 | GE35: 0.00 | GF35: 0.00 | GI35: 9.00 | GJ35: 0.00 | GK35: 0.00 | GN35: 9.00 | GO35: 0.00 | GP35: 0.00 | GS35: 9.00 | GT35: 0.00 | GU35: 0.00
G36: 13b. | H36: CSO 004 | DE36: 9.25 | DF36: =IF(ISBLANK('3 - Tc & RAINFALL'!G53),'3 - Tc & RAINFALL'!H53,'3 - Tc & RAINFALL'!G53/4) -> 0.00 | DI36: 9.25 | DJ36: 0.00 | EM36: 0.00 | EN36: 0.00 | EQ36: 9.25 | ER36: 0.00 | FU36: 0.00 | FV36: 0.00 | FY36: 9.25 | FZ36: 0.00 | GA36: 0.00 | GD36: 9.25 | GE36: 0.00 | GF36: 0.00 | GI36: 9.25 | GJ36: 0.00 | GK36: 0.00 | GN36: 9.25 | GO36: 0.00 | GP36: 0.00 | GS36: 9.25 | GT36: 0.00 | GU36: 0.00
G37: 13b. | H37: CSO 005 | DA37: =IF(SUM(I37:CZ37)=0,"",SUM(I37:CZ37)) ->  | DE37: 9.50 | DF37: =IF(ISBLANK('3 - Tc & RAINFALL'!G54),'3 - Tc & RAINFALL'!H54,'3 - Tc & RAINFALL'!G54/4) -> 0.00 | DI37: 9.50 | DJ37: 0.00 | EM37: 0.00 | EN37: 0.00 | EQ37: 9.50 | ER37: 0.00 | FU37: 0.00 | FV37: 0.00 | FY37: 9.50 | FZ37: 0.00 | GA37: 0.00 | GD37: 9.50 | GE37: 0.00 | GF37: 0.00 | GI37: 9.50 | GJ37: 0.00 | GK37: 0.00 | GN37: 9.50 | GO37: 0.00 | GP37: 0.00 | GS37: 9.50 | GT37: 0.00 | GU37: 0.00
G38: 13b. | H38: CSO 006 | DE38: 9.75 | DF38: =IF(ISBLANK('3 - Tc & RAINFALL'!G55),'3 - Tc & RAINFALL'!H55,'3 - Tc & RAINFALL'!G55/4) -> 0.00 | DI38: 9.75 | DJ38: 0.00 | EM38: 0.00 | EN38: 0.00 | EQ38: 9.75 | ER38: 0.00 | FU38: 0.00 | FV38: 0.00 | FY38: 9.75 | FZ38: 0.00 | GA38: 0.00 | GD38: 9.75 | GE38: 0.00 | GF38: 0.00 | GI38: 9.75 | GJ38: 0.00 | GK38: 0.00 | GN38: 9.75 | GO38: 0.00 | GP38: 0.00 | GS38: 9.75 | GT38: 0.00 | GU38: 0.00
G39: 13b. | H39: CSO 007 | DE39: 10.00 | DF39: =IF(ISBLANK('3 - Tc & RAINFALL'!G56),'3 - Tc & RAINFALL'!H56,'3 - Tc & RAINFALL'!G56/4) -> 0.00 | DI39: 10.00 | DJ39: 0.00 | EM39: 0.00 | EN39: 0.00 | EQ39: 10.00 | ER39: 0.00 | FU39: 0.00 | FV39: 0.00 | FY39: 10.00 | FZ39: 0.00 | GA39: 0.00 | GD39: 10.00 | GE39: 0.00 | GF39: 0.00 | GI39: 10.00 | GJ39: 0.00 | GK39: 0.00 | GN39: 10.00 | GO39: 0.00 | GP39: 0.00 | GS39: 10.00 | GT39: 0.00 | GU39: 0.00
G40: 13b. | H40: CSO 008 | DE40: 10.25 | DF40: =IF(ISBLANK('3 - Tc & RAINFALL'!G57),'3 - Tc & RAINFALL'!H57,'3 - Tc & RAINFALL'!G57/4) -> 0.00 | DI40: 10.25 | DJ40: 0.00 | EM40: 0.00 | EN40: 0.00 | EQ40: 10.25 | ER40: 0.00 | FU40: 0.00 | FV40: 0.00 | FY40: 10.25 | FZ40: 0.00 | GA40: 0.00 | GD40: 10.25 | GE40: 0.00 | GF40: 0.00 | GI40: 10.25 | GJ40: 0.00 | GK40: 0.00 | GN40: 10.25 | GO40: 0.00 | GP40: 0.00 | GS40: 10.25 | GT40: 0.00 | GU40: 0.00
G41: 13b. | H41: CSO 009 | DE41: 10.50 | DF41: =IF(ISBLANK('3 - Tc & RAINFALL'!G58),'3 - Tc & RAINFALL'!H58,'3 - Tc & RAINFALL'!G58/4) -> 0.00 | DI41: 10.50 | DJ41: 0.00 | EM41: 0.00 | EN41: 0.00 | EQ41: 10.50 | ER41: 0.00 | FU41: 0.00 | FV41: 0.00 | FY41: 10.50 | FZ41: 0.00 | GA41: 0.00 | GD41: 10.50 | GE41: 0.00 | GF41: 0.00 | GI41: 10.50 | GJ41: 0.00 | GK41: 0.00 | GN41: 10.50 | GO41: 0.00 | GP41: 0.00 | GS41: 10.50 | GT41: 0.00 | GU41: 0.00
G42: 13b. | H42: CSO 010 | DE42: 10.75 | DF42: =IF(ISBLANK('3 - Tc & RAINFALL'!G59),'3 - Tc & RAINFALL'!H59,'3 - Tc & RAINFALL'!G59/4) -> 0.00 | DI42: 10.75 | DJ42: 0.00 | EM42: 0.00 | EN42: 0.00 | EQ42: 10.75 | ER42: 0.00 | FU42: 0.00 | FV42: 0.00 | FY42: 10.75 | FZ42: 0.00 | GA42: 0.00 | GD42: 10.75 | GE42: 0.00 | GF42: 0.00 | GI42: 10.75 | GJ42: 0.00 | GK42: 0.00 | GN42: 10.75 | GO42: 0.00 | GP42: 0.00 | GS42: 10.75 | GT42: 0.00 | GU42: 0.00
G43: 13b. | H43: CSO 011 | I43: =IF(IFERROR(VLOOKUP(CONCATENATE($H43,$G43),$A:$DA,I$1,FALSE),"")=0,"",IFERROR(VLOOKUP(CONCATENATE($H43,$G43),$A:$DA,I$1,FALSE),"")) ->  | S43: =IF(IFERROR(VLOOKUP(CONCATENATE($H43,$G43),$A:$DA,S$1,FALSE),"")=0,"",IFERROR(VLOOKUP(CONCATENATE($H43,$G43),$A:$DA,S$1,FALSE),"")) ->  | AC43: =IF(IFERROR(VLOOKUP(CONCATENATE($H43,$G43),$A:$DA,AC$1,FALSE),"")=0,"",IFERROR(VLOOKUP(CONCATENATE($H43,$G43),$A:$DA,AC$1,FALSE),"")) ->  | AM43: =IF(IFERROR(VLOOKUP(CONCATENATE($H43,$G43),$A:$DA,AM$1,FALSE),"")=0,"",IFERROR(VLOOKUP(CONCATENATE($H43,$G43),$A:$DA,AM$1,FALSE),"")) ->  | AW43: =IF(IFERROR(VLOOKUP(CONCATENATE($H43,$G43),$A:$DA,AW$1,FALSE),"")=0,"",IFERROR(VLOOKUP(CONCATENATE($H43,$G43),$A:$DA,AW$1,FALSE),"")) ->  | BG43: =IF(IFERROR(VLOOKUP(CONCATENATE($H43,$G43),$A:$DA,BG$1,FALSE),"")=0,"",IFERROR(VLOOKUP(CONCATENATE($H43,$G43),$A:$DA,BG$1,FALSE),"")) ->  | BQ43: =IF(IFERROR(VLOOKUP(CONCATENATE($H43,$G43),$A:$DA,BQ$1,FALSE),"")=0,"",IFERROR(VLOOKUP(CONCATENATE($H43,$G43),$A:$DA,BQ$1,FALSE),"")) ->  | CA43: =IF(IFERROR(VLOOKUP(CONCATENATE($H43,$G43),$A:$DA,CA$1,FALSE),"")=0,"",IFERROR(VLOOKUP(CONCATENATE($H43,$G43),$A:$DA,CA$1,FALSE),"")) ->  | CK43: =IF(IFERROR(VLOOKUP(CONCATENATE($H43,$G43),$A:$DA,CK$1,FALSE),"")=0,"",IFERROR(VLOOKUP(CONCATENATE($H43,$G43),$A:$DA,CK$1,FALSE),"")) ->  | CU43: =IF(IFERROR(VLOOKUP(CONCATENATE($H43,$G43),$A:$DA,CU$1,FALSE),"")=0,"",IFERROR(VLOOKUP(CONCATENATE($H43,$G43),$A:$DA,CU$1,FALSE),"")) ->  | DE43: 11.00 | DF43: =IF(ISBLANK('3 - Tc & RAINFALL'!G60),'3 - Tc & RAINFALL'!H60,'3 - Tc & RAINFALL'!G60/4) -> 0.00 | DI43: 11.00 | DJ43: 0.00 | EM43: 0.00 | EN43: 0.00 | EQ43: 11.00 | ER43: 0.00 | FU43: 0.00 | FV43: 0.00 | FY43: 11.00 | FZ43: 0.00 | GA43: 0.00 | GD43: 11.00 | GE43: 0.00 | GF43: 0.00 | GI43: 11.00 | GJ43: 0.00 | GK43: 0.00 | GN43: 11.00 | GO43: 0.00 | GP43: 0.00 | GS43: 11.00 | GT43: 0.00 | GU43: 0.00
G44: 13b. | H44: CSO 012 | DE44: 11.25 | DF44: =IF(ISBLANK('3 - Tc & RAINFALL'!G61),'3 - Tc & RAINFALL'!H61,'3 - Tc & RAINFALL'!G61/4) -> 0.00 | DI44: 11.25 | DJ44: 0.00 | EM44: 0.00 | EN44: 0.00 | EQ44: 11.25 | ER44: 0.00 | FU44: 0.00 | FV44: 0.00 | FY44: 11.25 | FZ44: 0.00 | GA44: 0.00 | GD44: 11.25 | GE44: 0.00 | GF44: 0.00 | GI44: 11.25 | GJ44: 0.00 | GK44: 0.00 | GN44: 11.25 | GO44: 0.00 | GP44: 0.00 | GS44: 11.25 | GT44: 0.00 | GU44: 0.00
G45: 13b. | H45: CSO 013 | DE45: 11.50 | DF45: =IF(ISBLANK('3 - Tc & RAINFALL'!G62),'3 - Tc & RAINFALL'!H62,'3 - Tc & RAINFALL'!G62/4) -> 0.00 | DI45: 11.50 | DJ45: 0.00 | EM45: 0.00 | EN45: 0.00 | EQ45: 11.50 | ER45: 0.00 | FU45: 0.00 | FV45: 0.00 | FY45: 11.50 | FZ45: 0.00 | GA45: 0.00 | GD45: 11.50 | GE45: 0.00 | GF45: 0.00 | GI45: 11.50 | GJ45: 0.00 | GK45: 0.00 | GN45: 11.50 | GO45: 0.00 | GP45: 0.00 | GS45: 11.50 | GT45: 0.00 | GU45: 0.00
G46: 13b. | H46: CSO 014 | DE46: 11.75 | DF46: =IF(ISBLANK('3 - Tc & RAINFALL'!G63),'3 - Tc & RAINFALL'!H63,'3 - Tc & RAINFALL'!G63/4) -> 0.00 | DI46: 11.75 | DJ46: 0.00 | EM46: 0.00 | EN46: 0.00 | EQ46: 11.75 | ER46: 0.00 | FU46: 0.00 | FV46: 0.00 | FY46: 11.75 | FZ46: 0.00 | GA46: 0.00 | GD46: 11.75 | GE46: 0.00 | GF46: 0.00 | GI46: 11.75 | GJ46: 0.00 | GK46: 0.00 | GN46: 11.75 | GO46: 0.00 | GP46: 0.00 | GS46: 11.75 | GT46: 0.00 | GU46: 0.00
G47: 13b. | H47: CSO 015 | DE47: 12.00 | DF47: =IF(ISBLANK('3 - Tc & RAINFALL'!G64),'3 - Tc & RAINFALL'!H64,'3 - Tc & RAINFALL'!G64/4) -> 0.00 | DI47: 12.00 | DJ47: 0.00 | EM47: 0.00 | EN47: 0.00 | EQ47: 12.00 | ER47: 0.00 | FU47: 0.00 | FV47: 0.00 | FY47: 12.00 | FZ47: 0.00 | GA47: 0.00 | GD47: 12.00 | GE47: 0.00 | GF47: 0.00 | GI47: 12.00 | GJ47: 0.00 | GK47: 0.00 | GN47: 12.00 | GO47: 0.00 | GP47: 0.00 | GS47: 12.00 | GT47: 0.00 | GU47: 0.00
G48: 13b. | H48: CSO 016 | DE48: 12.25 | DF48: =IF(ISBLANK('3 - Tc & RAINFALL'!G65),'3 - Tc & RAINFALL'!H65,'3 - Tc & RAINFALL'!G65/4) -> 0.00 | DI48: 12.25 | DJ48: 0.00 | EM48: 0.00 | EN48: 0.00 | EQ48: 12.25 | ER48: 0.00 | FU48: 0.00 | FV48: 0.00 | FY48: 12.25 | FZ48: 0.00 | GA48: 0.00 | GD48: 12.25 | GE48: 0.00 | GF48: 0.00 | GI48: 12.25 | GJ48: 0.00 | GK48: 0.00 | GN48: 12.25 | GO48: 0.00 | GP48: 0.00 | GS48: 12.25 | GT48: 0.00 | GU48: 0.00
G49: 13b. | H49: CSO 017 | DE49: 12.50 | DF49: =IF(ISBLANK('3 - Tc & RAINFALL'!G66),'3 - Tc & RAINFALL'!H66,'3 - Tc & RAINFALL'!G66/4) -> 0.00 | DI49: 12.50 | DJ49: 0.00 | EM49: 0.00 | EN49: 0.00 | EQ49: 12.50 | ER49: 0.00 | FU49: 0.00 | FV49: 0.00 | FY49: 12.50 | FZ49: 0.00 | GA49: 0.00 | GD49: 12.50 | GE49: 0.00 | GF49: 0.00 | GI49: 12.50 | GJ49: 0.00 | GK49: 0.00 | GN49: 12.50 | GO49: 0.00 | GP49: 0.00 | GS49: 12.50 | GT49: 0.00 | GU49: 0.00
G50: 13b. | H50: CSO 018 | DE50: 12.75 | DF50: =IF(ISBLANK('3 - Tc & RAINFALL'!G67),'3 - Tc & RAINFALL'!H67,'3 - Tc & RAINFALL'!G67/4) -> 0.00 | DI50: 12.75 | DJ50: 0.00 | EM50: 0.00 | EN50: 0.00 | EQ50: 12.75 | ER50: 0.00 | FU50: 0.00 | FV50: 0.00 | FY50: 12.75 | FZ50: 0.00 | GA50: 0.00 | GD50: 12.75 | GE50: 0.00 | GF50: 0.00 | GI50: 12.75 | GJ50: 0.00 | GK50: 0.00 | GN50: 12.75 | GO50: 0.00 | GP50: 0.00 | GS50: 12.75 | GT50: 0.00 | GU50: 0.00
G51: 13b. | H51: CSO 019 | DE51: 13.00 | DF51: =IF(ISBLANK('3 - Tc & RAINFALL'!G68),'3 - Tc & RAINFALL'!H68,'3 - Tc & RAINFALL'!G68/4) -> 0.00 | DI51: 13.00 | DJ51: 0.00 | EM51: 0.00 | EN51: 0.00 | EQ51: 13.00 | ER51: 0.00 | FU51: 0.00 | FV51: 0.00 | FY51: 13.00 | FZ51: 0.00 | GA51: 0.00 | GD51: 13.00 | GE51: 0.00 | GF51: 0.00 | GI51: 13.00 | GJ51: 0.00 | GK51: 0.00 | GN51: 13.00 | GO51: 0.00 | GP51: 0.00 | GS51: 13.00 | GT51: 0.00 | GU51: 0.00
G52: 13b. | H52: CSO 020 | DE52: 13.25 | DF52: =IF(ISBLANK('3 - Tc & RAINFALL'!G69),'3 - Tc & RAINFALL'!H69,'3 - Tc & RAINFALL'!G69/4) -> 0.00 | DI52: 13.25 | DJ52: 0.00 | EM52: 0.00 | EN52: 0.00 | EQ52: 13.25 | ER52: 0.00 | FU52: 0.00 | FV52: 0.00 | FY52: 13.25 | FZ52: 0.00 | GA52: 0.00 | GD52: 13.25 | GE52: 0.00 | GF52: 0.00 | GI52: 13.25 | GJ52: 0.00 | GK52: 0.00 | GN52: 13.25 | GO52: 0.00 | GP52: 0.00 | GS52: 13.25 | GT52: 0.00 | GU52: 0.00
G53: 13b. | H53: CSO 021 | I53: =IF(IFERROR(VLOOKUP(CONCATENATE($H53,$G53),$A:$DA,I$1,FALSE),"")=0,"",IFERROR(VLOOKUP(CONCATENATE($H53,$G53),$A:$DA,I$1,FALSE),"")) ->  | S53: =IF(IFERROR(VLOOKUP(CONCATENATE($H53,$G53),$A:$DA,S$1,FALSE),"")=0,"",IFERROR(VLOOKUP(CONCATENATE($H53,$G53),$A:$DA,S$1,FALSE),"")) ->  | AC53: =IF(IFERROR(VLOOKUP(CONCATENATE($H53,$G53),$A:$DA,AC$1,FALSE),"")=0,"",IFERROR(VLOOKUP(CONCATENATE($H53,$G53),$A:$DA,AC$1,FALSE),"")) ->  | AM53: =IF(IFERROR(VLOOKUP(CONCATENATE($H53,$G53),$A:$DA,AM$1,FALSE),"")=0,"",IFERROR(VLOOKUP(CONCATENATE($H53,$G53),$A:$DA,AM$1,FALSE),"")) ->  | AW53: =IF(IFERROR(VLOOKUP(CONCATENATE($H53,$G53),$A:$DA,AW$1,FALSE),"")=0,"",IFERROR(VLOOKUP(CONCATENATE($H53,$G53),$A:$DA,AW$1,FALSE),"")) ->  | BG53: =IF(IFERROR(VLOOKUP(CONCATENATE($H53,$G53),$A:$DA,BG$1,FALSE),"")=0,"",IFERROR(VLOOKUP(CONCATENATE($H53,$G53),$A:$DA,BG$1,FALSE),"")) ->  | BQ53: =IF(IFERROR(VLOOKUP(CONCATENATE($H53,$G53),$A:$DA,BQ$1,FALSE),"")=0,"",IFERROR(VLOOKUP(CONCATENATE($H53,$G53),$A:$DA,BQ$1,FALSE),"")) ->  | CA53: =IF(IFERROR(VLOOKUP(CONCATENATE($H53,$G53),$A:$DA,CA$1,FALSE),"")=0,"",IFERROR(VLOOKUP(CONCATENATE($H53,$G53),$A:$DA,CA$1,FALSE),"")) ->  | CK53: =IF(IFERROR(VLOOKUP(CONCATENATE($H53,$G53),$A:$DA,CK$1,FALSE),"")=0,"",IFERROR(VLOOKUP(CONCATENATE($H53,$G53),$A:$DA,CK$1,FALSE),"")) ->  | CU53: =IF(IFERROR(VLOOKUP(CONCATENATE($H53,$G53),$A:$DA,CU$1,FALSE),"")=0,"",IFERROR(VLOOKUP(CONCATENATE($H53,$G53),$A:$DA,CU$1,FALSE),"")) ->  | DE53: 13.50 | DF53: =IF(ISBLANK('3 - Tc & RAINFALL'!G70),'3 - Tc & RAINFALL'!H70,'3 - Tc & RAINFALL'!G70/4) -> 0.00 | DI53: 13.50 | DJ53: 0.00 | EM53: 0.00 | EN53: 0.00 | EQ53: 13.50 | ER53: 0.00 | FU53: 0.00 | FV53: 0.00 | FY53: 13.50 | FZ53: 0.00 | GA53: 0.00 | GD53: 13.50 | GE53: 0.00 | GF53: 0.00 | GI53: 13.50 | GJ53: 0.00 | GK53: 0.00 | GN53: 13.50 | GO53: 0.00 | GP53: 0.00 | GS53: 13.50 | GT53: 0.00 | GU53: 0.00
G54: 13b. | H54: CSO 022 | DE54: 13.75 | DF54: =IF(ISBLANK('3 - Tc & RAINFALL'!G71),'3 - Tc & RAINFALL'!H71,'3 - Tc & RAINFALL'!G71/4) -> 0.00 | DI54: 13.75 | DJ54: 0.00 | EM54: 0.00 | EN54: 0.00 | EQ54: 13.75 | ER54: 0.00 | FU54: 0.00 | FV54: 0.00 | FY54: 13.75 | FZ54: 0.00 | GA54: 0.00 | GD54: 13.75 | GE54: 0.00 | GF54: 0.00 | GI54: 13.75 | GJ54: 0.00 | GK54: 0.00 | GN54: 13.75 | GO54: 0.00 | GP54: 0.00 | GS54: 13.75 | GT54: 0.00 | GU54: 0.00
G55: 13b. | H55: CSO 023 | DE55: 14.00 | DF55: =IF(ISBLANK('3 - Tc & RAINFALL'!G72),'3 - Tc & RAINFALL'!H72,'3 - Tc & RAINFALL'!G72/4) -> 0.00 | DI55: 14.00 | DJ55: 0.00 | EM55: 0.00 | EN55: 0.00 | EQ55: 14.00 | ER55: 0.00 | FU55: 0.00 | FV55: 0.00 | FY55: 14.00 | FZ55: 0.00 | GA55: 0.00 | GD55: 14.00 | GE55: 0.00 | GF55: 0.00 | GI55: 14.00 | GJ55: 0.00 | GK55: 0.00 | GN55: 14.00 | GO55: 0.00 | GP55: 0.00 | GS55: 14.00 | GT55: 0.00 | GU55: 0.00
G56: 13b. | H56: CSO 024 | DE56: 14.25 | DF56: =IF(ISBLANK('3 - Tc & RAINFALL'!G73),'3 - Tc & RAINFALL'!H73,'3 - Tc & RAINFALL'!G73/4) -> 0.00 | DI56: 14.25 | DJ56: 0.00 | EM56: 0.00 | EN56: 0.00 | EQ56: 14.25 | ER56: 0.00 | FU56: 0.00 | FV56: 0.00 | FY56: 14.25 | FZ56: 0.00 | GA56: 0.00 | GD56: 14.25 | GE56: 0.00 | GF56: 0.00 | GI56: 14.25 | GJ56: 0.00 | GK56: 0.00 | GN56: 14.25 | GO56: 0.00 | GP56: 0.00 | GS56: 14.25 | GT56: 0.00 | GU56: 0.00
G57: 13b. | H57: =H27 -> CSO 025 | DE57: 14.50 | DF57: =IF(ISBLANK('3 - Tc & RAINFALL'!G74),'3 - Tc & RAINFALL'!H74,'3 - Tc & RAINFALL'!G74/4) -> 0.00 | DI57: 14.50 | DJ57: 0.00 | EM57: 0.00 | EN57: 0.00 | EQ57: 14.50 | ER57: 0.00 | FU57: 0.00 | FV57: 0.00 | FY57: 14.50 | FZ57: 0.00 | GA57: 0.00 | GD57: 14.50 | GE57: 0.00 | GF57: 0.00 | GI57: 14.50 | GJ57: 0.00 | GK57: 0.00 | GN57: 14.50 | GO57: 0.00 | GP57: 0.00 | GS57: 14.50 | GT57: 0.00 | GU57: 0.00
G58: 13b. | H58: CSO 026 | DE58: 14.75 | DF58: =IF(ISBLANK('3 - Tc & RAINFALL'!G75),'3 - Tc & RAINFALL'!H75,'3 - Tc & RAINFALL'!G75/4) -> 0.00 | DI58: 14.75 | DJ58: 0.00 | EM58: 0.00 | EN58: 0.00 | EQ58: 14.75 | ER58: 0.00 | FU58: 0.00 | FV58: 0.00 | FY58: 14.75 | FZ58: 0.00 | GA58: 0.00 | GD58: 14.75 | GE58: 0.00 | GF58: 0.00 | GI58: 14.75 | GJ58: 0.00 | GK58: 0.00 | GN58: 14.75 | GO58: 0.00 | GP58: 0.00 | GS58: 14.75 | GT58: 0.00 | GU58: 0.00
G59: 13b. | H59: CSO 027 | DE59: 15.00 | DF59: =IF(ISBLANK('3 - Tc & RAINFALL'!G76),'3 - Tc & RAINFALL'!H76,'3 - Tc & RAINFALL'!G76/4) -> 0.00 | DI59: 15.00 | DJ59: 0.00 | EM59: 0.00 | EN59: 0.00 | EQ59: 15.00 | ER59: 0.00 | FU59: 0.00 | FV59: 0.00 | FY59: 15.00 | FZ59: 0.00 | GA59: 0.00 | GD59: 15.00 | GE59: 0.00 | GF59: 0.00 | GI59: 15.00 | GJ59: 0.00 | GK59: 0.00 | GN59: 15.00 | GO59: 0.00 | GP59: 0.00 | GS59: 15.00 | GT59: 0.00 | GU59: 0.00
G60: 13b. | H60: CSO 028 | DE60: 15.25 | DF60: =IF(ISBLANK('3 - Tc & RAINFALL'!G77),'3 - Tc & RAINFALL'!H77,'3 - Tc & RAINFALL'!G77/4) -> 0.00 | DI60: 15.25 | DJ60: 0.00 | EM60: 0.00 | EN60: 0.00 | EQ60: 15.25 | ER60: 0.00 | FU60: 0.00 | FV60: 0.00 | FY60: 15.25 | FZ60: 0.00 | GA60: 0.00 | GD60: 15.25 | GE60: 0.00 | GF60: 0.00 | GI60: 15.25 | GJ60: 0.00 | GK60: 0.00 | GN60: 15.25 | GO60: 0.00 | GP60: 0.00 | GS60: 15.25 | GT60: 0.00 | GU60: 0.00
G61: 13b. | H61: Total | I61: =SUM(I33:I60) -> 0.00 | J61: =SUM(J33:J60) -> 0.00 | K61: =SUM(K33:K60) -> 0.00 | L61: 0.00 | M61: 0.00 | N61: 0.00 | O61: 0.00 | P61: 0.00 | Q61: 0.00 | R61: 0.00 | S61: 0.00 | T61: 0.00 | U61: 0.00 | V61: 0.00 | W61: 0.00 | X61: 0.00 | Y61: 0.00 | Z61: 0.00 | AA61: 0.00 | AB61: 0.00 | AC61: 0.00 | AD61: 0.00 | AE61: 0.00 | AF61: 0.00 | AG61: 0.00 | AH61: 0.00 | AI61: 0.00 | AJ61: 0.00 | AK61: 0.00 | AL61: 0.00 | AM61: 0.00 | AN61: 0.00 | AO61: 0.00 | AP61: 0.00 | AQ61: 0.00 | AR61: 0.00 | AS61: 0.00 | AT61: 0.00 | AU61: 0.00 | AV61: 0.00 | AW61: 0.00 | AX61: 0.00 | AY61: 0.00 | AZ61: 0.00 | BA61: 0.00 | BB61: 0.00 | BC61: 0.00 | BD61: 0.00 | BE61: 0.00 | BF61: 0.00 | BG61: 0.00 | BH61: 0.00 | BI61: 0.00 | BJ61: 0.00 | BK61: 0.00 | BL61: 0.00 | BM61: 0.00 | BN61: 0.00 | BO61: 0.00 | BP61: 0.00 | BQ61: 0.00 | BR61: 0.00 | BS61: 0.00 | BT61: 0.00 | BU61: 0.00 | BV61: 0.00 | BW61: =SUM(BW33:BW60) -> 0.00 | BX61: 0.00 | BY61: 0.00 | BZ61: 0.00 | CA61: 0.00 | CB61: 0.00 | CC61: 0.00 | CD61: 0.00 | CE61: 0.00 | CF61: 0.00 | CG61: 0.00 | CH61: 0.00 | CI61: 0.00 | CJ61: 0.00 | CK61: 0.00 | CL61: 0.00 | CM61: 0.00 | CN61: 0.00 | CO61: 0.00 | CP61: 0.00 | CQ61: 0.00 | CR61: 0.00 | CS61: 0.00 | CT61: 0.00 | CU61: 0.00 | CV61: 0.00 | CW61: 0.00 | CX61: 0.00 | CY61: 0.00 | CZ61: 0.00 | DA61: =SUM(DA33:DA60) -> 0.00 | DE61: 15.50 | DF61: =IF(ISBLANK('3 - Tc & RAINFALL'!G78),'3 - Tc & RAINFALL'!H78,'3 - Tc & RAINFALL'!G78/4) -> 0.00 | DI61: 15.50 | DJ61: 0.00 | EM61: 0.00 | EN61: 0.00 | EQ61: 15.50 | ER61: 0.00 | FU61: 0.00 | FV61: 0.00 | FY61: 15.50 | FZ61: 0.00 | GA61: 0.00 | GD61: 15.50 | GE61: 0.00 | GF61: 0.00 | GI61: 15.50 | GJ61: 0.00 | GK61: 0.00 | GN61: 15.50 | GO61: 0.00 | GP61: 0.00 | GS61: 15.50 | GT61: 0.00 | GU61: 0.00
G62: 13b. | H62: Cumu. | I62: =I61 -> 0.00 | J62: =I62+J61 -> 0.00 | K62: =J62+K61 -> 0.00 | L62: 0.00 | M62: 0.00 | N62: 0.00 | O62: 0.00 | P62: 0.00 | Q62: 0.00 | R62: 0.00 | S62: 0.00 | T62: 0.00 | U62: 0.00 | V62: 0.00 | W62: 0.00 | X62: 0.00 | Y62: 0.00 | Z62: 0.00 | AA62: 0.00 | AB62: 0.00 | AC62: 0.00 | AD62: 0.00 | AE62: 0.00 | AF62: 0.00 | AG62: 0.00 | AH62: 0.00 | AI62: 0.00 | AJ62: 0.00 | AK62: 0.00 | AL62: 0.00 | AM62: 0.00 | AN62: 0.00 | AO62: 0.00 | AP62: 0.00 | AQ62: 0.00 | AR62: 0.00 | AS62: 0.00 | AT62: 0.00 | AU62: 0.00 | AV62: 0.00 | AW62: 0.00 | AX62: 0.00 | AY62: 0.00 | AZ62: 0.00 | BA62: 0.00 | BB62: 0.00 | BC62: 0.00 | BD62: 0.00 | BE62: 0.00 | BF62: 0.00 | BG62: 0.00 | BH62: 0.00 | BI62: 0.00 | BJ62: 0.00 | BK62: 0.00 | BL62: 0.00 | BM62: 0.00 | BN62: 0.00 | BO62: 0.00 | BP62: 0.00 | BQ62: 0.00 | BR62: 0.00 | BS62: 0.00 | BT62: 0.00 | BU62: 0.00 | BV62: 0.00 | BW62: =BV62+BW61 -> 0.00 | BX62: 0.00 | BY62: 0.00 | BZ62: 0.00 | CA62: 0.00 | CB62: 0.00 | CC62: 0.00 | CD62: 0.00 | CE62: 0.00 | CF62: 0.00 | CG62: 0.00 | CH62: 0.00 | CI62: 0.00 | CJ62: 0.00 | CK62: 0.00 | CL62: 0.00 | CM62: 0.00 | CN62: 0.00 | CO62: 0.00 | CP62: 0.00 | CQ62: 0.00 | CR62: 0.00 | CS62: 0.00 | CT62: 0.00 | CU62: 0.00 | CV62: 0.00 | CW62: 0.00 | CX62: 0.00 | CY62: 0.00 | CZ62: 0.00 | DE62: 15.75 | DF62: =IF(ISBLANK('3 - Tc & RAINFALL'!G79),'3 - Tc & RAINFALL'!H79,'3 - Tc & RAINFALL'!G79/4) -> 0.00 | DI62: 15.75 | DJ62: 0.00 | EM62: 0.00 | EN62: 0.00 | EQ62: 15.75 | ER62: 0.00 | FU62: 0.00 | FV62: 0.00 | FY62: 15.75 | FZ62: 0.00 | GA62: 0.00 | GD62: 15.75 | GE62: 0.00 | GF62: 0.00 | GI62: 15.75 | GJ62: 0.00 | GK62: 0.00 | GN62: 15.75 | GO62: 0.00 | GP62: 0.00 | GS62: 15.75 | GT62: 0.00 | GU62: 0.00
B63: 14. CSO Flows | C63: 14b. | D63: Overflow at individual CSO outfalls (MG). Divide Line 14a by 24, then subtract from Line 13d at hourly increments. | G63: 14b. | H63: =H33 -> CSO 001 | I63: =IF(IFERROR(VLOOKUP(CONCATENATE($H63,$G63),$A:$DA,I$1,FALSE),"")=0,"",IFERROR(VLOOKUP(CONCATENATE($H63,$G63),$A:$DA,I$1,FALSE),"")) ->  | S63: =IF(IFERROR(VLOOKUP(CONCATENATE($H63,$G63),$A:$DA,S$1,FALSE),"")=0,"",IFERROR(VLOOKUP(CONCATENATE($H63,$G63),$A:$DA,S$1,FALSE),"")) ->  | AC63: =IF(IFERROR(VLOOKUP(CONCATENATE($H63,$G63),$A:$DA,AC$1,FALSE),"")=0,"",IFERROR(VLOOKUP(CONCATENATE($H63,$G63),$A:$DA,AC$1,FALSE),"")) ->  | AM63: =IF(IFERROR(VLOOKUP(CONCATENATE($H63,$G63),$A:$DA,AM$1,FALSE),"")=0,"",IFERROR(VLOOKUP(CONCATENATE($H63,$G63),$A:$DA,AM$1,FALSE),"")) ->  | AW63: =IF(IFERROR(VLOOKUP(CONCATENATE($H63,$G63),$A:$DA,AW$1,FALSE),"")=0,"",IFERROR(VLOOKUP(CONCATENATE($H63,$G63),$A:$DA,AW$1,FALSE),"")) ->  | BG63: =IF(IFERROR(VLOOKUP(CONCATENATE($H63,$G63),$A:$DA,BG$1,FALSE),"")=0,"",IFERROR(VLOOKUP(CONCATENATE($H63,$G63),$A:$DA,BG$1,FALSE),"")) ->  | BQ63: =IF(IFERROR(VLOOKUP(CONCATENATE($H63,$G63),$A:$DA,BQ$1,FALSE),"")=0,"",IFERROR(VLOOKUP(CONCATENATE($H63,$G63),$A:$DA,BQ$1,FALSE),"")) ->  | CA63: =IF(IFERROR(VLOOKUP(CONCATENATE($H63,$G63),$A:$DA,CA$1,FALSE),"")=0,"",IFERROR(VLOOKUP(CONCATENATE($H63,$G63),$A:$DA,CA$1,FALSE),"")) ->  | CK63: =IF(IFERROR(VLOOKUP(CONCATENATE($H63,$G63),$A:$DA,CK$1,FALSE),"")=0,"",IFERROR(VLOOKUP(CONCATENATE($H63,$G63),$A:$DA,CK$1,FALSE),"")) ->  | CU63: =IF(IFERROR(VLOOKUP(CONCATENATE($H63,$G63),$A:$DA,CU$1,FALSE),"")=0,"",IFERROR(VLOOKUP(CONCATENATE($H63,$G63),$A:$DA,CU$1,FALSE),"")) ->  | DA63: =IF(SUM(I63:CZ63)=0,"",SUM(I63:CZ63)) ->  | DE63: 16.00 | DF63: =IF(ISBLANK('3 - Tc & RAINFALL'!G80),'3 - Tc & RAINFALL'!H80,'3 - Tc & RAINFALL'!G80/4) -> 0.00 | DI63: 16.00 | DJ63: 0.00 | EM63: 0.00 | EN63: 0.00 | EQ63: 16.00 | ER63: 0.00 | FU63: 0.00 | FV63: 0.00 | FY63: 16.00 | FZ63: 0.00 | GA63: 0.00 | GD63: 16.00 | GE63: 0.00 | GF63: 0.00 | GI63: 16.00 | GJ63: 0.00 | GK63: 0.00 | GN63: 16.00 | GO63: 0.00 | GP63: 0.00 | GS63: 16.00 | GT63: 0.00 | GU63: 0.00
G64: 14b. | H64: =H34 -> CSO 002 | DE64: 16.25 | DF64: =IF(ISBLANK('3 - Tc & RAINFALL'!G81),'3 - Tc & RAINFALL'!H81,'3 - Tc & RAINFALL'!G81/4) -> 0.00 | DI64: 16.25 | DJ64: 0.00 | EM64: 0.00 | EN64: 0.00 | EQ64: 16.25 | ER64: 0.00 | FU64: 0.00 | FV64: 0.00 | FY64: 16.25 | FZ64: 0.00 | GA64: 0.00 | GD64: 16.25 | GE64: 0.00 | GF64: 0.00 | GI64: 16.25 | GJ64: 0.00 | GK64: 0.00 | GN64: 16.25 | GO64: 0.00 | GP64: 0.00 | GS64: 16.25 | GT64: 0.00 | GU64: 0.00
G65: 14b. | H65: CSO 003 | DE65: 16.50 | DF65: =IF(ISBLANK('3 - Tc & RAINFALL'!G82),'3 - Tc & RAINFALL'!H82,'3 - Tc & RAINFALL'!G82/4) -> 0.00 | DI65: 16.50 | DJ65: 0.00 | EM65: 0.00 | EN65: 0.00 | EQ65: 16.50 | ER65: 0.00 | FU65: 0.00 | FV65: 0.00 | FY65: 16.50 | FZ65: 0.00 | GA65: 0.00 | GD65: 16.50 | GE65: 0.00 | GF65: 0.00 | GI65: 16.50 | GJ65: 0.00 | GK65: 0.00 | GN65: 16.50 | GO65: 0.00 | GP65: 0.00 | GS65: 16.50 | GT65: 0.00 | GU65: 0.00
G66: 14b. | H66: CSO 004 | DE66: 16.75 | DF66: =IF(ISBLANK('3 - Tc & RAINFALL'!G83),'3 - Tc & RAINFALL'!H83,'3 - Tc & RAINFALL'!G83/4) -> 0.00 | DI66: 16.75 | DJ66: 0.00 | EM66: 0.00 | EN66: 0.00 | EQ66: 16.75 | ER66: 0.00 | FU66: 0.00 | FV66: 0.00 | FY66: 16.75 | FZ66: 0.00 | GA66: 0.00 | GD66: 16.75 | GE66: 0.00 | GF66: 0.00 | GI66: 16.75 | GJ66: 0.00 | GK66: 0.00 | GN66: 16.75 | GO66: 0.00 | GP66: 0.00 | GS66: 16.75 | GT66: 0.00 | GU66: 0.00
G67: 14b. | H67: CSO 005 | DE67: 17.00 | DF67: =IF(ISBLANK('3 - Tc & RAINFALL'!G84),'3 - Tc & RAINFALL'!H84,'3 - Tc & RAINFALL'!G84/4) -> 0.00 | DI67: 17.00 | DJ67: =DF67 -> 0.00 | EM67: 0.00 | EN67: 0.00 | EQ67: 17.00 | ER67: =DF67 -> 0.00 | FU67: 0.00 | FV67: 0.00 | FY67: 17.00 | FZ67: 0.00 | GA67: 0.00 | GD67: 17.00 | GE67: 0.00 | GF67: 0.00 | GI67: 17.00 | GJ67: 0.00 | GK67: 0.00 | GN67: 17.00 | GO67: 0.00 | GP67: 0.00 | GS67: 17.00 | GT67: 0.00 | GU67: 0.00
G68: 14b. | H68: CSO 006 | DE68: 17.25 | DF68: =IF(ISBLANK('3 - Tc & RAINFALL'!G85),'3 - Tc & RAINFALL'!H85,'3 - Tc & RAINFALL'!G85/4) -> 0.00 | DI68: 17.25 | DJ68: 0.00 | EM68: 0.00 | EN68: 0.00 | EQ68: 17.25 | ER68: 0.00 | FU68: 0.00 | FV68: 0.00 | FY68: 17.25 | FZ68: 0.00 | GA68: 0.00 | GD68: 17.25 | GE68: =EM68+FZ68 -> 0.00 | GF68: =EN68+GA68 -> 0.00 | GI68: 17.25 | GJ68: 0.00 | GK68: 0.00 | GN68: 17.25 | GO68: 0.00 | GP68: 0.00 | GS68: 17.25 | GT68: 0.00 | GU68: 0.00
G69: 14b. | H69: CSO 007 | DE69: 17.50 | DF69: =IF(ISBLANK('3 - Tc & RAINFALL'!G86),'3 - Tc & RAINFALL'!H86,'3 - Tc & RAINFALL'!G86/4) -> 0.00 | DI69: 17.50 | DJ69: 0.00 | EM69: =SUM(DK69:EL69) -> 0.00 | EN69: =EM69+EN68 -> 0.00 | EQ69: 17.50 | ER69: 0.00 | FU69: =SUM(ES69:FT69) -> 0.00 | FV69: =FU69+FV68 -> 0.00 | FY69: 17.50 | FZ69: 0.00 | GA69: 0.00 | GD69: 17.50 | GE69: 0.00 | GF69: 0.00 | GI69: 17.50 | GJ69: 0.00 | GK69: 0.00 | GN69: 17.50 | GO69: 0.00 | GP69: 0.00 | GS69: 17.50 | GT69: 0.00 | GU69: 0.00
G70: 14b. | H70: CSO 008 | DE70: 17.75 | DF70: =IF(ISBLANK('3 - Tc & RAINFALL'!G87),'3 - Tc & RAINFALL'!H87,'3 - Tc & RAINFALL'!G87/4) -> 0.00 | DI70: 17.75 | DJ70: 0.00 | EM70: 0.00 | EN70: 0.00 | EQ70: 17.75 | ER70: 0.00 | FU70: 0.00 | FV70: 0.00 | FY70: 17.75 | FZ70: 0.00 | GA70: 0.00 | GD70: 17.75 | GE70: 0.00 | GF70: 0.00 | GI70: 17.75 | GJ70: 0.00 | GK70: 0.00 | GN70: 17.75 | GO70: 0.00 | GP70: 0.00 | GS70: 17.75 | GT70: 0.00 | GU70: 0.00
G71: 14b. | H71: CSO 009 | DE71: 18.00 | DF71: =IF(ISBLANK('3 - Tc & RAINFALL'!G88),'3 - Tc & RAINFALL'!H88,'3 - Tc & RAINFALL'!G88/4) -> 0.00 | DI71: 18.00 | DJ71: 0.00 | EM71: 0.00 | EN71: 0.00 | EQ71: 18.00 | ER71: 0.00 | FU71: 0.00 | FV71: 0.00 | FY71: 18.00 | FZ71: 0.00 | GA71: 0.00 | GD71: 18.00 | GE71: 0.00 | GF71: 0.00 | GI71: 18.00 | GJ71: 0.00 | GK71: 0.00 | GN71: 18.00 | GO71: 0.00 | GP71: 0.00 | GS71: 18.00 | GT71: 0.00 | GU71: 0.00
G72: 14b. | H72: CSO 010 | DE72: 18.25 | DF72: =IF(ISBLANK('3 - Tc & RAINFALL'!G89),'3 - Tc & RAINFALL'!H89,'3 - Tc & RAINFALL'!G89/4) -> 0.00 | DI72: 18.25 | DJ72: 0.00 | EM72: 0.00 | EN72: 0.00 | EQ72: 18.25 | ER72: 0.00 | FU72: 0.00 | FV72: 0.00 | FY72: 18.25 | FZ72: 0.00 | GA72: 0.00 | GD72: 18.25 | GE72: 0.00 | GF72: 0.00 | GI72: 18.25 | GJ72: 0.00 | GK72: 0.00 | GN72: 18.25 | GO72: 0.00 | GP72: 0.00 | GS72: 18.25 | GT72: 0.00 | GU72: 0.00
G73: 14b. | H73: CSO 011 | I73: =IF(IFERROR(VLOOKUP(CONCATENATE($H73,$G73),$A:$DA,I$1,FALSE),"")=0,"",IFERROR(VLOOKUP(CONCATENATE($H73,$G73),$A:$DA,I$1,FALSE),"")) ->  | S73: =IF(IFERROR(VLOOKUP(CONCATENATE($H73,$G73),$A:$DA,S$1,FALSE),"")=0,"",IFERROR(VLOOKUP(CONCATENATE($H73,$G73),$A:$DA,S$1,FALSE),"")) ->  | AC73: =IF(IFERROR(VLOOKUP(CONCATENATE($H73,$G73),$A:$DA,AC$1,FALSE),"")=0,"",IFERROR(VLOOKUP(CONCATENATE($H73,$G73),$A:$DA,AC$1,FALSE),"")) ->  | AM73: =IF(IFERROR(VLOOKUP(CONCATENATE($H73,$G73),$A:$DA,AM$1,FALSE),"")=0,"",IFERROR(VLOOKUP(CONCATENATE($H73,$G73),$A:$DA,AM$1,FALSE),"")) ->  | AW73: =IF(IFERROR(VLOOKUP(CONCATENATE($H73,$G73),$A:$DA,AW$1,FALSE),"")=0,"",IFERROR(VLOOKUP(CONCATENATE($H73,$G73),$A:$DA,AW$1,FALSE),"")) ->  | BG73: =IF(IFERROR(VLOOKUP(CONCATENATE($H73,$G73),$A:$DA,BG$1,FALSE),"")=0,"",IFERROR(VLOOKUP(CONCATENATE($H73,$G73),$A:$DA,BG$1,FALSE),"")) ->  | BQ73: =IF(IFERROR(VLOOKUP(CONCATENATE($H73,$G73),$A:$DA,BQ$1,FALSE),"")=0,"",IFERROR(VLOOKUP(CONCATENATE($H73,$G73),$A:$DA,BQ$1,FALSE),"")) ->  | CA73: =IF(IFERROR(VLOOKUP(CONCATENATE($H73,$G73),$A:$DA,CA$1,FALSE),"")=0,"",IFERROR(VLOOKUP(CONCATENATE($H73,$G73),$A:$DA,CA$1,FALSE),"")) ->  | CK73: =IF(IFERROR(VLOOKUP(CONCATENATE($H73,$G73),$A:$DA,CK$1,FALSE),"")=0,"",IFERROR(VLOOKUP(CONCATENATE($H73,$G73),$A:$DA,CK$1,FALSE),"")) ->  | CU73: =IF(IFERROR(VLOOKUP(CONCATENATE($H73,$G73),$A:$DA,CU$1,FALSE),"")=0,"",IFERROR(VLOOKUP(CONCATENATE($H73,$G73),$A:$DA,CU$1,FALSE),"")) ->  | DE73: 18.50 | DF73: =IF(ISBLANK('3 - Tc & RAINFALL'!G90),'3 - Tc & RAINFALL'!H90,'3 - Tc & RAINFALL'!G90/4) -> 0.00 | DI73: 18.50 | DJ73: 0.00 | EM73: 0.00 | EN73: 0.00 | EQ73: 18.50 | ER73: 0.00 | FU73: 0.00 | FV73: 0.00 | FY73: 18.50 | FZ73: 0.00 | GA73: 0.00 | GD73: 18.50 | GE73: 0.00 | GF73: 0.00 | GI73: 18.50 | GJ73: 0.00 | GK73: 0.00 | GN73: 18.50 | GO73: 0.00 | GP73: 0.00 | GS73: 18.50 | GT73: 0.00 | GU73: 0.00
G74: 14b. | H74: CSO 012 | DE74: 18.75 | DF74: =IF(ISBLANK('3 - Tc & RAINFALL'!G91),'3 - Tc & RAINFALL'!H91,'3 - Tc & RAINFALL'!G91/4) -> 0.00 | DI74: 18.75 | DJ74: 0.00 | EM74: 0.00 | EN74: 0.00 | EQ74: 18.75 | ER74: 0.00 | FU74: 0.00 | FV74: 0.00 | FY74: 18.75 | FZ74: 0.00 | GA74: 0.00 | GD74: 18.75 | GE74: 0.00 | GF74: 0.00 | GI74: 18.75 | GJ74: 0.00 | GK74: 0.00 | GN74: 18.75 | GO74: 0.00 | GP74: 0.00 | GS74: 18.75 | GT74: 0.00 | GU74: 0.00
G75: 14b. | H75: CSO 013 | DE75: 19.00 | DF75: =IF(ISBLANK('3 - Tc & RAINFALL'!G92),'3 - Tc & RAINFALL'!H92,'3 - Tc & RAINFALL'!G92/4) -> 0.00 | DI75: 19.00 | DJ75: 0.00 | EM75: 0.00 | EN75: 0.00 | EQ75: 19.00 | ER75: 0.00 | FU75: 0.00 | FV75: 0.00 | FY75: 19.00 | FZ75: 0.00 | GA75: 0.00 | GD75: 19.00 | GE75: 0.00 | GF75: 0.00 | GI75: 19.00 | GJ75: 0.00 | GK75: 0.00 | GN75: 19.00 | GO75: 0.00 | GP75: 0.00 | GS75: 19.00 | GT75: 0.00 | GU75: 0.00
G76: 14b. | H76: CSO 014 | DE76: 19.25 | DF76: =IF(ISBLANK('3 - Tc & RAINFALL'!G93),'3 - Tc & RAINFALL'!H93,'3 - Tc & RAINFALL'!G93/4) -> 0.00 | DI76: 19.25 | DJ76: 0.00 | EM76: 0.00 | EN76: 0.00 | EQ76: 19.25 | ER76: 0.00 | FU76: 0.00 | FV76: 0.00 | FY76: 19.25 | FZ76: 0.00 | GA76: 0.00 | GD76: 19.25 | GE76: 0.00 | GF76: 0.00 | GI76: 19.25 | GJ76: 0.00 | GK76: 0.00 | GN76: 19.25 | GO76: 0.00 | GP76: 0.00 | GS76: 19.25 | GT76: 0.00 | GU76: 0.00
G77: 14b. | H77: CSO 015 | DE77: 19.50 | DF77: =IF(ISBLANK('3 - Tc & RAINFALL'!G94),'3 - Tc & RAINFALL'!H94,'3 - Tc & RAINFALL'!G94/4) -> 0.00 | DI77: 19.50 | DJ77: 0.00 | EM77: 0.00 | EN77: 0.00 | EQ77: 19.50 | ER77: 0.00 | FU77: 0.00 | FV77: 0.00 | FY77: 19.50 | FZ77: 0.00 | GA77: 0.00 | GD77: 19.50 | GE77: 0.00 | GF77: 0.00 | GI77: 19.50 | GJ77: 0.00 | GK77: 0.00 | GN77: 19.50 | GO77: 0.00 | GP77: 0.00 | GS77: 19.50 | GT77: 0.00 | GU77: 0.00
G78: 14b. | H78: CSO 016 | DE78: 19.75 | DF78: =IF(ISBLANK('3 - Tc & RAINFALL'!G95),'3 - Tc & RAINFALL'!H95,'3 - Tc & RAINFALL'!G95/4) -> 0.00 | DI78: 19.75 | DJ78: 0.00 | EM78: 0.00 | EN78: 0.00 | EQ78: 19.75 | ER78: 0.00 | FU78: 0.00 | FV78: 0.00 | FY78: 19.75 | FZ78: 0.00 | GA78: 0.00 | GD78: 19.75 | GE78: 0.00 | GF78: 0.00 | GI78: 19.75 | GJ78: 0.00 | GK78: 0.00 | GN78: 19.75 | GO78: 0.00 | GP78: 0.00 | GS78: 19.75 | GT78: 0.00 | GU78: 0.00
G79: 14b. | H79: CSO 017 | DE79: 20.00 | DF79: =IF(ISBLANK('3 - Tc & RAINFALL'!G96),'3 - Tc & RAINFALL'!H96,'3 - Tc & RAINFALL'!G96/4) -> 0.00 | DI79: 20.00 | DJ79: 0.00 | EM79: 0.00 | EN79: 0.00 | EQ79: 20.00 | ER79: 0.00 | FU79: 0.00 | FV79: 0.00 | FY79: 20.00 | FZ79: 0.00 | GA79: 0.00 | GD79: 20.00 | GE79: 0.00 | GF79: 0.00 | GI79: 20.00 | GJ79: 0.00 | GK79: 0.00 | GN79: 20.00 | GO79: 0.00 | GP79: 0.00 | GS79: 20.00 | GT79: 0.00 | GU79: 0.00
G80: 14b. | H80: CSO 018 | DE80: 20.25 | DF80: =IF(ISBLANK('3 - Tc & RAINFALL'!G97),'3 - Tc & RAINFALL'!H97,'3 - Tc & RAINFALL'!G97/4) -> 0.00 | DI80: 20.25 | DJ80: 0.00 | EM80: 0.00 | EN80: 0.00 | EQ80: 20.25 | ER80: 0.00 | FU80: 0.00 | FV80: 0.00 | FY80: 20.25 | FZ80: 0.00 | GA80: 0.00 | GD80: 20.25 | GE80: 0.00 | GF80: 0.00 | GI80: 20.25 | GJ80: 0.00 | GK80: 0.00 | GN80: 20.25 | GO80: 0.00 | GP80: 0.00 | GS80: 20.25 | GT80: 0.00 | GU80: 0.00
G81: 14b. | H81: CSO 019 | DE81: 20.50 | DF81: =IF(ISBLANK('3 - Tc & RAINFALL'!G98),'3 - Tc & RAINFALL'!H98,'3 - Tc & RAINFALL'!G98/4) -> 0.00 | DI81: 20.50 | DJ81: 0.00 | EM81: 0.00 | EN81: 0.00 | EQ81: 20.50 | ER81: 0.00 | FU81: 0.00 | FV81: 0.00 | FY81: 20.50 | FZ81: 0.00 | GA81: 0.00 | GD81: 20.50 | GE81: 0.00 | GF81: 0.00 | GI81: 20.50 | GJ81: 0.00 | GK81: 0.00 | GN81: 20.50 | GO81: 0.00 | GP81: 0.00 | GS81: 20.50 | GT81: 0.00 | GU81: 0.00
G82: 14b. | H82: CSO 020 | DE82: 20.75 | DF82: =IF(ISBLANK('3 - Tc & RAINFALL'!G99),'3 - Tc & RAINFALL'!H99,'3 - Tc & RAINFALL'!G99/4) -> 0.00 | DI82: 20.75 | DJ82: 0.00 | EM82: 0.00 | EN82: 0.00 | EQ82: 20.75 | ER82: 0.00 | FU82: 0.00 | FV82: 0.00 | FY82: 20.75 | FZ82: 0.00 | GA82: 0.00 | GD82: 20.75 | GE82: 0.00 | GF82: 0.00 | GI82: 20.75 | GJ82: 0.00 | GK82: 0.00 | GN82: 20.75 | GO82: 0.00 | GP82: 0.00 | GS82: 20.75 | GT82: 0.00 | GU82: 0.00
G83: 14b. | H83: CSO 021 | I83: =IF(IFERROR(VLOOKUP(CONCATENATE($H83,$G83),$A:$DA,I$1,FALSE),"")=0,"",IFERROR(VLOOKUP(CONCATENATE($H83,$G83),$A:$DA,I$1,FALSE),"")) ->  | S83: =IF(IFERROR(VLOOKUP(CONCATENATE($H83,$G83),$A:$DA,S$1,FALSE),"")=0,"",IFERROR(VLOOKUP(CONCATENATE($H83,$G83),$A:$DA,S$1,FALSE),"")) ->  | AC83: =IF(IFERROR(VLOOKUP(CONCATENATE($H83,$G83),$A:$DA,AC$1,FALSE),"")=0,"",IFERROR(VLOOKUP(CONCATENATE($H83,$G83),$A:$DA,AC$1,FALSE),"")) ->  | AM83: =IF(IFERROR(VLOOKUP(CONCATENATE($H83,$G83),$A:$DA,AM$1,FALSE),"")=0,"",IFERROR(VLOOKUP(CONCATENATE($H83,$G83),$A:$DA,AM$1,FALSE),"")) ->  | AW83: =IF(IFERROR(VLOOKUP(CONCATENATE($H83,$G83),$A:$DA,AW$1,FALSE),"")=0,"",IFERROR(VLOOKUP(CONCATENATE($H83,$G83),$A:$DA,AW$1,FALSE),"")) ->  | BG83: =IF(IFERROR(VLOOKUP(CONCATENATE($H83,$G83),$A:$DA,BG$1,FALSE),"")=0,"",IFERROR(VLOOKUP(CONCATENATE($H83,$G83),$A:$DA,BG$1,FALSE),"")) ->  | BQ83: =IF(IFERROR(VLOOKUP(CONCATENATE($H83,$G83),$A:$DA,BQ$1,FALSE),"")=0,"",IFERROR(VLOOKUP(CONCATENATE($H83,$G83),$A:$DA,BQ$1,FALSE),"")) ->  | CA83: =IF(IFERROR(VLOOKUP(CONCATENATE($H83,$G83),$A:$DA,CA$1,FALSE),"")=0,"",IFERROR(VLOOKUP(CONCATENATE($H83,$G83),$A:$DA,CA$1,FALSE),"")) ->  | CK83: =IF(IFERROR(VLOOKUP(CONCATENATE($H83,$G83),$A:$DA,CK$1,FALSE),"")=0,"",IFERROR(VLOOKUP(CONCATENATE($H83,$G83),$A:$DA,CK$1,FALSE),"")) ->  | CU83: =IF(IFERROR(VLOOKUP(CONCATENATE($H83,$G83),$A:$DA,CU$1,FALSE),"")=0,"",IFERROR(VLOOKUP(CONCATENATE($H83,$G83),$A:$DA,CU$1,FALSE),"")) ->  | DE83: 21.00 | DF83: =IF(ISBLANK('3 - Tc & RAINFALL'!G100),'3 - Tc & RAINFALL'!H100,'3 - Tc & RAINFALL'!G100/4) -> 0.00 | DI83: 21.00 | DJ83: 0.00 | EM83: 0.00 | EN83: 0.00 | EQ83: 21.00 | ER83: 0.00 | FU83: 0.00 | FV83: 0.00 | FY83: 21.00 | FZ83: 0.00 | GA83: 0.00 | GD83: 21.00 | GE83: 0.00 | GF83: 0.00 | GI83: 21.00 | GJ83: 0.00 | GK83: 0.00 | GN83: 21.00 | GO83: 0.00 | GP83: 0.00 | GS83: 21.00 | GT83: 0.00 | GU83: 0.00
G84: 14b. | H84: CSO 022 | DE84: 21.25 | DF84: =IF(ISBLANK('3 - Tc & RAINFALL'!G101),'3 - Tc & RAINFALL'!H101,'3 - Tc & RAINFALL'!G101/4) -> 0.00 | DI84: 21.25 | DJ84: 0.00 | EM84: 0.00 | EN84: 0.00 | EQ84: 21.25 | ER84: 0.00 | FU84: 0.00 | FV84: 0.00 | FY84: 21.25 | FZ84: 0.00 | GA84: 0.00 | GD84: 21.25 | GE84: 0.00 | GF84: 0.00 | GI84: 21.25 | GJ84: 0.00 | GK84: 0.00 | GN84: 21.25 | GO84: 0.00 | GP84: 0.00 | GS84: 21.25 | GT84: 0.00 | GU84: 0.00
G85: 14b. | H85: CSO 023 | DE85: 21.50 | DF85: =IF(ISBLANK('3 - Tc & RAINFALL'!G102),'3 - Tc & RAINFALL'!H102,'3 - Tc & RAINFALL'!G102/4) -> 0.00 | DI85: 21.50 | DJ85: 0.00 | EM85: 0.00 | EN85: 0.00 | EQ85: 21.50 | ER85: 0.00 | FU85: 0.00 | FV85: 0.00 | FY85: 21.50 | FZ85: 0.00 | GA85: 0.00 | GD85: 21.50 | GE85: 0.00 | GF85: 0.00 | GI85: 21.50 | GJ85: 0.00 | GK85: 0.00 | GN85: 21.50 | GO85: 0.00 | GP85: 0.00 | GS85: 21.50 | GT85: 0.00 | GU85: 0.00
G86: 14b. | H86: CSO 024 | DE86: 21.75 | DF86: =IF(ISBLANK('3 - Tc & RAINFALL'!G103),'3 - Tc & RAINFALL'!H103,'3 - Tc & RAINFALL'!G103/4) -> 0.00 | DI86: 21.75 | DJ86: 0.00 | EM86: 0.00 | EN86: 0.00 | EQ86: 21.75 | ER86: 0.00 | FU86: 0.00 | FV86: 0.00 | FY86: 21.75 | FZ86: 0.00 | GA86: 0.00 | GD86: 21.75 | GE86: 0.00 | GF86: 0.00 | GI86: 21.75 | GJ86: 0.00 | GK86: 0.00 | GN86: 21.75 | GO86: 0.00 | GP86: 0.00 | GS86: 21.75 | GT86: 0.00 | GU86: 0.00
G87: 14b. | H87: CSO 025 | DE87: 22.00 | DF87: =IF(ISBLANK('3 - Tc & RAINFALL'!G104),'3 - Tc & RAINFALL'!H104,'3 - Tc & RAINFALL'!G104/4) -> 0.00 | DI87: 22.00 | DJ87: 0.00 | EM87: 0.00 | EN87: 0.00 | EQ87: 22.00 | ER87: 0.00 | FU87: 0.00 | FV87: 0.00 | FY87: 22.00 | FZ87: 0.00 | GA87: 0.00 | GD87: 22.00 | GE87: 0.00 | GF87: 0.00 | GI87: 22.00 | GJ87: 0.00 | GK87: 0.00 | GN87: 22.00 | GO87: 0.00 | GP87: 0.00 | GS87: 22.00 | GT87: 0.00 | GU87: 0.00
G88: 14b. | H88: CSO 026 | DE88: 22.25 | DF88: =IF(ISBLANK('3 - Tc & RAINFALL'!G105),'3 - Tc & RAINFALL'!H105,'3 - Tc & RAINFALL'!G105/4) -> 0.00 | DI88: 22.25 | DJ88: 0.00 | EM88: 0.00 | EN88: 0.00 | EQ88: 22.25 | ER88: 0.00 | FU88: 0.00 | FV88: 0.00 | FY88: 22.25 | FZ88: 0.00 | GA88: 0.00 | GD88: 22.25 | GE88: 0.00 | GF88: 0.00 | GI88: 22.25 | GJ88: 0.00 | GK88: 0.00 | GN88: 22.25 | GO88: 0.00 | GP88: 0.00 | GS88: 22.25 | GT88: 0.00 | GU88: 0.00
G89: 14b. | H89: CSO 027 | DE89: 22.50 | DF89: =IF(ISBLANK('3 - Tc & RAINFALL'!G106),'3 - Tc & RAINFALL'!H106,'3 - Tc & RAINFALL'!G106/4) -> 0.00 | DI89: 22.50 | DJ89: 0.00 | EM89: 0.00 | EN89: 0.00 | EQ89: 22.50 | ER89: 0.00 | FU89: 0.00 | FV89: 0.00 | FY89: 22.50 | FZ89: 0.00 | GA89: 0.00 | GD89: 22.50 | GE89: 0.00 | GF89: 0.00 | GI89: 22.50 | GJ89: 0.00 | GK89: 0.00 | GN89: 22.50 | GO89: 0.00 | GP89: 0.00 | GS89: 22.50 | GT89: 0.00 | GU89: 0.00
G90: 14b. | H90: CSO 028 | DE90: 22.75 | DF90: =IF(ISBLANK('3 - Tc & RAINFALL'!G107),'3 - Tc & RAINFALL'!H107,'3 - Tc & RAINFALL'!G107/4) -> 0.00 | DI90: 22.75 | DJ90: 0.00 | EM90: 0.00 | EN90: 0.00 | EQ90: 22.75 | ER90: 0.00 | FU90: 0.00 | FV90: 0.00 | FY90: 22.75 | FZ90: 0.00 | GA90: 0.00 | GD90: 22.75 | GE90: 0.00 | GF90: 0.00 | GI90: 22.75 | GJ90: 0.00 | GK90: 0.00 | GN90: 22.75 | GO90: 0.00 | GP90: 0.00 | GS90: 22.75 | GT90: 0.00 | GU90: 0.00
G91: 14b. | H91: Total | I91: =SUM(I63:I90) -> 0.00 | J91: =SUM(J63:J90) -> 0.00 | K91: 0.00 | L91: 0.00 | M91: 0.00 | N91: 0.00 | O91: 0.00 | P91: 0.00 | Q91: 0.00 | R91: 0.00 | S91: 0.00 | T91: 0.00 | U91: 0.00 | V91: 0.00 | W91: 0.00 | X91: 0.00 | Y91: 0.00 | Z91: 0.00 | AA91: 0.00 | AB91: 0.00 | AC91: 0.00 | AD91: 0.00 | AE91: 0.00 | AF91: 0.00 | AG91: 0.00 | AH91: 0.00 | AI91: 0.00 | AJ91: 0.00 | AK91: 0.00 | AL91: 0.00 | AM91: 0.00 | AN91: 0.00 | AO91: 0.00 | AP91: 0.00 | AQ91: 0.00 | AR91: 0.00 | AS91: 0.00 | AT91: 0.00 | AU91: 0.00 | AV91: 0.00 | AW91: 0.00 | AX91: 0.00 | AY91: 0.00 | AZ91: 0.00 | BA91: 0.00 | BB91: 0.00 | BC91: 0.00 | BD91: 0.00 | BE91: 0.00 | BF91: 0.00 | BG91: 0.00 | BH91: 0.00 | BI91: 0.00 | BJ91: 0.00 | BK91: 0.00 | BL91: 0.00 | BM91: 0.00 | BN91: 0.00 | BO91: 0.00 | BP91: 0.00 | BQ91: 0.00 | BR91: 0.00 | BS91: 0.00 | BT91: 0.00 | BU91: 0.00 | BV91: =SUM(BV63:BV90) -> 0.00 | BW91: 0.00 | BX91: 0.00 | BY91: 0.00 | BZ91: 0.00 | CA91: 0.00 | CB91: 0.00 | CC91: 0.00 | CD91: 0.00 | CE91: 0.00 | CF91: 0.00 | CG91: 0.00 | CH91: 0.00 | CI91: 0.00 | CJ91: 0.00 | CK91: 0.00 | CL91: 0.00 | CM91: 0.00 | CN91: 0.00 | CO91: 0.00 | CP91: 0.00 | CQ91: 0.00 | CR91: 0.00 | CS91: 0.00 | CT91: 0.00 | CU91: 0.00 | CV91: 0.00 | CW91: 0.00 | CX91: 0.00 | CY91: 0.00 | CZ91: 0.00 | DA91: =SUM(DA63:DA90) -> 0.00 | DE91: 23.00 | DF91: =IF(ISBLANK('3 - Tc & RAINFALL'!G108),'3 - Tc & RAINFALL'!H108,'3 - Tc & RAINFALL'!G108/4) -> 0.00 | DI91: 23.00 | DJ91: 0.00 | EM91: 0.00 | EN91: 0.00 | EQ91: 23.00 | ER91: 0.00 | FU91: 0.00 | FV91: 0.00 | FY91: 23.00 | FZ91: 0.00 | GA91: 0.00 | GD91: 23.00 | GE91: 0.00 | GF91: 0.00 | GI91: 23.00 | GJ91: 0.00 | GK91: 0.00 | GN91: 23.00 | GO91: 0.00 | GP91: 0.00 | GS91: 23.00 | GT91: 0.00 | GU91: 0.00
G92: 14b. | H92: Cumu. | I92: =I91 -> 0.00 | J92: =I92+J91 -> 0.00 | K92: =J92+K91 -> 0.00 | L92: 0.00 | M92: 0.00 | N92: 0.00 | O92: 0.00 | P92: 0.00 | Q92: 0.00 | R92: 0.00 | S92: 0.00 | T92: 0.00 | U92: 0.00 | V92: 0.00 | W92: 0.00 | X92: 0.00 | Y92: 0.00 | Z92: 0.00 | AA92: 0.00 | AB92: 0.00 | AC92: 0.00 | AD92: 0.00 | AE92: 0.00 | AF92: 0.00 | AG92: 0.00 | AH92: 0.00 | AI92: 0.00 | AJ92: 0.00 | AK92: 0.00 | AL92: 0.00 | AM92: 0.00 | AN92: 0.00 | AO92: 0.00 | AP92: 0.00 | AQ92: 0.00 | AR92: 0.00 | AS92: 0.00 | AT92: 0.00 | AU92: 0.00 | AV92: 0.00 | AW92: 0.00 | AX92: 0.00 | AY92: 0.00 | AZ92: 0.00 | BA92: 0.00 | BB92: 0.00 | BC92: 0.00 | BD92: 0.00 | BE92: 0.00 | BF92: 0.00 | BG92: 0.00 | BH92: 0.00 | BI92: 0.00 | BJ92: 0.00 | BK92: 0.00 | BL92: 0.00 | BM92: 0.00 | BN92: 0.00 | BO92: 0.00 | BP92: 0.00 | BQ92: 0.00 | BR92: 0.00 | BS92: 0.00 | BT92: 0.00 | BU92: 0.00 | BV92: 0.00 | BW92: =BV92+BW91 -> 0.00 | BX92: 0.00 | BY92: 0.00 | BZ92: 0.00 | CA92: 0.00 | CB92: 0.00 | CC92: 0.00 | CD92: 0.00 | CE92: 0.00 | CF92: 0.00 | CG92: 0.00 | CH92: 0.00 | CI92: 0.00 | CJ92: 0.00 | CK92: 0.00 | CL92: 0.00 | CM92: 0.00 | CN92: 0.00 | CO92: 0.00 | CP92: 0.00 | CQ92: 0.00 | CR92: 0.00 | CS92: 0.00 | CT92: 0.00 | CU92: 0.00 | CV92: 0.00 | CW92: 0.00 | CX92: 0.00 | CY92: 0.00 | CZ92: 0.00 | DE92: 23.25 | DF92: =IF(ISBLANK('3 - Tc & RAINFALL'!G109),'3 - Tc & RAINFALL'!H109,'3 - Tc & RAINFALL'!G109/4) -> 0.00 | DI92: 23.25 | DJ92: 0.00 | EM92: 0.00 | EN92: 0.00 | EQ92: 23.25 | ER92: 0.00 | FU92: 0.00 | FV92: 0.00 | FY92: 23.25 | FZ92: 0.00 | GA92: 0.00 | GD92: 23.25 | GE92: 0.00 | GF92: 0.00 | GI92: 23.25 | GJ92: 0.00 | GK92: 0.00 | GN92: 23.25 | GO92: 0.00 | GP92: 0.00 | GS92: 23.25 | GT92: 0.00 | GU92: 0.00
B93: 14. CSO Flows | C93: 14d. | D93: Treated CSO volume (MG). Populate with Line 14b values that are less than or equal to Line 14c divided by 24. | G93: 14d. | H93: =H63 -> CSO 001 | I93: =IF(IFERROR(VLOOKUP(CONCATENATE($H93,$G93),$A:$DA,I$1,FALSE),"")=0,"",IFERROR(VLOOKUP(CONCATENATE($H93,$G93),$A:$DA,I$1,FALSE),"")) ->  | S93: =IF(IFERROR(VLOOKUP(CONCATENATE($H93,$G93),$A:$DA,S$1,FALSE),"")=0,"",IFERROR(VLOOKUP(CONCATENATE($H93,$G93),$A:$DA,S$1,FALSE),"")) ->  | AC93: =IF(IFERROR(VLOOKUP(CONCATENATE($H93,$G93),$A:$DA,AC$1,FALSE),"")=0,"",IFERROR(VLOOKUP(CONCATENATE($H93,$G93),$A:$DA,AC$1,FALSE),"")) ->  | AM93: =IF(IFERROR(VLOOKUP(CONCATENATE($H93,$G93),$A:$DA,AM$1,FALSE),"")=0,"",IFERROR(VLOOKUP(CONCATENATE($H93,$G93),$A:$DA,AM$1,FALSE),"")) ->  | AW93: =IF(IFERROR(VLOOKUP(CONCATENATE($H93,$G93),$A:$DA,AW$1,FALSE),"")=0,"",IFERROR(VLOOKUP(CONCATENATE($H93,$G93),$A:$DA,AW$1,FALSE),"")) ->  | BG93: =IF(IFERROR(VLOOKUP(CONCATENATE($H93,$G93),$A:$DA,BG$1,FALSE),"")=0,"",IFERROR(VLOOKUP(CONCATENATE($H93,$G93),$A:$DA,BG$1,FALSE),"")) ->  | BQ93: =IF(IFERROR(VLOOKUP(CONCATENATE($H93,$G93),$A:$DA,BQ$1,FALSE),"")=0,"",IFERROR(VLOOKUP(CONCATENATE($H93,$G93),$A:$DA,BQ$1,FALSE),"")) ->  | CA93: =IF(IFERROR(VLOOKUP(CONCATENATE($H93,$G93),$A:$DA,CA$1,FALSE),"")=0,"",IFERROR(VLOOKUP(CONCATENATE($H93,$G93),$A:$DA,CA$1,FALSE),"")) ->  | CK93: =IF(IFERROR(VLOOKUP(CONCATENATE($H93,$G93),$A:$DA,CK$1,FALSE),"")=0,"",IFERROR(VLOOKUP(CONCATENATE($H93,$G93),$A:$DA,CK$1,FALSE),"")) ->  | CU93: =IF(IFERROR(VLOOKUP(CONCATENATE($H93,$G93),$A:$DA,CU$1,FALSE),"")=0,"",IFERROR(VLOOKUP(CONCATENATE($H93,$G93),$A:$DA,CU$1,FALSE),"")) ->  | DA93: =IF(SUM(I93:CZ93)=0,"",SUM(I93:CZ93)) ->  | DE93: 23.50 | DF93: =IF(ISBLANK('3 - Tc & RAINFALL'!G110),'3 - Tc & RAINFALL'!H110,'3 - Tc & RAINFALL'!G110/4) -> 0.00 | DI93: 23.50 | DJ93: 0.00 | EM93: 0.00 | EN93: 0.00 | EQ93: 23.50 | ER93: 0.00 | FU93: 0.00 | FV93: 0.00 | FY93: 23.50 | FZ93: 0.00 | GA93: 0.00 | GD93: 23.50 | GE93: 0.00 | GF93: 0.00 | GI93: 23.50 | GJ93: 0.00 | GK93: 0.00 | GN93: 23.50 | GO93: 0.00 | GP93: 0.00 | GS93: 23.50 | GT93: 0.00 | GU93: 0.00
G94: 14d. | H94: =H64 -> CSO 002 | DE94: 23.75 | DF94: =IF(ISBLANK('3 - Tc & RAINFALL'!G111),'3 - Tc & RAINFALL'!H111,'3 - Tc & RAINFALL'!G111/4) -> 0.00 | DI94: 23.75 | DJ94: 0.00 | EM94: 0.00 | EN94: 0.00 | EQ94: 23.75 | ER94: 0.00 | FU94: 0.00 | FV94: 0.00 | FY94: 23.75 | FZ94: 0.00 | GA94: 0.00 | GD94: 23.75 | GE94: 0.00 | GF94: 0.00 | GI94: 23.75 | GJ94: 0.00 | GK94: 0.00 | GN94: 23.75 | GO94: 0.00 | GP94: 0.00 | GS94: 23.75 | GT94: 0.00 | GU94: 0.00
G95: 14d. | H95: CSO 003 | DE95: 24.00 | DF95: =IF(ISBLANK('3 - Tc & RAINFALL'!G112),'3 - Tc & RAINFALL'!H112,'3 - Tc & RAINFALL'!G112/4) -> 0.00 | DI95: 24.00 | DJ95: 0.00 | EM95: 0.00 | EN95: 0.00 | EQ95: 24.00 | ER95: 0.00 | FU95: 0.00 | FV95: 0.00 | FY95: 24.00 | FZ95: 0.00 | GA95: 0.00 | GD95: 24.00 | GE95: 0.00 | GF95: 0.00 | GI95: 24.00 | GJ95: 0.00 | GK95: 0.00 | GN95: 24.00 | GO95: 0.00 | GP95: 0.00 | GS95: 24.00 | GT95: 0.00 | GU95: 0.00
G96: 14d. | H96: CSO 004 | DE96: 24.25 | DF96: =IF(ISBLANK('3 - Tc & RAINFALL'!G113),'3 - Tc & RAINFALL'!H113,'3 - Tc & RAINFALL'!G113/4) -> 0.00 | DI96: 24.25 | DJ96: 0.00 | EM96: 0.00 | EN96: 0.00 | EQ96: 24.25 | ER96: 0.00 | FU96: 0.00 | FV96: 0.00 | FY96: 24.25 | FZ96: 0.00 | GA96: 0.00 | GD96: 24.25 | GE96: 0.00 | GF96: 0.00 | GI96: 24.25 | GJ96: 0.00 | GK96: 0.00 | GN96: 24.25 | GO96: 0.00 | GP96: 0.00 | GS96: 24.25 | GT96: 0.00 | GU96: 0.00
G97: 14d. | H97: CSO 005 | DE97: 24.50 | DF97: =IF(ISBLANK('3 - Tc & RAINFALL'!G114),'3 - Tc & RAINFALL'!H114,'3 - Tc & RAINFALL'!G114/4) -> 0.00 | DI97: 24.50 | DJ97: 0.00 | EM97: 0.00 | EN97: 0.00 | EQ97: 24.50 | ER97: 0.00 | FU97: 0.00 | FV97: 0.00 | FY97: 24.50 | FZ97: 0.00 | GA97: 0.00 | GD97: 24.50 | GE97: 0.00 | GF97: 0.00 | GI97: 24.50 | GJ97: 0.00 | GK97: 0.00 | GN97: 24.50 | GO97: 0.00 | GP97: 0.00 | GS97: 24.50 | GT97: 0.00 | GU97: 0.00
G98: 14d. | H98: CSO 006 | DA98: =IF(SUM(I98:CZ98)=0,"",SUM(I98:CZ98)) ->  | DE98: 24.75 | DF98: =IF(ISBLANK('3 - Tc & RAINFALL'!G115),'3 - Tc & RAINFALL'!H115,'3 - Tc & RAINFALL'!G115/4) -> 0.00 | DI98: 24.75 | DJ98: 0.00 | EM98: 0.00 | EN98: 0.00 | EQ98: 24.75 | ER98: 0.00 | FU98: 0.00 | FV98: 0.00 | FY98: 24.75 | FZ98: 0.00 | GA98: 0.00 | GD98: 24.75 | GE98: 0.00 | GF98: 0.00 | GI98: 24.75 | GJ98: 0.00 | GK98: 0.00 | GN98: 24.75 | GO98: 0.00 | GP98: 0.00 | GS98: 24.75 | GT98: 0.00 | GU98: 0.00
G99: 14d. | H99: CSO 007
G100: 14d. | H100: CSO 008
G101: 14d. | H101: CSO 009
G102: 14d. | H102: CSO 010
G103: 14d. | H103: CSO 011 | I103: =IF(IFERROR(VLOOKUP(CONCATENATE($H103,$G103),$A:$DA,I$1,FALSE),"")=0,"",IFERROR(VLOOKUP(CONCATENATE($H103,$G103),$A:$DA,I$1,FALSE),"")) ->  | S103: =IF(IFERROR(VLOOKUP(CONCATENATE($H103,$G103),$A:$DA,S$1,FALSE),"")=0,"",IFERROR(VLOOKUP(CONCATENATE($H103,$G103),$A:$DA,S$1,FALSE),"")) ->  | AC103: =IF(IFERROR(VLOOKUP(CONCATENATE($H103,$G103),$A:$DA,AC$1,FALSE),"")=0,"",IFERROR(VLOOKUP(CONCATENATE($H103,$G103),$A:$DA,AC$1,FALSE),"")) ->  | AM103: =IF(IFERROR(VLOOKUP(CONCATENATE($H103,$G103),$A:$DA,AM$1,FALSE),"")=0,"",IFERROR(VLOOKUP(CONCATENATE($H103,$G103),$A:$DA,AM$1,FALSE),"")) ->  | AW103: =IF(IFERROR(VLOOKUP(CONCATENATE($H103,$G103),$A:$DA,AW$1,FALSE),"")=0,"",IFERROR(VLOOKUP(CONCATENATE($H103,$G103),$A:$DA,AW$1,FALSE),"")) ->  | BG103: =IF(IFERROR(VLOOKUP(CONCATENATE($H103,$G103),$A:$DA,BG$1,FALSE),"")=0,"",IFERROR(VLOOKUP(CONCATENATE($H103,$G103),$A:$DA,BG$1,FALSE),"")) ->  | BQ103: =IF(IFERROR(VLOOKUP(CONCATENATE($H103,$G103),$A:$DA,BQ$1,FALSE),"")=0,"",IFERROR(VLOOKUP(CONCATENATE($H103,$G103),$A:$DA,BQ$1,FALSE),"")) ->  | CA103: =IF(IFERROR(VLOOKUP(CONCATENATE($H103,$G103),$A:$DA,CA$1,FALSE),"")=0,"",IFERROR(VLOOKUP(CONCATENATE($H103,$G103),$A:$DA,CA$1,FALSE),"")) ->  | CK103: =IF(IFERROR(VLOOKUP(CONCATENATE($H103,$G103),$A:$DA,CK$1,FALSE),"")=0,"",IFERROR(VLOOKUP(CONCATENATE($H103,$G103),$A:$DA,CK$1,FALSE),"")) ->  | CU103: =IF(IFERROR(VLOOKUP(CONCATENATE($H103,$G103),$A:$DA,CU$1,FALSE),"")=0,"",IFERROR(VLOOKUP(CONCATENATE($H103,$G103),$A:$DA,CU$1,FALSE),"")) -> 
G104: 14d. | H104: CSO 012
G105: 14d. | H105: CSO 013
G106: 14d. | H106: CSO 014
G107: 14d. | H107: CSO 015
G108: 14d. | H108: CSO 016
G109: 14d. | H109: CSO 017
G110: 14d. | H110: CSO 018
G111: 14d. | H111: CSO 019
G112: 14d. | H112: CSO 020
G113: 14d. | H113: CSO 021 | I113: =IF(IFERROR(VLOOKUP(CONCATENATE($H113,$G113),$A:$DA,I$1,FALSE),"")=0,"",IFERROR(VLOOKUP(CONCATENATE($H113,$G113),$A:$DA,I$1,FALSE),"")) ->  | S113: =IF(IFERROR(VLOOKUP(CONCATENATE($H113,$G113),$A:$DA,S$1,FALSE),"")=0,"",IFERROR(VLOOKUP(CONCATENATE($H113,$G113),$A:$DA,S$1,FALSE),"")) ->  | AC113: =IF(IFERROR(VLOOKUP(CONCATENATE($H113,$G113),$A:$DA,AC$1,FALSE),"")=0,"",IFERROR(VLOOKUP(CONCATENATE($H113,$G113),$A:$DA,AC$1,FALSE),"")) ->  | AM113: =IF(IFERROR(VLOOKUP(CONCATENATE($H113,$G113),$A:$DA,AM$1,FALSE),"")=0,"",IFERROR(VLOOKUP(CONCATENATE($H113,$G113),$A:$DA,AM$1,FALSE),"")) ->  | AW113: =IF(IFERROR(VLOOKUP(CONCATENATE($H113,$G113),$A:$DA,AW$1,FALSE),"")=0,"",IFERROR(VLOOKUP(CONCATENATE($H113,$G113),$A:$DA,AW$1,FALSE),"")) ->  | BG113: =IF(IFERROR(VLOOKUP(CONCATENATE($H113,$G113),$A:$DA,BG$1,FALSE),"")=0,"",IFERROR(VLOOKUP(CONCATENATE($H113,$G113),$A:$DA,BG$1,FALSE),"")) ->  | BQ113: =IF(IFERROR(VLOOKUP(CONCATENATE($H113,$G113),$A:$DA,BQ$1,FALSE),"")=0,"",IFERROR(VLOOKUP(CONCATENATE($H113,$G113),$A:$DA,BQ$1,FALSE),"")) ->  | CA113: =IF(IFERROR(VLOOKUP(CONCATENATE($H113,$G113),$A:$DA,CA$1,FALSE),"")=0,"",IFERROR(VLOOKUP(CONCATENATE($H113,$G113),$A:$DA,CA$1,FALSE),"")) ->  | CK113: =IF(IFERROR(VLOOKUP(CONCATENATE($H113,$G113),$A:$DA,CK$1,FALSE),"")=0,"",IFERROR(VLOOKUP(CONCATENATE($H113,$G113),$A:$DA,CK$1,FALSE),"")) ->  | CU113: =IF(IFERROR(VLOOKUP(CONCATENATE($H113,$G113),$A:$DA,CU$1,FALSE),"")=0,"",IFERROR(VLOOKUP(CONCATENATE($H113,$G113),$A:$DA,CU$1,FALSE),"")) -> 
G114: 14d. | H114: CSO 022
G115: 14d. | H115: CSO 023
G116: 14d. | H116: CSO 024
G117: 14d. | H117: CSO 025
G118: 14d. | H118: CSO 026
G119: 14d. | H119: CSO 027
G120: 14d. | H120: CSO 028
G121: 14d. | H121: Total | I121: =SUM(I93:I120) -> 0.00 | J121: =SUM(J93:J120) -> 0.00 | K121: =SUM(K93:K120) -> 0.00 | L121: 0.00 | M121: 0.00 | N121: 0.00 | O121: 0.00 | P121: 0.00 | Q121: 0.00 | R121: 0.00 | S121: 0.00 | T121: 0.00 | U121: 0.00 | V121: 0.00 | W121: 0.00 | X121: 0.00 | Y121: 0.00 | Z121: 0.00 | AA121: 0.00 | AB121: 0.00 | AC121: 0.00 | AD121: 0.00 | AE121: 0.00 | AF121: 0.00 | AG121: 0.00 | AH121: 0.00 | AI121: 0.00 | AJ121: 0.00 | AK121: 0.00 | AL121: 0.00 | AM121: 0.00 | AN121: 0.00 | AO121: 0.00 | AP121: 0.00 | AQ121: 0.00 | AR121: 0.00 | AS121: 0.00 | AT121: 0.00 | AU121: 0.00 | AV121: 0.00 | AW121: 0.00 | AX121: 0.00 | AY121: 0.00 | AZ121: 0.00 | BA121: 0.00 | BB121: 0.00 | BC121: 0.00 | BD121: 0.00 | BE121: 0.00 | BF121: 0.00 | BG121: 0.00 | BH121: 0.00 | BI121: 0.00 | BJ121: 0.00 | BK121: 0.00 | BL121: 0.00 | BM121: 0.00 | BN121: 0.00 | BO121: 0.00 | BP121: 0.00 | BQ121: 0.00 | BR121: 0.00 | BS121: 0.00 | BT121: 0.00 | BU121: 0.00 | BV121: 0.00 | BW121: =SUM(BW93:BW120) -> 0.00 | BX121: 0.00 | BY121: 0.00 | BZ121: 0.00 | CA121: 0.00 | CB121: 0.00 | CC121: 0.00 | CD121: 0.00 | CE121: 0.00 | CF121: 0.00 | CG121: 0.00 | CH121: 0.00 | CI121: 0.00 | CJ121: 0.00 | CK121: 0.00 | CL121: 0.00 | CM121: 0.00 | CN121: 0.00 | CO121: 0.00 | CP121: 0.00 | CQ121: 0.00 | CR121: 0.00 | CS121: 0.00 | CT121: 0.00 | CU121: 0.00 | CV121: 0.00 | CW121: 0.00 | CX121: 0.00 | CY121: 0.00 | CZ121: 0.00 | DA121: =SUM(DA93:DA120) -> 0.00
G122: 14d. | H122: Cumu. | I122: =I121 -> 0.00 | J122: =I122+J121 -> 0.00 | K122: =J122+K121 -> 0.00 | L122: 0.00 | M122: 0.00 | N122: 0.00 | O122: 0.00 | P122: 0.00 | Q122: 0.00 | R122: 0.00 | S122: 0.00 | T122: 0.00 | U122: 0.00 | V122: 0.00 | W122: 0.00 | X122: 0.00 | Y122: 0.00 | Z122: 0.00 | AA122: 0.00 | AB122: 0.00 | AC122: 0.00 | AD122: 0.00 | AE122: 0.00 | AF122: 0.00 | AG122: 0.00 | AH122: 0.00 | AI122: 0.00 | AJ122: 0.00 | AK122: 0.00 | AL122: 0.00 | AM122: 0.00 | AN122: 0.00 | AO122: 0.00 | AP122: 0.00 | AQ122: 0.00 | AR122: 0.00 | AS122: 0.00 | AT122: 0.00 | AU122: 0.00 | AV122: 0.00 | AW122: 0.00 | AX122: 0.00 | AY122: 0.00 | AZ122: 0.00 | BA122: 0.00 | BB122: 0.00 | BC122: 0.00 | BD122: 0.00 | BE122: 0.00 | BF122: 0.00 | BG122: 0.00 | BH122: 0.00 | BI122: 0.00 | BJ122: 0.00 | BK122: 0.00 | BL122: 0.00 | BM122: 0.00 | BN122: 0.00 | BO122: 0.00 | BP122: 0.00 | BQ122: 0.00 | BR122: 0.00 | BS122: 0.00 | BT122: 0.00 | BU122: 0.00 | BV122: 0.00 | BW122: =BV122+BW121 -> 0.00 | BX122: 0.00 | BY122: 0.00 | BZ122: 0.00 | CA122: 0.00 | CB122: 0.00 | CC122: 0.00 | CD122: 0.00 | CE122: 0.00 | CF122: 0.00 | CG122: 0.00 | CH122: 0.00 | CI122: 0.00 | CJ122: 0.00 | CK122: 0.00 | CL122: 0.00 | CM122: 0.00 | CN122: 0.00 | CO122: 0.00 | CP122: 0.00 | CQ122: 0.00 | CR122: 0.00 | CS122: 0.00 | CT122: 0.00 | CU122: 0.00 | CV122: 0.00 | CW122: 0.00 | CX122: 0.00 | CY122: 0.00 | CZ122: 0.00
B123: 14. CSO Flows | C123: 14e. | D123: Untreated CSO volume (MG). Difference between hourly values for Line 14b and line 14d. | G123: 14e. | H123: =H93 -> CSO 001 | I123: =IF(IFERROR(VLOOKUP(CONCATENATE($H123,$G123),$A:$DA,I$1,FALSE),"")=0,"",IFERROR(VLOOKUP(CONCATENATE($H123,$G123),$A:$DA,I$1,FALSE),"")) ->  | S123: =IF(IFERROR(VLOOKUP(CONCATENATE($H123,$G123),$A:$DA,S$1,FALSE),"")=0,"",IFERROR(VLOOKUP(CONCATENATE($H123,$G123),$A:$DA,S$1,FALSE),"")) ->  | AC123: =IF(IFERROR(VLOOKUP(CONCATENATE($H123,$G123),$A:$DA,AC$1,FALSE),"")=0,"",IFERROR(VLOOKUP(CONCATENATE($H123,$G123),$A:$DA,AC$1,FALSE),"")) ->  | AM123: =IF(IFERROR(VLOOKUP(CONCATENATE($H123,$G123),$A:$DA,AM$1,FALSE),"")=0,"",IFERROR(VLOOKUP(CONCATENATE($H123,$G123),$A:$DA,AM$1,FALSE),"")) ->  | AW123: =IF(IFERROR(VLOOKUP(CONCATENATE($H123,$G123),$A:$DA,AW$1,FALSE),"")=0,"",IFERROR(VLOOKUP(CONCATENATE($H123,$G123),$A:$DA,AW$1,FALSE),"")) ->  | BG123: =IF(IFERROR(VLOOKUP(CONCATENATE($H123,$G123),$A:$DA,BG$1,FALSE),"")=0,"",IFERROR(VLOOKUP(CONCATENATE($H123,$G123),$A:$DA,BG$1,FALSE),"")) ->  | BQ123: =IF(IFERROR(VLOOKUP(CONCATENATE($H123,$G123),$A:$DA,BQ$1,FALSE),"")=0,"",IFERROR(VLOOKUP(CONCATENATE($H123,$G123),$A:$DA,BQ$1,FALSE),"")) ->  | CA123: =IF(IFERROR(VLOOKUP(CONCATENATE($H123,$G123),$A:$DA,CA$1,FALSE),"")=0,"",IFERROR(VLOOKUP(CONCATENATE($H123,$G123),$A:$DA,CA$1,FALSE),"")) ->  | CK123: =IF(IFERROR(VLOOKUP(CONCATENATE($H123,$G123),$A:$DA,CK$1,FALSE),"")=0,"",IFERROR(VLOOKUP(CONCATENATE($H123,$G123),$A:$DA,CK$1,FALSE),"")) ->  | CU123: =IF(IFERROR(VLOOKUP(CONCATENATE($H123,$G123),$A:$DA,CU$1,FALSE),"")=0,"",IFERROR(VLOOKUP(CONCATENATE($H123,$G123),$A:$DA,CU$1,FALSE),"")) ->  | DA123: =IF(SUM(I123:CZ123)=0,"",SUM(I123:CZ123)) -> 
G124: 14e. | H124: =H94 -> CSO 002
G125: 14e. | H125: CSO 003
G126: 14e. | H126: CSO 004
G127: 14e. | H127: CSO 005
G128: 14e. | H128: CSO 006
G129: 14e. | H129: CSO 007
G130: 14e. | H130: CSO 008 | DA130: =IF(SUM(I130:CZ130)=0,"",SUM(I130:CZ130)) -> 
G131: 14e. | H131: CSO 009
G132: 14e. | H132: CSO 010
G133: 14e. | H133: CSO 011 | I133: =IF(IFERROR(VLOOKUP(CONCATENATE($H133,$G133),$A:$DA,I$1,FALSE),"")=0,"",IFERROR(VLOOKUP(CONCATENATE($H133,$G133),$A:$DA,I$1,FALSE),"")) ->  | S133: =IF(IFERROR(VLOOKUP(CONCATENATE($H133,$G133),$A:$DA,S$1,FALSE),"")=0,"",IFERROR(VLOOKUP(CONCATENATE($H133,$G133),$A:$DA,S$1,FALSE),"")) ->  | AC133: =IF(IFERROR(VLOOKUP(CONCATENATE($H133,$G133),$A:$DA,AC$1,FALSE),"")=0,"",IFERROR(VLOOKUP(CONCATENATE($H133,$G133),$A:$DA,AC$1,FALSE),"")) ->  | AM133: =IF(IFERROR(VLOOKUP(CONCATENATE($H133,$G133),$A:$DA,AM$1,FALSE),"")=0,"",IFERROR(VLOOKUP(CONCATENATE($H133,$G133),$A:$DA,AM$1,FALSE),"")) ->  | AW133: =IF(IFERROR(VLOOKUP(CONCATENATE($H133,$G133),$A:$DA,AW$1,FALSE),"")=0,"",IFERROR(VLOOKUP(CONCATENATE($H133,$G133),$A:$DA,AW$1,FALSE),"")) ->  | BG133: =IF(IFERROR(VLOOKUP(CONCATENATE($H133,$G133),$A:$DA,BG$1,FALSE),"")=0,"",IFERROR(VLOOKUP(CONCATENATE($H133,$G133),$A:$DA,BG$1,FALSE),"")) ->  | BQ133: =IF(IFERROR(VLOOKUP(CONCATENATE($H133,$G133),$A:$DA,BQ$1,FALSE),"")=0,"",IFERROR(VLOOKUP(CONCATENATE($H133,$G133),$A:$DA,BQ$1,FALSE),"")) ->  | CA133: =IF(IFERROR(VLOOKUP(CONCATENATE($H133,$G133),$A:$DA,CA$1,FALSE),"")=0,"",IFERROR(VLOOKUP(CONCATENATE($H133,$G133),$A:$DA,CA$1,FALSE),"")) ->  | CK133: =IF(IFERROR(VLOOKUP(CONCATENATE($H133,$G133),$A:$DA,CK$1,FALSE),"")=0,"",IFERROR(VLOOKUP(CONCATENATE($H133,$G133),$A:$DA,CK$1,FALSE),"")) ->  | CU133: =IF(IFERROR(VLOOKUP(CONCATENATE($H133,$G133),$A:$DA,CU$1,FALSE),"")=0,"",IFERROR(VLOOKUP(CONCATENATE($H133,$G133),$A:$DA,CU$1,FALSE),"")) -> 
G134: 14e. | H134: CSO 012
G135: 14e. | H135: CSO 013
G136: 14e. | H136: CSO 014
G137: 14e. | H137: CSO 015
G138: 14e. | H138: CSO 016
G139: 14e. | H139: CSO 017
G140: 14e. | H140: CSO 018
G141: 14e. | H141: CSO 019
G142: 14e. | H142: CSO 020
G143: 14e. | H143: CSO 021 | I143: =IF(IFERROR(VLOOKUP(CONCATENATE($H143,$G143),$A:$DA,I$1,FALSE),"")=0,"",IFERROR(VLOOKUP(CONCATENATE($H143,$G143),$A:$DA,I$1,FALSE),"")) ->  | S143: =IF(IFERROR(VLOOKUP(CONCATENATE($H143,$G143),$A:$DA,S$1,FALSE),"")=0,"",IFERROR(VLOOKUP(CONCATENATE($H143,$G143),$A:$DA,S$1,FALSE),"")) ->  | AC143: =IF(IFERROR(VLOOKUP(CONCATENATE($H143,$G143),$A:$DA,AC$1,FALSE),"")=0,"",IFERROR(VLOOKUP(CONCATENATE($H143,$G143),$A:$DA,AC$1,FALSE),"")) ->  | AM143: =IF(IFERROR(VLOOKUP(CONCATENATE($H143,$G143),$A:$DA,AM$1,FALSE),"")=0,"",IFERROR(VLOOKUP(CONCATENATE($H143,$G143),$A:$DA,AM$1,FALSE),"")) ->  | AW143: =IF(IFERROR(VLOOKUP(CONCATENATE($H143,$G143),$A:$DA,AW$1,FALSE),"")=0,"",IFERROR(VLOOKUP(CONCATENATE($H143,$G143),$A:$DA,AW$1,FALSE),"")) ->  | BG143: =IF(IFERROR(VLOOKUP(CONCATENATE($H143,$G143),$A:$DA,BG$1,FALSE),"")=0,"",IFERROR(VLOOKUP(CONCATENATE($H143,$G143),$A:$DA,BG$1,FALSE),"")) ->  | BQ143: =IF(IFERROR(VLOOKUP(CONCATENATE($H143,$G143),$A:$DA,BQ$1,FALSE),"")=0,"",IFERROR(VLOOKUP(CONCATENATE($H143,$G143),$A:$DA,BQ$1,FALSE),"")) ->  | CA143: =IF(IFERROR(VLOOKUP(CONCATENATE($H143,$G143),$A:$DA,CA$1,FALSE),"")=0,"",IFERROR(VLOOKUP(CONCATENATE($H143,$G143),$A:$DA,CA$1,FALSE),"")) ->  | CK143: =IF(IFERROR(VLOOKUP(CONCATENATE($H143,$G143),$A:$DA,CK$1,FALSE),"")=0,"",IFERROR(VLOOKUP(CONCATENATE($H143,$G143),$A:$DA,CK$1,FALSE),"")) ->  | CU143: =IF(IFERROR(VLOOKUP(CONCATENATE($H143,$G143),$A:$DA,CU$1,FALSE),"")=0,"",IFERROR(VLOOKUP(CONCATENATE($H143,$G143),$A:$DA,CU$1,FALSE),"")) -> 
G144: 14e. | H144: CSO 022
G145: 14e. | H145: CSO 023
G146: 14e. | H146: CSO 024
G147: 14e. | H147: CSO 025
G148: 14e. | H148: CSO 026
G149: 14e. | H149: CSO 027
G150: 14e. | H150: CSO 028
G151: 14e. | H151: Total | I151: =SUM(I123:I150) -> 0.00 | J151: =SUM(J123:J150) -> 0.00 | K151: =SUM(K123:K150) -> 0.00 | L151: 0.00 | M151: 0.00 | N151: 0.00 | O151: 0.00 | P151: 0.00 | Q151: 0.00 | R151: 0.00 | S151: 0.00 | T151: 0.00 | U151: 0.00 | V151: 0.00 | W151: 0.00 | X151: 0.00 | Y151: 0.00 | Z151: 0.00 | AA151: 0.00 | AB151: 0.00 | AC151: 0.00 | AD151: 0.00 | AE151: 0.00 | AF151: 0.00 | AG151: 0.00 | AH151: 0.00 | AI151: 0.00 | AJ151: 0.00 | AK151: 0.00 | AL151: 0.00 | AM151: 0.00 | AN151: 0.00 | AO151: 0.00 | AP151: 0.00 | AQ151: 0.00 | AR151: 0.00 | AS151: 0.00 | AT151: 0.00 | AU151: 0.00 | AV151: 0.00 | AW151: 0.00 | AX151: 0.00 | AY151: 0.00 | AZ151: 0.00 | BA151: 0.00 | BB151: 0.00 | BC151: 0.00 | BD151: 0.00 | BE151: 0.00 | BF151: 0.00 | BG151: 0.00 | BH151: 0.00 | BI151: 0.00 | BJ151: 0.00 | BK151: 0.00 | BL151: 0.00 | BM151: 0.00 | BN151: 0.00 | BO151: 0.00 | BP151: 0.00 | BQ151: 0.00 | BR151: 0.00 | BS151: 0.00 | BT151: 0.00 | BU151: 0.00 | BV151: 0.00 | BW151: =SUM(BW123:BW150) -> 0.00 | BX151: 0.00 | BY151: 0.00 | BZ151: 0.00 | CA151: 0.00 | CB151: 0.00 | CC151: 0.00 | CD151: 0.00 | CE151: 0.00 | CF151: 0.00 | CG151: 0.00 | CH151: 0.00 | CI151: 0.00 | CJ151: 0.00 | CK151: 0.00 | CL151: 0.00 | CM151: 0.00 | CN151: 0.00 | CO151: 0.00 | CP151: 0.00 | CQ151: 0.00 | CR151: 0.00 | CS151: 0.00 | CT151: 0.00 | CU151: 0.00 | CV151: 0.00 | CW151: 0.00 | CX151: 0.00 | CY151: 0.00 | CZ151: 0.00 | DA151: =SUM(DA123:DA150) -> 0.00
G152: 14e. | H152: Cumu. | I152: =I151 -> 0.00 | J152: =I152+J151 -> 0.00 | K152: =J152+K151 -> 0.00 | L152: 0.00 | M152: 0.00 | N152: 0.00 | O152: 0.00 | P152: 0.00 | Q152: 0.00 | R152: 0.00 | S152: 0.00 | T152: 0.00 | U152: 0.00 | V152: 0.00 | W152: 0.00 | X152: 0.00 | Y152: 0.00 | Z152: 0.00 | AA152: 0.00 | AB152: 0.00 | AC152: 0.00 | AD152: 0.00 | AE152: 0.00 | AF152: 0.00 | AG152: 0.00 | AH152: 0.00 | AI152: 0.00 | AJ152: 0.00 | AK152: 0.00 | AL152: 0.00 | AM152: 0.00 | AN152: 0.00 | AO152: 0.00 | AP152: 0.00 | AQ152: 0.00 | AR152: 0.00 | AS152: 0.00 | AT152: 0.00 | AU152: 0.00 | AV152: 0.00 | AW152: 0.00 | AX152: 0.00 | AY152: 0.00 | AZ152: 0.00 | BA152: 0.00 | BB152: 0.00 | BC152: 0.00 | BD152: 0.00 | BE152: 0.00 | BF152: 0.00 | BG152: 0.00 | BH152: 0.00 | BI152: 0.00 | BJ152: 0.00 | BK152: 0.00 | BL152: 0.00 | BM152: 0.00 | BN152: 0.00 | BO152: 0.00 | BP152: 0.00 | BQ152: 0.00 | BR152: 0.00 | BS152: 0.00 | BT152: 0.00 | BU152: 0.00 | BV152: 0.00 | BW152: =BV152+BW151 -> 0.00 | BX152: 0.00 | BY152: 0.00 | BZ152: 0.00 | CA152: 0.00 | CB152: 0.00 | CC152: 0.00 | CD152: 0.00 | CE152: 0.00 | CF152: 0.00 | CG152: 0.00 | CH152: 0.00 | CI152: 0.00 | CJ152: 0.00 | CK152: 0.00 | CL152: 0.00 | CM152: 0.00 | CN152: 0.00 | CO152: 0.00 | CP152: 0.00 | CQ152: 0.00 | CR152: 0.00 | CS152: 0.00 | CT152: 0.00 | CU152: 0.00 | CV152: 0.00 | CW152: 0.00 | CX152: 0.00 | CY152: 0.00 | CZ152: 0.00
B153: 14. CSO Flows | C153: 14f. | D153: Combined sewage diverted to WWTP (MG). Subtract Line 14b from Line 13d. | G153: 14f. | H153: =H123 -> CSO 001 | I153: =IF(IFERROR(VLOOKUP(CONCATENATE($H153,$G153),$A:$DA,I$1,FALSE),"")=0,"",IFERROR(VLOOKUP(CONCATENATE($H153,$G153),$A:$DA,I$1,FALSE),"")) ->  | S153: =IF(IFERROR(VLOOKUP(CONCATENATE($H153,$G153),$A:$DA,S$1,FALSE),"")=0,"",IFERROR(VLOOKUP(CONCATENATE($H153,$G153),$A:$DA,S$1,FALSE),"")) ->  | AC153: =IF(IFERROR(VLOOKUP(CONCATENATE($H153,$G153),$A:$DA,AC$1,FALSE),"")=0,"",IFERROR(VLOOKUP(CONCATENATE($H153,$G153),$A:$DA,AC$1,FALSE),"")) ->  | AM153: =IF(IFERROR(VLOOKUP(CONCATENATE($H153,$G153),$A:$DA,AM$1,FALSE),"")=0,"",IFERROR(VLOOKUP(CONCATENATE($H153,$G153),$A:$DA,AM$1,FALSE),"")) ->  | AW153: =IF(IFERROR(VLOOKUP(CONCATENATE($H153,$G153),$A:$DA,AW$1,FALSE),"")=0,"",IFERROR(VLOOKUP(CONCATENATE($H153,$G153),$A:$DA,AW$1,FALSE),"")) ->  | BG153: =IF(IFERROR(VLOOKUP(CONCATENATE($H153,$G153),$A:$DA,BG$1,FALSE),"")=0,"",IFERROR(VLOOKUP(CONCATENATE($H153,$G153),$A:$DA,BG$1,FALSE),"")) ->  | BQ153: =IF(IFERROR(VLOOKUP(CONCATENATE($H153,$G153),$A:$DA,BQ$1,FALSE),"")=0,"",IFERROR(VLOOKUP(CONCATENATE($H153,$G153),$A:$DA,BQ$1,FALSE),"")) ->  | CA153: =IF(IFERROR(VLOOKUP(CONCATENATE($H153,$G153),$A:$DA,CA$1,FALSE),"")=0,"",IFERROR(VLOOKUP(CONCATENATE($H153,$G153),$A:$DA,CA$1,FALSE),"")) ->  | CK153: =IF(IFERROR(VLOOKUP(CONCATENATE($H153,$G153),$A:$DA,CK$1,FALSE),"")=0,"",IFERROR(VLOOKUP(CONCATENATE($H153,$G153),$A:$DA,CK$1,FALSE),"")) ->  | CU153: =IF(IFERROR(VLOOKUP(CONCATENATE($H153,$G153),$A:$DA,CU$1,FALSE),"")=0,"",IFERROR(VLOOKUP(CONCATENATE($H153,$G153),$A:$DA,CU$1,FALSE),"")) ->  | DA153: =IF(SUM(I153:CZ153)=0,"",SUM(I153:CZ153)) -> 
G154: 14f. | H154: =H124 -> CSO 002
G155: 14f. | H155: CSO 003
G156: 14f. | H156: CSO 004
G157: 14f. | H157: CSO 005
G158: 14f. | H158: CSO 006
G159: 14f. | H159: CSO 007
G160: 14f. | H160: CSO 008 | DA160: =IF(SUM(I160:CZ160)=0,"",SUM(I160:CZ160)) -> 
G161: 14f. | H161: CSO 009 | DA161: =IF(SUM(I161:CZ161)=0,"",SUM(I161:CZ161)) -> 
G162: 14f. | H162: CSO 010
G163: 14f. | H163: CSO 011 | I163: =IF(IFERROR(VLOOKUP(CONCATENATE($H163,$G163),$A:$DA,I$1,FALSE),"")=0,"",IFERROR(VLOOKUP(CONCATENATE($H163,$G163),$A:$DA,I$1,FALSE),"")) ->  | S163: =IF(IFERROR(VLOOKUP(CONCATENATE($H163,$G163),$A:$DA,S$1,FALSE),"")=0,"",IFERROR(VLOOKUP(CONCATENATE($H163,$G163),$A:$DA,S$1,FALSE),"")) ->  | AC163: =IF(IFERROR(VLOOKUP(CONCATENATE($H163,$G163),$A:$DA,AC$1,FALSE),"")=0,"",IFERROR(VLOOKUP(CONCATENATE($H163,$G163),$A:$DA,AC$1,FALSE),"")) ->  | AM163: =IF(IFERROR(VLOOKUP(CONCATENATE($H163,$G163),$A:$DA,AM$1,FALSE),"")=0,"",IFERROR(VLOOKUP(CONCATENATE($H163,$G163),$A:$DA,AM$1,FALSE),"")) ->  | AW163: =IF(IFERROR(VLOOKUP(CONCATENATE($H163,$G163),$A:$DA,AW$1,FALSE),"")=0,"",IFERROR(VLOOKUP(CONCATENATE($H163,$G163),$A:$DA,AW$1,FALSE),"")) ->  | BG163: =IF(IFERROR(VLOOKUP(CONCATENATE($H163,$G163),$A:$DA,BG$1,FALSE),"")=0,"",IFERROR(VLOOKUP(CONCATENATE($H163,$G163),$A:$DA,BG$1,FALSE),"")) ->  | BQ163: =IF(IFERROR(VLOOKUP(CONCATENATE($H163,$G163),$A:$DA,BQ$1,FALSE),"")=0,"",IFERROR(VLOOKUP(CONCATENATE($H163,$G163),$A:$DA,BQ$1,FALSE),"")) ->  | CA163: =IF(IFERROR(VLOOKUP(CONCATENATE($H163,$G163),$A:$DA,CA$1,FALSE),"")=0,"",IFERROR(VLOOKUP(CONCATENATE($H163,$G163),$A:$DA,CA$1,FALSE),"")) ->  | CK163: =IF(IFERROR(VLOOKUP(CONCATENATE($H163,$G163),$A:$DA,CK$1,FALSE),"")=0,"",IFERROR(VLOOKUP(CONCATENATE($H163,$G163),$A:$DA,CK$1,FALSE),"")) ->  | CU163: =IF(IFERROR(VLOOKUP(CONCATENATE($H163,$G163),$A:$DA,CU$1,FALSE),"")=0,"",IFERROR(VLOOKUP(CONCATENATE($H163,$G163),$A:$DA,CU$1,FALSE),"")) -> 
G164: 14f. | H164: CSO 012
G165: 14f. | H165: CSO 013
G166: 14f. | H166: CSO 014
G167: 14f. | H167: CSO 015
G168: 14f. | H168: CSO 016
G169: 14f. | H169: CSO 017
G170: 14f. | H170: CSO 018
G171: 14f. | H171: CSO 019
G172: 14f. | H172: CSO 020
G173: 14f. | H173: CSO 021 | I173: =IF(IFERROR(VLOOKUP(CONCATENATE($H173,$G173),$A:$DA,I$1,FALSE),"")=0,"",IFERROR(VLOOKUP(CONCATENATE($H173,$G173),$A:$DA,I$1,FALSE),"")) ->  | S173: =IF(IFERROR(VLOOKUP(CONCATENATE($H173,$G173),$A:$DA,S$1,FALSE),"")=0,"",IFERROR(VLOOKUP(CONCATENATE($H173,$G173),$A:$DA,S$1,FALSE),"")) ->  | AC173: =IF(IFERROR(VLOOKUP(CONCATENATE($H173,$G173),$A:$DA,AC$1,FALSE),"")=0,"",IFERROR(VLOOKUP(CONCATENATE($H173,$G173),$A:$DA,AC$1,FALSE),"")) ->  | AM173: =IF(IFERROR(VLOOKUP(CONCATENATE($H173,$G173),$A:$DA,AM$1,FALSE),"")=0,"",IFERROR(VLOOKUP(CONCATENATE($H173,$G173),$A:$DA,AM$1,FALSE),"")) ->  | AW173: =IF(IFERROR(VLOOKUP(CONCATENATE($H173,$G173),$A:$DA,AW$1,FALSE),"")=0,"",IFERROR(VLOOKUP(CONCATENATE($H173,$G173),$A:$DA,AW$1,FALSE),"")) ->  | BG173: =IF(IFERROR(VLOOKUP(CONCATENATE($H173,$G173),$A:$DA,BG$1,FALSE),"")=0,"",IFERROR(VLOOKUP(CONCATENATE($H173,$G173),$A:$DA,BG$1,FALSE),"")) ->  | BQ173: =IF(IFERROR(VLOOKUP(CONCATENATE($H173,$G173),$A:$DA,BQ$1,FALSE),"")=0,"",IFERROR(VLOOKUP(CONCATENATE($H173,$G173),$A:$DA,BQ$1,FALSE),"")) ->  | CA173: =IF(IFERROR(VLOOKUP(CONCATENATE($H173,$G173),$A:$DA,CA$1,FALSE),"")=0,"",IFERROR(VLOOKUP(CONCATENATE($H173,$G173),$A:$DA,CA$1,FALSE),"")) ->  | CK173: =IF(IFERROR(VLOOKUP(CONCATENATE($H173,$G173),$A:$DA,CK$1,FALSE),"")=0,"",IFERROR(VLOOKUP(CONCATENATE($H173,$G173),$A:$DA,CK$1,FALSE),"")) ->  | CU173: =IF(IFERROR(VLOOKUP(CONCATENATE($H173,$G173),$A:$DA,CU$1,FALSE),"")=0,"",IFERROR(VLOOKUP(CONCATENATE($H173,$G173),$A:$DA,CU$1,FALSE),"")) -> 
G174: 14f. | H174: CSO 022
G175: 14f. | H175: CSO 023
G176: 14f. | H176: CSO 024
G177: 14f. | H177: CSO 025
G178: 14f. | H178: CSO 026
G179: 14f. | H179: CSO 027
G180: 14f. | H180: CSO 028
G181: 14f. | H181: Total | I181: =SUM(I153:I180) -> 0.00 | J181: =SUM(J153:J180) -> 0.00 | K181: =SUM(K153:K180) -> 0.00 | L181: =SUM(L153:L180) -> 0.00 | M181: =SUM(M153:M180) -> 0.00 | N181: =SUM(N153:N180) -> 0.00 | O181: =SUM(O153:O180) -> 0.00 | P181: =SUM(P153:P180) -> 0.00 | Q181: =SUM(Q153:Q180) -> 0.00 | R181: =SUM(R153:R180) -> 0.00 | S181: =SUM(S153:S180) -> 0.00 | T181: =SUM(T153:T180) -> 0.00 | U181: =SUM(U153:U180) -> 0.00 | V181: =SUM(V153:V180) -> 0.00 | W181: =SUM(W153:W180) -> 0.00 | X181: =SUM(X153:X180) -> 0.00 | Y181: =SUM(Y153:Y180) -> 0.00 | Z181: =SUM(Z153:Z180) -> 0.00 | AA181: =SUM(AA153:AA180) -> 0.00 | AB181: =SUM(AB153:AB180) -> 0.00 | AC181: =SUM(AC153:AC180) -> 0.00 | AD181: =SUM(AD153:AD180) -> 0.00 | AE181: =SUM(AE153:AE180) -> 0.00 | AF181: =SUM(AF153:AF180) -> 0.00 | AG181: =SUM(AG153:AG180) -> 0.00 | AH181: =SUM(AH153:AH180) -> 0.00 | AI181: =SUM(AI153:AI180) -> 0.00 | AJ181: =SUM(AJ153:AJ180) -> 0.00 | AK181: =SUM(AK153:AK180) -> 0.00 | AL181: =SUM(AL153:AL180) -> 0.00 | AM181: =SUM(AM153:AM180) -> 0.00 | AN181: =SUM(AN153:AN180) -> 0.00 | AO181: =SUM(AO153:AO180) -> 0.00 | AP181: =SUM(AP153:AP180) -> 0.00 | AQ181: =SUM(AQ153:AQ180) -> 0.00 | AR181: =SUM(AR153:AR180) -> 0.00 | AS181: =SUM(AS153:AS180) -> 0.00 | AT181: =SUM(AT153:AT180) -> 0.00 | AU181: =SUM(AU153:AU180) -> 0.00 | AV181: =SUM(AV153:AV180) -> 0.00 | AW181: =SUM(AW153:AW180) -> 0.00 | AX181: =SUM(AX153:AX180) -> 0.00 | AY181: =SUM(AY153:AY180) -> 0.00 | AZ181: =SUM(AZ153:AZ180) -> 0.00 | BA181: =SUM(BA153:BA180) -> 0.00 | BB181: =SUM(BB153:BB180) -> 0.00 | BC181: =SUM(BC153:BC180) -> 0.00 | BD181: =SUM(BD153:BD180) -> 0.00 | BE181: =SUM(BE153:BE180) -> 0.00 | BF181: =SUM(BF153:BF180) -> 0.00 | BG181: =SUM(BG153:BG180) -> 0.00 | BH181: =SUM(BH153:BH180) -> 0.00 | BI181: =SUM(BI153:BI180) -> 0.00 | BJ181: =SUM(BJ153:BJ180) -> 0.00 | BK181: =SUM(BK153:BK180) -> 0.00 | BL181: =SUM(BL153:BL180) -> 0.00 | BM181: =SUM(BM153:BM180) -> 0.00 | BN181: =SUM(BN153:BN180) -> 0.00 | BO181: =SUM(BO153:BO180) -> 0.00 | BP181: =SUM(BP153:BP180) -> 0.00 | BQ181: =SUM(BQ153:BQ180) -> 0.00 | BR181: =SUM(BR153:BR180) -> 0.00 | BS181: =SUM(BS153:BS180) -> 0.00 | BT181: =SUM(BT153:BT180) -> 0.00 | BU181: =SUM(BU153:BU180) -> 0.00 | BV181: =SUM(BV153:BV180) -> 0.00 | BW181: =SUM(BW153:BW180) -> 0.00 | BX181: =SUM(BX153:BX180) -> 0.00 | BY181: =SUM(BY153:BY180) -> 0.00 | BZ181: =SUM(BZ153:BZ180) -> 0.00 | CA181: =SUM(CA153:CA180) -> 0.00 | CB181: =SUM(CB153:CB180) -> 0.00 | CC181: =SUM(CC153:CC180) -> 0.00 | CD181: =SUM(CD153:CD180) -> 0.00 | CE181: =SUM(CE153:CE180) -> 0.00 | CF181: =SUM(CF153:CF180) -> 0.00 | CG181: =SUM(CG153:CG180) -> 0.00 | CH181: =SUM(CH153:CH180) -> 0.00 | CI181: =SUM(CI153:CI180) -> 0.00 | CJ181: =SUM(CJ153:CJ180) -> 0.00 | CK181: =SUM(CK153:CK180) -> 0.00 | CL181: =SUM(CL153:CL180) -> 0.00 | CM181: =SUM(CM153:CM180) -> 0.00 | CN181: =SUM(CN153:CN180) -> 0.00 | CO181: =SUM(CO153:CO180) -> 0.00 | CP181: =SUM(CP153:CP180) -> 0.00 | CQ181: =SUM(CQ153:CQ180) -> 0.00 | CR181: =SUM(CR153:CR180) -> 0.00 | CS181: =SUM(CS153:CS180) -> 0.00 | CT181: =SUM(CT153:CT180) -> 0.00 | CU181: =SUM(CU153:CU180) -> 0.00 | CV181: =SUM(CV153:CV180) -> 0.00 | CW181: =SUM(CW153:CW180) -> 0.00 | CX181: =SUM(CX153:CX180) -> 0.00 | CY181: =SUM(CY153:CY180) -> 0.00 | CZ181: =SUM(CZ153:CZ180) -> 0.00 | DA181: =SUM(DA153:DA180) -> 0.00
G182: 14f. | H182: Cumu. | I182: =I181 -> 0.00 | J182: =I182+J181 -> 0.00 | K182: =J182+K181 -> 0.00 | L182: =K182+L181 -> 0.00 | M182: =L182+M181 -> 0.00 | N182: =M182+N181 -> 0.00 | O182: =N182+O181 -> 0.00 | P182: =O182+P181 -> 0.00 | Q182: =P182+Q181 -> 0.00 | R182: =Q182+R181 -> 0.00 | S182: =R182+S181 -> 0.00 | T182: =S182+T181 -> 0.00 | U182: =T182+U181 -> 0.00 | V182: =U182+V181 -> 0.00 | W182: =V182+W181 -> 0.00 | X182: =W182+X181 -> 0.00 | Y182: =X182+Y181 -> 0.00 | Z182: =Y182+Z181 -> 0.00 | AA182: =Z182+AA181 -> 0.00 | AB182: =AA182+AB181 -> 0.00 | AC182: =AB182+AC181 -> 0.00 | AD182: =AC182+AD181 -> 0.00 | AE182: =AD182+AE181 -> 0.00 | AF182: =AE182+AF181 -> 0.00 | AG182: =AF182+AG181 -> 0.00 | AH182: =AG182+AH181 -> 0.00 | AI182: =AH182+AI181 -> 0.00 | AJ182: =AI182+AJ181 -> 0.00 | AK182: =AJ182+AK181 -> 0.00 | AL182: =AK182+AL181 -> 0.00 | AM182: =AL182+AM181 -> 0.00 | AN182: =AM182+AN181 -> 0.00 | AO182: =AN182+AO181 -> 0.00 | AP182: =AO182+AP181 -> 0.00 | AQ182: =AP182+AQ181 -> 0.00 | AR182: =AQ182+AR181 -> 0.00 | AS182: =AR182+AS181 -> 0.00 | AT182: =AS182+AT181 -> 0.00 | AU182: =AT182+AU181 -> 0.00 | AV182: =AU182+AV181 -> 0.00 | AW182: =AV182+AW181 -> 0.00 | AX182: =AW182+AX181 -> 0.00 | AY182: =AX182+AY181 -> 0.00 | AZ182: =AY182+AZ181 -> 0.00 | BA182: =AZ182+BA181 -> 0.00 | BB182: =BA182+BB181 -> 0.00 | BC182: =BB182+BC181 -> 0.00 | BD182: =BC182+BD181 -> 0.00 | BE182: =BD182+BE181 -> 0.00 | BF182: =BE182+BF181 -> 0.00 | BG182: =BF182+BG181 -> 0.00 | BH182: =BG182+BH181 -> 0.00 | BI182: =BH182+BI181 -> 0.00 | BJ182: =BI182+BJ181 -> 0.00 | BK182: =BJ182+BK181 -> 0.00 | BL182: =BK182+BL181 -> 0.00 | BM182: =BL182+BM181 -> 0.00 | BN182: =BM182+BN181 -> 0.00 | BO182: =BN182+BO181 -> 0.00 | BP182: =BO182+BP181 -> 0.00 | BQ182: =BP182+BQ181 -> 0.00 | BR182: =BQ182+BR181 -> 0.00 | BS182: =BR182+BS181 -> 0.00 | BT182: =BS182+BT181 -> 0.00 | BU182: =BT182+BU181 -> 0.00 | BV182: =BU182+BV181 -> 0.00 | BW182: =BV182+BW181 -> 0.00 | BX182: =BW182+BX181 -> 0.00 | BY182: =BX182+BY181 -> 0.00 | BZ182: =BY182+BZ181 -> 0.00 | CA182: =BZ182+CA181 -> 0.00 | CB182: =CA182+CB181 -> 0.00 | CC182: =CB182+CC181 -> 0.00 | CD182: =CC182+CD181 -> 0.00 | CE182: =CD182+CE181 -> 0.00 | CF182: =CE182+CF181 -> 0.00 | CG182: =CF182+CG181 -> 0.00 | CH182: =CG182+CH181 -> 0.00 | CI182: =CH182+CI181 -> 0.00 | CJ182: =CI182+CJ181 -> 0.00 | CK182: =CJ182+CK181 -> 0.00 | CL182: =CK182+CL181 -> 0.00 | CM182: =CL182+CM181 -> 0.00 | CN182: =CM182+CN181 -> 0.00 | CO182: =CN182+CO181 -> 0.00 | CP182: =CO182+CP181 -> 0.00 | CQ182: =CP182+CQ181 -> 0.00 | CR182: =CQ182+CR181 -> 0.00 | CS182: =CR182+CS181 -> 0.00 | CT182: =CS182+CT181 -> 0.00 | CU182: =CT182+CU181 -> 0.00 | CV182: =CU182+CV181 -> 0.00 | CW182: =CV182+CW181 -> 0.00 | CX182: =CW182+CX181 -> 0.00 | CY182: =CX182+CY181 -> 0.00 | CZ182: =CY182+CZ181 -> 0.00
H185: =A3 -> CSO 001
G186: Area (acres): | H186: =HLOOKUP(H185,'2 - CSO INPUT'!$E$9:$AS$19,6,FALSE) -> 0 | J186: =43560*7.48/(12*1000000) -> 0.0271524 | K186: MG | L186: ="=" -> = | M186: 1 | N186: in-ac/hr
G187: ISA: | H187: =HLOOKUP(H185,'2 - CSO INPUT'!$E$9:$AS$19,7,FALSE) -> 0%
G188: TOC (hr); | H188: =HLOOKUP(H185,'3 - Tc & RAINFALL'!$E$9:$AS$17,6,FALSE) -> 
G189: Initial Abstraction (in): | H189: =HLOOKUP(H185,'3 - Tc & RAINFALL'!$E$9:$AS$17,9,FALSE) -> 0.10
E190: hour | F190: P (in) | G190: P_cum (in) | H190: P_mod (in) | I190: 1 | J190: 1.25 | K190: 1.50 | L190: 1.75 | M190: 2.00 | N190: 2.25 | O190: 2.50 | P190: 2.75 | Q190: 3.00 | R190: 3.25 | S190: 3.50 | T190: 3.75 | U190: 4.00 | V190: 4.25 | W190: 4.50 | X190: 4.75 | Y190: 5.00 | Z190: 5.25 | AA190: 5.50 | AB190: 5.75 | AC190: 6.00 | AD190: 6.25 | AE190: 6.50 | AF190: 6.75 | AG190: 7.00 | AH190: 7.25 | AI190: 7.50 | AJ190: 7.75 | AK190: 8.00 | AL190: 8.25 | AM190: 8.50 | AN190: 8.75 | AO190: 9.00 | AP190: 9.25 | AQ190: 9.50 | AR190: 9.75 | AS190: 10.00 | AT190: 10.25 | AU190: 10.50 | AV190: 10.75 | AW190: 11.00 | AX190: 11.25 | AY190: 11.50 | AZ190: 11.75 | BA190: 12.00 | BB190: 12.25 | BC190: 12.50 | BD190: 12.75 | BE190: 13.00 | BF190: 13.25 | BG190: 13.50 | BH190: 13.75 | BI190: 14.00 | BJ190: 14.25 | BK190: 14.50 | BL190: 14.75 | BM190: 15.00 | BN190: 15.25 | BO190: 15.50 | BP190: 15.75 | BQ190: 16.00 | BR190: 16.25 | BS190: 16.50 | BT190: 16.75 | BU190: 17.00 | BV190: 17.25 | BW190: 17.50 | BX190: 17.75 | BY190: 18.00 | BZ190: 18.25 | CA190: 18.50 | CB190: 18.75 | CC190: 19.00 | CD190: 19.25 | CE190: 19.50 | CF190: 19.75 | CG190: 20.00 | CH190: 20.25 | CI190: 20.50 | CJ190: 20.75 | CK190: 21.00 | CL190: 21.25 | CM190: 21.50 | CN190: 21.75 | CO190: 22.00 | CP190: 22.25 | CQ190: 22.50 | CR190: 22.75 | CS190: 23.00 | CT190: 23.25 | CU190: 23.50 | CV190: 23.75 | CW190: 24.00 | CX190: 24.25 | CY190: 24.50 | CZ190: 24.75
E191: 1 | F191: =$DF$3 -> 0.000 | G191: =IF(SUM(F191:F191)-H189<=0,0,SUM(F191:F191)-H189) -> 0.00 | H191: =G191-0 -> 0.000 | I191: =IF(H188<=I190-E191,0,H191*H186*H187*J186/(H188*4)) ->  | J191: =IF(H188<=J190-E191,0,H191*H186*H187*J186/(H188*4)) ->  | K191: =IF(H188<=K190-E191,0,H191*H186*H187*J186/(H188*4)) ->  | L191: =IF(H188<=L190-E191,0,H191*H186*H187*J186/(H188*4)) ->  | M191: =IF(H188<=M190-E191,0,H191*H186*H187*J186/(H188*4)) ->  | N191: =IF(H188<=N190-E191,0,H191*H186*H187*J186/(H188*4)) ->  | O191: =IF(H188<=O190-E191,0,H191*H186*H187*J186/(H188*4)) ->  | P191: =IF(H188<=P190-E191,0,H191*H186*H187*J186/(H188*4)) ->  | Q191: =IF(H188<=Q190-E191,0,H191*H186*H187*J186/(H188*4)) ->  | R191: =IF(H188<=R190-E191,0,H191*H186*H187*J186/(H188*4)) ->  | S191: =IF(H188<=S190-E191,0,H191*H186*H187*J186/(H188*4)) ->  | T191: =IF(H188<=T190-E191,0,H191*H186*H187*J186/(H188*4)) ->  | U191: =IF(H188<=U190-E191,0,H191*H186*H187*J186/(H188*4)) -> 
E192: 1.25 | F192: =$DF$4 -> 0.000 | G192: =IF(SUM(F191:F192)-H189<=0,0,SUM(F191:F192)-H189) -> 0.00 | H192: =G192-G191 -> 0.000 | J192: =IF(H188<=J190-E192,0,H192*H186*H187*J186/(H188*4)) ->  | K192: =IF(H188<=K190-E192,0,H192*H186*H187*J186/(H188*4)) ->  | L192: =IF(H188<=L190-E192,0,H192*H186*H187*J186/(H188*4)) ->  | M192: =IF(H188<=M190-E192,0,H192*H186*H187*J186/(H188*4)) ->  | N192: =IF(H188<=N190-E192,0,H192*H186*H187*J186/(H188*4)) ->  | O192: =IF(H188<=O190-E192,0,H192*H186*H187*J186/(H188*4)) ->  | P192: =IF(H188<=P190-E192,0,H192*H186*H187*J186/(H188*4)) ->  | Q192: =IF(H188<=Q190-E192,0,H192*H186*H187*J186/(H188*4)) ->  | R192: =IF(H188<=R190-E192,0,H192*H186*H187*J186/(H188*4)) ->  | S192: =IF(H188<=S190-E192,0,H192*H186*H187*J186/(H188*4)) ->  | T192: =IF(H188<=T190-E192,0,H192*H186*H187*J186/(H188*4)) ->  | U192: =IF(H188<=U190-E192,0,H192*H186*H187*J186/(H188*4)) ->  | V192: =IF(H188<=V190-E192,0,H192*H186*H187*J186/(H188*4)) -> 
E193: 1.50 | F193: =$DF$5 -> 0.000 | G193: =IF(SUM(F191:F193)-H189<=0,0,SUM(F191:F193)-H189) -> 0.00 | H193: 0.000 | K193: =IF(H188<=K190-E193,0,H193*H186*H187*J186/(H188*4)) ->  | L193: =IF(H188<=L190-E193,0,H193*H186*H187*J186/(H188*4)) ->  | M193: =IF(H188<=M190-E193,0,H193*H186*H187*J186/(H188*4)) ->  | N193: =IF(H188<=N190-E193,0,H193*H186*H187*J186/(H188*4)) ->  | O193: =IF(H188<=O190-E193,0,H193*H186*H187*J186/(H188*4)) ->  | P193: =IF(H188<=P190-E193,0,H193*H186*H187*J186/(H188*4)) ->  | Q193: =IF(H188<=Q190-E193,0,H193*H186*H187*J186/(H188*4)) ->  | R193: =IF(H188<=R190-E193,0,H193*H186*H187*J186/(H188*4)) ->  | S193: =IF(H188<=S190-E193,0,H193*H186*H187*J186/(H188*4)) ->  | T193: =IF(H188<=T190-E193,0,H193*H186*H187*J186/(H188*4)) ->  | U193: =IF(H188<=U190-E193,0,H193*H186*H187*J186/(H188*4)) ->  | V193: =IF(H188<=V190-E193,0,H193*H186*H187*J186/(H188*4)) ->  | W193: =IF(H188<=W190-E193,0,H193*H186*H187*J186/(H188*4)) -> 
E194: 1.75 | F194: =$DF$6 -> 0.000 | G194: =IF(SUM(F191:F194)-H189<=0,0,SUM(F191:F194)-H189) -> 0.00 | H194: 0.000 | L194: =IF(H188<=L190-E194,0,H194*H186*H187*J186/(H188*4)) ->  | M194: =IF(H188<=M190-E194,0,H194*H186*H187*J186/(H188*4)) ->  | N194: =IF(H188<=N190-E194,0,H194*H186*H187*J186/(H188*4)) ->  | O194: =IF(H188<=O190-E194,0,H194*H186*H187*J186/(H188*4)) ->  | P194: =IF(H188<=P190-E194,0,H194*H186*H187*J186/(H188*4)) ->  | Q194: =IF(H188<=Q190-E194,0,H194*H186*H187*J186/(H188*4)) ->  | R194: =IF(H188<=R190-E194,0,H194*H186*H187*J186/(H188*4)) ->  | S194: =IF(H188<=S190-E194,0,H194*H186*H187*J186/(H188*4)) ->  | T194: =IF(H188<=T190-E194,0,H194*H186*H187*J186/(H188*4)) ->  | U194: =IF(H188<=U190-E194,0,H194*H186*H187*J186/(H188*4)) ->  | V194: =IF(H188<=V190-E194,0,H194*H186*H187*J186/(H188*4)) ->  | W194: =IF(H188<=W190-E194,0,H194*H186*H187*J186/(H188*4)) ->  | X194: =IF(H188<=X190-E194,0,H194*H186*H187*J186/(H188*4)) -> 
E195: 2.00 | F195: =$DF$7 -> 0.000 | G195: =IF(SUM(F191:F195)-H189<=0,0,SUM(F191:F195)-H189) -> 0.00 | H195: 0.000 | M195: =IF(H188<=M190-E195,0,H195*H186*H187*J186/(H188*4)) ->  | N195: =IF(H188<=N190-E195,0,H195*H186*H187*J186/(H188*4)) ->  | O195: =IF(H188<=O190-E195,0,H195*H186*H187*J186/(H188*4)) ->  | P195: =IF(H188<=P190-E195,0,H195*H186*H187*J186/(H188*4)) ->  | Q195: =IF(H188<=Q190-E195,0,H195*H186*H187*J186/(H188*4)) ->  | R195: =IF(H188<=R190-E195,0,H195*H186*H187*J186/(H188*4)) ->  | S195: =IF(H188<=S190-E195,0,H195*H186*H187*J186/(H188*4)) ->  | T195: =IF(H188<=T190-E195,0,H195*H186*H187*J186/(H188*4)) ->  | U195: =IF(H188<=U190-E195,0,H195*H186*H187*J186/(H188*4)) ->  | V195: =IF(H188<=V190-E195,0,H195*H186*H187*J186/(H188*4)) ->  | W195: =IF(H188<=W190-E195,0,H195*H186*H187*J186/(H188*4)) ->  | X195: =IF(H188<=X190-E195,0,H195*H186*H187*J186/(H188*4)) ->  | Y195: =IF(H188<=Y190-E195,0,H195*H186*H187*J186/(H188*4)) -> 
E196: 2.25 | F196: =$DF$8 -> 0.000 | G196: =IF(SUM(F191:F196)-H189<=0,0,SUM(F191:F196)-H189) -> 0.00 | H196: 0.000 | N196: =IF(H188<=N190-E196,0,H196*H186*H187*J186/(H188*4)) ->  | O196: =IF(H188<=O190-E196,0,H196*H186*H187*J186/(H188*4)) ->  | P196: =IF(H188<=P190-E196,0,H196*H186*H187*J186/(H188*4)) ->  | Q196: =IF(H188<=Q190-E196,0,H196*H186*H187*J186/(H188*4)) ->  | R196: =IF(H188<=R190-E196,0,H196*H186*H187*J186/(H188*4)) ->  | S196: =IF(H188<=S190-E196,0,H196*H186*H187*J186/(H188*4)) ->  | T196: =IF(H188<=T190-E196,0,H196*H186*H187*J186/(H188*4)) ->  | U196: =IF(H188<=U190-E196,0,H196*H186*H187*J186/(H188*4)) ->  | V196: =IF(H188<=V190-E196,0,H196*H186*H187*J186/(H188*4)) ->  | W196: =IF(H188<=W190-E196,0,H196*H186*H187*J186/(H188*4)) ->  | X196: =IF(H188<=X190-E196,0,H196*H186*H187*J186/(H188*4)) ->  | Y196: =IF(H188<=Y190-E196,0,H196*H186*H187*J186/(H188*4)) ->  | Z196: =IF(H188<=Z190-E196,0,H196*H186*H187*J186/(H188*4)) -> 
E197: 2.50 | F197: =$DF$9 -> 0.000 | G197: =IF(SUM(F191:F197)-H189<=0,0,SUM(F191:F197)-H189) -> 0.00 | H197: 0.000 | O197: =IF(H188<=O190-E197,0,H197*H186*H187*J186/(H188*4)) ->  | P197: =IF(H188<=P190-E197,0,H197*H186*H187*J186/(H188*4)) ->  | Q197: =IF(H188<=Q190-E197,0,H197*H186*H187*J186/(H188*4)) ->  | R197: =IF(H188<=R190-E197,0,H197*H186*H187*J186/(H188*4)) ->  | S197: =IF(H188<=S190-E197,0,H197*H186*H187*J186/(H188*4)) ->  | T197: =IF(H188<=T190-E197,0,H197*H186*H187*J186/(H188*4)) ->  | U197: =IF(H188<=U190-E197,0,H197*H186*H187*J186/(H188*4)) ->  | V197: =IF(H188<=V190-E197,0,H197*H186*H187*J186/(H188*4)) ->  | W197: =IF(H188<=W190-E197,0,H197*H186*H187*J186/(H188*4)) ->  | X197: =IF(H188<=X190-E197,0,H197*H186*H187*J186/(H188*4)) ->  | Y197: =IF(H188<=Y190-E197,0,H197*H186*H187*J186/(H188*4)) ->  | Z197: =IF(H188<=Z190-E197,0,H197*H186*H187*J186/(H188*4)) ->  | AA197: =IF(H188<=AA190-E197,0,H197*H186*H187*J186/(H188*4)) -> 
E198: 2.75 | F198: =$DF$10 -> 0.000 | G198: =IF(SUM(F191:F198)-H189<=0,0,SUM(F191:F198)-H189) -> 0.00 | H198: 0.000 | P198: =IF(H188<=P190-E198,0,H198*H186*H187*J186/(H188*4)) ->  | Q198: =IF(H188<=Q190-E198,0,H198*H186*H187*J186/(H188*4)) ->  | R198: =IF(H188<=R190-E198,0,H198*H186*H187*J186/(H188*4)) ->  | S198: =IF(H188<=S190-E198,0,H198*H186*H187*J186/(H188*4)) ->  | T198: =IF(H188<=T190-E198,0,H198*H186*H187*J186/(H188*4)) ->  | U198: =IF(H188<=U190-E198,0,H198*H186*H187*J186/(H188*4)) ->  | V198: =IF(H188<=V190-E198,0,H198*H186*H187*J186/(H188*4)) ->  | W198: =IF(H188<=W190-E198,0,H198*H186*H187*J186/(H188*4)) ->  | X198: =IF(H188<=X190-E198,0,H198*H186*H187*J186/(H188*4)) ->  | Y198: =IF(H188<=Y190-E198,0,H198*H186*H187*J186/(H188*4)) ->  | Z198: =IF(H188<=Z190-E198,0,H198*H186*H187*J186/(H188*4)) ->  | AA198: =IF(H188<=AA190-E198,0,H198*H186*H187*J186/(H188*4)) ->  | AB198: =IF(H188<=AB190-E198,0,H198*H186*H187*J186/(H188*4)) -> 
E199: 3.00 | F199: =$DF$11 -> 0.000 | G199: =IF(SUM(F191:F199)-H189<=0,0,SUM(F191:F199)-H189) -> 0.00 | H199: 0.000 | Q199: =IF(H188<=Q190-E199,0,H199*H186*H187*J186/(H188*4)) ->  | R199: =IF(H188<=R190-E199,0,H199*H186*H187*J186/(H188*4)) ->  | S199: =IF(H188<=S190-E199,0,H199*H186*H187*J186/(H188*4)) ->  | T199: =IF(H188<=T190-E199,0,H199*H186*H187*J186/(H188*4)) ->  | U199: =IF(H188<=U190-E199,0,H199*H186*H187*J186/(H188*4)) ->  | V199: =IF(H188<=V190-E199,0,H199*H186*H187*J186/(H188*4)) ->  | W199: =IF(H188<=W190-E199,0,H199*H186*H187*J186/(H188*4)) ->  | X199: =IF(H188<=X190-E199,0,H199*H186*H187*J186/(H188*4)) ->  | Y199: =IF(H188<=Y190-E199,0,H199*H186*H187*J186/(H188*4)) ->  | Z199: =IF(H188<=Z190-E199,0,H199*H186*H187*J186/(H188*4)) ->  | AA199: =IF(H188<=AA190-E199,0,H199*H186*H187*J186/(H188*4)) ->  | AB199: =IF(H188<=AB190-E199,0,H199*H186*H187*J186/(H188*4)) ->  | AC199: =IF(H188<=AC190-E199,0,H199*H186*H187*J186/(H188*4)) -> 
E200: 3.25 | F200: =$DF$12 -> 0.000 | G200: =IF(SUM(F191:F200)-H189<=0,0,SUM(F191:F200)-H189) -> 0.00 | H200: 0.000 | R200: =IF(H188<=R190-E200,0,H200*H186*H187*J186/(H188*4)) ->  | S200: =IF(H188<=S190-E200,0,H200*H186*H187*J186/(H188*4)) ->  | T200: =IF(H188<=T190-E200,0,H200*H186*H187*J186/(H188*4)) ->  | U200: =IF(H188<=U190-E200,0,H200*H186*H187*J186/(H188*4)) ->  | V200: =IF(H188<=V190-E200,0,H200*H186*H187*J186/(H188*4)) ->  | W200: =IF(H188<=W190-E200,0,H200*H186*H187*J186/(H188*4)) ->  | X200: =IF(H188<=X190-E200,0,H200*H186*H187*J186/(H188*4)) ->  | Y200: =IF(H188<=Y190-E200,0,H200*H186*H187*J186/(H188*4)) ->  | Z200: =IF(H188<=Z190-E200,0,H200*H186*H187*J186/(H188*4)) ->  | AA200: =IF(H188<=AA190-E200,0,H200*H186*H187*J186/(H188*4)) ->  | AB200: =IF(H188<=AB190-E200,0,H200*H186*H187*J186/(H188*4)) ->  | AC200: =IF(H188<=AC190-E200,0,H200*H186*H187*J186/(H188*4)) ->  | AD200: =IF(H188<=AD190-E200,0,H200*H186*H187*J186/(H188*4)) -> 
E201: 3.50 | F201: =$DF$13 -> 0.000 | G201: =IF(SUM(F191:F201)-H189<=0,0,SUM(F191:F201)-H189) -> 0.00 | H201: 0.000 | S201: =IF(H188<=S190-E201,0,H201*H186*H187*J186/(H188*4)) ->  | T201: =IF(H188<=T190-E201,0,H201*H186*H187*J186/(H188*4)) ->  | U201: =IF(H188<=U190-E201,0,H201*H186*H187*J186/(H188*4)) ->  | V201: =IF(H188<=V190-E201,0,H201*H186*H187*J186/(H188*4)) ->  | W201: =IF(H188<=W190-E201,0,H201*H186*H187*J186/(H188*4)) ->  | X201: =IF(H188<=X190-E201,0,H201*H186*H187*J186/(H188*4)) ->  | Y201: =IF(H188<=Y190-E201,0,H201*H186*H187*J186/(H188*4)) ->  | Z201: =IF(H188<=Z190-E201,0,H201*H186*H187*J186/(H188*4)) ->  | AA201: =IF(H188<=AA190-E201,0,H201*H186*H187*J186/(H188*4)) ->  | AB201: =IF(H188<=AB190-E201,0,H201*H186*H187*J186/(H188*4)) ->  | AC201: =IF(H188<=AC190-E201,0,H201*H186*H187*J186/(H188*4)) ->  | AD201: =IF(H188<=AD190-E201,0,H201*H186*H187*J186/(H188*4)) ->  | AE201: =IF(H188<=AE190-E201,0,H201*H186*H187*J186/(H188*4)) -> 
E202: 3.75 | F202: =$DF$14 -> 0.000 | G202: =IF(SUM(F191:F202)-H189<=0,0,SUM(F191:F202)-H189) -> 0.00 | H202: 0.000 | T202: =IF(H188<=T190-E202,0,H202*H186*H187*J186/(H188*4)) ->  | U202: =IF(H188<=U190-E202,0,H202*H186*H187*J186/(H188*4)) ->  | V202: =IF(H188<=V190-E202,0,H202*H186*H187*J186/(H188*4)) ->  | W202: =IF(H188<=W190-E202,0,H202*H186*H187*J186/(H188*4)) ->  | X202: =IF(H188<=X190-E202,0,H202*H186*H187*J186/(H188*4)) ->  | Y202: =IF(H188<=Y190-E202,0,H202*H186*H187*J186/(H188*4)) ->  | Z202: =IF(H188<=Z190-E202,0,H202*H186*H187*J186/(H188*4)) ->  | AA202: =IF(H188<=AA190-E202,0,H202*H186*H187*J186/(H188*4)) ->  | AB202: =IF(H188<=AB190-E202,0,H202*H186*H187*J186/(H188*4)) ->  | AC202: =IF(H188<=AC190-E202,0,H202*H186*H187*J186/(H188*4)) ->  | AD202: =IF(H188<=AD190-E202,0,H202*H186*H187*J186/(H188*4)) ->  | AE202: =IF(H188<=AE190-E202,0,H202*H186*H187*J186/(H188*4)) ->  | AF202: =IF(H188<=AF190-E202,0,H202*H186*H187*J186/(H188*4)) -> 
... 2014 more rows

Sheet WWTP CALCULATIONS (hidden)
E3: Input | F3: 1.00 | G3: =F3+0.25 -> 1.25 | H3: =G3+0.25 -> 1.50 | I3: 1.75 | J3: 2.00 | K3: 2.25 | L3: 2.50 | M3: 2.75 | N3: 3.00 | O3: 3.25 | P3: 3.50 | Q3: 3.75 | R3: 4.00 | S3: 4.25 | T3: 4.50 | U3: 4.75 | V3: 5.00 | W3: 5.25 | X3: 5.50 | Y3: 5.75 | Z3: 6.00 | AA3: 6.25 | AB3: 6.50 | AC3: 6.75 | AD3: 7.00 | AE3: 7.25 | AF3: 7.50 | AG3: 7.75 | AH3: 8.00 | AI3: 8.25 | AJ3: 8.50 | AK3: 8.75 | AL3: 9.00 | AM3: 9.25 | AN3: 9.50 | AO3: 9.75 | AP3: 10.00 | AQ3: 10.25 | AR3: 10.50 | AS3: 10.75 | AT3: 11.00 | AU3: 11.25 | AV3: 11.50 | AW3: 11.75 | AX3: 12.00 | AY3: 12.25 | AZ3: 12.50 | BA3: 12.75 | BB3: 13.00 | BC3: 13.25 | BD3: 13.50 | BE3: 13.75 | BF3: 14.00 | BG3: 14.25 | BH3: 14.50 | BI3: 14.75 | BJ3: 15.00 | BK3: 15.25 | BL3: 15.50 | BM3: 15.75 | BN3: 16.00 | BO3: 16.25 | BP3: 16.50 | BQ3: 16.75 | BR3: 17.00 | BS3: 17.25 | BT3: =BS3+0.25 -> 17.50 | BU3: 17.75 | BV3: 18.00 | BW3: 18.25 | BX3: 18.50 | BY3: 18.75 | BZ3: 19.00 | CA3: 19.25 | CB3: 19.50 | CC3: 19.75 | CD3: 20.00 | CE3: 20.25 | CF3: 20.50 | CG3: 20.75 | CH3: 21.00 | CI3: 21.25 | CJ3: 21.50 | CK3: 21.75 | CL3: 22.00 | CM3: 22.25 | CN3: 22.50 | CO3: 22.75 | CP3: 23.00 | CQ3: 23.25 | CR3: 23.50 | CS3: 23.75 | CT3: 24.00 | CU3: 24.25 | CV3: 24.50 | CW3: 24.75 | CX3: Total (MG)
A4: 15. Flows conveyed to WWTP | B4: a. | C4: Combined sewage diverted to WWTP (MG). Sum of Line 14f volumes from each CSO. | D4: 15a. | F4: ='CSO CALCULATIONS'!I181 -> 0.000 | G4: ='CSO CALCULATIONS'!J181 -> 0.000 | H4: ='CSO CALCULATIONS'!K181 -> 0.000 | I4: ='CSO CALCULATIONS'!L181 -> 0.000 | J4: ='CSO CALCULATIONS'!M181 -> 0.000 | K4: ='CSO CALCULATIONS'!N181 -> 0.000 | L4: ='CSO CALCULATIONS'!O181 -> 0.000 | M4: ='CSO CALCULATIONS'!P181 -> 0.000 | N4: ='CSO CALCULATIONS'!Q181 -> 0.000 | O4: ='CSO CALCULATIONS'!R181 -> 0.000 | P4: ='CSO CALCULATIONS'!S181 -> 0.000 | Q4: ='CSO CALCULATIONS'!T181 -> 0.000 | R4: ='CSO CALCULATIONS'!U181 -> 0.000 | S4: ='CSO CALCULATIONS'!V181 -> 0.000 | T4: ='CSO CALCULATIONS'!W181 -> 0.000 | U4: ='CSO CALCULATIONS'!X181 -> 0.000 | V4: ='CSO CALCULATIONS'!Y181 -> 0.000 | W4: ='CSO CALCULATIONS'!Z181 -> 0.000 | X4: ='CSO CALCULATIONS'!AA181 -> 0.000 | Y4: ='CSO CALCULATIONS'!AB181 -> 0.000 | Z4: ='CSO CALCULATIONS'!AC181 -> 0.000 | AA4: ='CSO CALCULATIONS'!AD181 -> 0.000 | AB4: ='CSO CALCULATIONS'!AE181 -> 0.000 | AC4: ='CSO CALCULATIONS'!AF181 -> 0.000 | AD4: ='CSO CALCULATIONS'!AG181 -> 0.000 | AE4: ='CSO CALCULATIONS'!AH181 -> 0.000 | AF4: ='CSO CALCULATIONS'!AI181 -> 0.000 | AG4: ='CSO CALCULATIONS'!AJ181 -> 0.000 | AH4: ='CSO CALCULATIONS'!AK181 -> 0.000 | AI4: ='CSO CALCULATIONS'!AL181 -> 0.000 | AJ4: ='CSO CALCULATIONS'!AM181 -> 0.000 | AK4: ='CSO CALCULATIONS'!AN181 -> 0.000 | AL4: ='CSO CALCULATIONS'!AO181 -> 0.000 | AM4: ='CSO CALCULATIONS'!AP181 -> 0.000 | AN4: ='CSO CALCULATIONS'!AQ181 -> 0.000 | AO4: ='CSO CALCULATIONS'!AR181 -> 0.000 | AP4: ='CSO CALCULATIONS'!AS181 -> 0.000 | AQ4: ='CSO CALCULATIONS'!AT181 -> 0.000 | AR4: ='CSO CALCULATIONS'!AU181 -> 0.000 | AS4: ='CSO CALCULATIONS'!AV181 -> 0.000 | AT4: ='CSO CALCULATIONS'!AW181 -> 0.000 | AU4: ='CSO CALCULATIONS'!AX181 -> 0.000 | AV4: ='CSO CALCULATIONS'!AY181 -> 0.000 | AW4: ='CSO CALCULATIONS'!AZ181 -> 0.000 | AX4: ='CSO CALCULATIONS'!BA181 -> 0.000 | AY4: ='CSO CALCULATIONS'!BB181 -> 0.000 | AZ4: ='CSO CALCULATIONS'!BC181 -> 0.000 | BA4: ='CSO CALCULATIONS'!BD181 -> 0.000 | BB4: ='CSO CALCULATIONS'!BE181 -> 0.000 | BC4: ='CSO CALCULATIONS'!BF181 -> 0.000 | BD4: ='CSO CALCULATIONS'!BG181 -> 0.000 | BE4: ='CSO CALCULATIONS'!BH181 -> 0.000 | BF4: ='CSO CALCULATIONS'!BI181 -> 0.000 | BG4: ='CSO CALCULATIONS'!BJ181 -> 0.000 | BH4: ='CSO CALCULATIONS'!BK181 -> 0.000 | BI4: ='CSO CALCULATIONS'!BL181 -> 0.000 | BJ4: ='CSO CALCULATIONS'!BM181 -> 0.000 | BK4: ='CSO CALCULATIONS'!BN181 -> 0.000 | BL4: ='CSO CALCULATIONS'!BO181 -> 0.000 | BM4: ='CSO CALCULATIONS'!BP181 -> 0.000 | BN4: ='CSO CALCULATIONS'!BQ181 -> 0.000 | BO4: ='CSO CALCULATIONS'!BR181 -> 0.000 | BP4: ='CSO CALCULATIONS'!BS181 -> 0.000 | BQ4: ='CSO CALCULATIONS'!BT181 -> 0.000 | BR4: ='CSO CALCULATIONS'!BU181 -> 0.000 | BS4: ='CSO CALCULATIONS'!BV181 -> 0.000 | BT4: ='CSO CALCULATIONS'!BW181 -> 0.000 | BU4: ='CSO CALCULATIONS'!BX181 -> 0.000 | BV4: ='CSO CALCULATIONS'!BY181 -> 0.000 | BW4: ='CSO CALCULATIONS'!BZ181 -> 0.000 | BX4: ='CSO CALCULATIONS'!CA181 -> 0.000 | BY4: ='CSO CALCULATIONS'!CB181 -> 0.000 | BZ4: ='CSO CALCULATIONS'!CC181 -> 0.000 | CA4: ='CSO CALCULATIONS'!CD181 -> 0.000 | CB4: ='CSO CALCULATIONS'!CE181 -> 0.000 | CC4: ='CSO CALCULATIONS'!CF181 -> 0.000 | CD4: ='CSO CALCULATIONS'!CG181 -> 0.000 | CE4: ='CSO CALCULATIONS'!CH181 -> 0.000 | CF4: ='CSO CALCULATIONS'!CI181 -> 0.000 | CG4: ='CSO CALCULATIONS'!CJ181 -> 0.000 | CH4: ='CSO CALCULATIONS'!CK181 -> 0.000 | CI4: ='CSO CALCULATIONS'!CL181 -> 0.000 | CJ4: ='CSO CALCULATIONS'!CM181 -> 0.000 | CK4: ='CSO CALCULATIONS'!CN181 -> 0.000 | CL4: ='CSO CALCULATIONS'!CO181 -> 0.000 | CM4: ='CSO CALCULATIONS'!CP181 -> 0.000 | CN4: ='CSO CALCULATIONS'!CQ181 -> 0.000 | CO4: ='CSO CALCULATIONS'!CR181 -> 0.000 | CP4: ='CSO CALCULATIONS'!CS181 -> 0.000 | CQ4: ='CSO CALCULATIONS'!CT181 -> 0.000 | CR4: ='CSO CALCULATIONS'!CU181 -> 0.000 | CS4: ='CSO CALCULATIONS'!CV181 -> 0.000 | CT4: ='CSO CALCULATIONS'!CW181 -> 0.000 | CU4: ='CSO CALCULATIONS'!CX181 -> 0.000 | CV4: ='CSO CALCULATIONS'!CY181 -> 0.000 | CW4: ='CSO CALCULATIONS'!CZ181 -> 0.000 | CX4: =SUM(F4:CW4) -> 0.000
B5: b. | C5: Flow rate of sewage from non-CSO areas (MGD). See instructions. | D5: 15b. | E5: ='5 - CSO VOLUME SUMMARY'!E11 -> 0.00
B6: c. | C6: Flow rate of sewage from satellite communities (MGD). See instructions. | D6: 15c. | E6: ='5 - CSO VOLUME SUMMARY'!E12 -> 0.00
B7: d. | C7: Combined sewage conveyed to WWTP (MG). Sum of Lines 15a, 15b, and 15c. | D7: 15d. | F7: =F4+($E5/(4*24))+($E6/(4*24)) -> 0.000 | G7: =G4+($E5/(4*24))+($E6/(4*24)) -> 0.000 | H7: 0.000 | I7: 0.000 | J7: 0.000 | K7: 0.000 | L7: 0.000 | M7: 0.000 | N7: 0.000 | O7: 0.000 | P7: 0.000 | Q7: 0.000 | R7: 0.000 | S7: 0.000 | T7: 0.000 | U7: 0.000 | V7: 0.000 | W7: 0.000 | X7: 0.000 | Y7: 0.000 | Z7: 0.000 | AA7: 0.000 | AB7: 0.000 | AC7: 0.000 | AD7: 0.000 | AE7: 0.000 | AF7: 0.000 | AG7: 0.000 | AH7: 0.000 | AI7: 0.000 | AJ7: 0.000 | AK7: 0.000 | AL7: 0.000 | AM7: 0.000 | AN7: 0.000 | AO7: 0.000 | AP7: 0.000 | AQ7: 0.000 | AR7: 0.000 | AS7: 0.000 | AT7: 0.000 | AU7: 0.000 | AV7: 0.000 | AW7: 0.000 | AX7: 0.000 | AY7: 0.000 | AZ7: 0.000 | BA7: 0.000 | BB7: 0.000 | BC7: 0.000 | BD7: 0.000 | BE7: 0.000 | BF7: 0.000 | BG7: 0.000 | BH7: 0.000 | BI7: 0.000 | BJ7: 0.000 | BK7: 0.000 | BL7: 0.000 | BM7: 0.000 | BN7: 0.000 | BO7: 0.000 | BP7: 0.000 | BQ7: 0.000 | BR7: 0.000 | BS7: =BS4+($E5/(4*24))+($E6/(4*24)) -> 0.000 | BT7: 0.000 | BU7: 0.000 | BV7: 0.000 | BW7: 0.000 | BX7: 0.000 | BY7: 0.000 | BZ7: 0.000 | CA7: 0.000 | CB7: 0.000 | CC7: 0.000 | CD7: 0.000 | CE7: 0.000 | CF7: 0.000 | CG7: 0.000 | CH7: 0.000 | CI7: 0.000 | CJ7: 0.000 | CK7: 0.000 | CL7: 0.000 | CM7: 0.000 | CN7: 0.000 | CO7: 0.000 | CP7: 0.000 | CQ7: 0.000 | CR7: 0.000 | CS7: 0.000 | CT7: 0.000 | CU7: 0.000 | CV7: 0.000 | CW7: 0.000 | CX7: =SUM(F7:CW7) -> 0.000
A8: 16. Total Overflow Volumes | B8: a. | C8: Total CSO volume at all CSO outfalls (MG). Sum of Line 14b. | D8: 16a. | F8: ='CSO CALCULATIONS'!I91 -> 0.000 | G8: ='CSO CALCULATIONS'!J91 -> 0.000 | H8: ='CSO CALCULATIONS'!K91 -> 0.000 | I8: ='CSO CALCULATIONS'!L91 -> 0.000 | J8: ='CSO CALCULATIONS'!M91 -> 0.000 | K8: ='CSO CALCULATIONS'!N91 -> 0.000 | L8: ='CSO CALCULATIONS'!O91 -> 0.000 | M8: ='CSO CALCULATIONS'!P91 -> 0.000 | N8: ='CSO CALCULATIONS'!Q91 -> 0.000 | O8: ='CSO CALCULATIONS'!R91 -> 0.000 | P8: ='CSO CALCULATIONS'!S91 -> 0.000 | Q8: ='CSO CALCULATIONS'!T91 -> 0.000 | R8: ='CSO CALCULATIONS'!U91 -> 0.000 | S8: ='CSO CALCULATIONS'!V91 -> 0.000 | T8: ='CSO CALCULATIONS'!W91 -> 0.000 | U8: ='CSO CALCULATIONS'!X91 -> 0.000 | V8: ='CSO CALCULATIONS'!Y91 -> 0.000 | W8: ='CSO CALCULATIONS'!Z91 -> 0.000 | X8: ='CSO CALCULATIONS'!AA91 -> 0.000 | Y8: ='CSO CALCULATIONS'!AB91 -> 0.000 | Z8: ='CSO CALCULATIONS'!AC91 -> 0.000 | AA8: ='CSO CALCULATIONS'!AD91 -> 0.000 | AB8: ='CSO CALCULATIONS'!AE91 -> 0.000 | AC8: ='CSO CALCULATIONS'!AF91 -> 0.000 | AD8: ='CSO CALCULATIONS'!AG91 -> 0.000 | AE8: ='CSO CALCULATIONS'!AH91 -> 0.000 | AF8: ='CSO CALCULATIONS'!AI91 -> 0.000 | AG8: ='CSO CALCULATIONS'!AJ91 -> 0.000 | AH8: ='CSO CALCULATIONS'!AK91 -> 0.000 | AI8: ='CSO CALCULATIONS'!AL91 -> 0.000 | AJ8: ='CSO CALCULATIONS'!AM91 -> 0.000 | AK8: ='CSO CALCULATIONS'!AN91 -> 0.000 | AL8: ='CSO CALCULATIONS'!AO91 -> 0.000 | AM8: ='CSO CALCULATIONS'!AP91 -> 0.000 | AN8: ='CSO CALCULATIONS'!AQ91 -> 0.000 | AO8: ='CSO CALCULATIONS'!AR91 -> 0.000 | AP8: ='CSO CALCULATIONS'!AS91 -> 0.000 | AQ8: ='CSO CALCULATIONS'!AT91 -> 0.000 | AR8: ='CSO CALCULATIONS'!AU91 -> 0.000 | AS8: ='CSO CALCULATIONS'!AV91 -> 0.000 | AT8: ='CSO CALCULATIONS'!AW91 -> 0.000 | AU8: ='CSO CALCULATIONS'!AX91 -> 0.000 | AV8: ='CSO CALCULATIONS'!AY91 -> 0.000 | AW8: ='CSO CALCULATIONS'!AZ91 -> 0.000 | AX8: ='CSO CALCULATIONS'!BA91 -> 0.000 | AY8: ='CSO CALCULATIONS'!BB91 -> 0.000 | AZ8: ='CSO CALCULATIONS'!BC91 -> 0.000 | BA8: ='CSO CALCULATIONS'!BD91 -> 0.000 | BB8: ='CSO CALCULATIONS'!BE91 -> 0.000 | BC8: ='CSO CALCULATIONS'!BF91 -> 0.000 | BD8: ='CSO CALCULATIONS'!BG91 -> 0.000 | BE8: ='CSO CALCULATIONS'!BH91 -> 0.000 | BF8: ='CSO CALCULATIONS'!BI91 -> 0.000 | BG8: ='CSO CALCULATIONS'!BJ91 -> 0.000 | BH8: ='CSO CALCULATIONS'!BK91 -> 0.000 | BI8: ='CSO CALCULATIONS'!BL91 -> 0.000 | BJ8: ='CSO CALCULATIONS'!BM91 -> 0.000 | BK8: ='CSO CALCULATIONS'!BN91 -> 0.000 | BL8: ='CSO CALCULATIONS'!BO91 -> 0.000 | BM8: ='CSO CALCULATIONS'!BP91 -> 0.000 | BN8: ='CSO CALCULATIONS'!BQ91 -> 0.000 | BO8: ='CSO CALCULATIONS'!BR91 -> 0.000 | BP8: ='CSO CALCULATIONS'!BS91 -> 0.000 | BQ8: ='CSO CALCULATIONS'!BT91 -> 0.000 | BR8: ='CSO CALCULATIONS'!BU91 -> 0.000 | BS8: ='CSO CALCULATIONS'!BV91 -> 0.000 | BT8: ='CSO CALCULATIONS'!BW91 -> 0.000 | BU8: ='CSO CALCULATIONS'!BX91 -> 0.000 | BV8: ='CSO CALCULATIONS'!BY91 -> 0.000 | BW8: ='CSO CALCULATIONS'!BZ91 -> 0.000 | BX8: ='CSO CALCULATIONS'!CA91 -> 0.000 | BY8: ='CSO CALCULATIONS'!CB91 -> 0.000 | BZ8: ='CSO CALCULATIONS'!CC91 -> 0.000 | CA8: ='CSO CALCULATIONS'!CD91 -> 0.000 | CB8: ='CSO CALCULATIONS'!CE91 -> 0.000 | CC8: ='CSO CALCULATIONS'!CF91 -> 0.000 | CD8: ='CSO CALCULATIONS'!CG91 -> 0.000 | CE8: ='CSO CALCULATIONS'!CH91 -> 0.000 | CF8: ='CSO CALCULATIONS'!CI91 -> 0.000 | CG8: ='CSO CALCULATIONS'!CJ91 -> 0.000 | CH8: ='CSO CALCULATIONS'!CK91 -> 0.000 | CI8: ='CSO CALCULATIONS'!CL91 -> 0.000 | CJ8: ='CSO CALCULATIONS'!CM91 -> 0.000 | CK8: ='CSO CALCULATIONS'!CN91 -> 0.000 | CL8: ='CSO CALCULATIONS'!CO91 -> 0.000 | CM8: ='CSO CALCULATIONS'!CP91 -> 0.000 | CN8: ='CSO CALCULATIONS'!CQ91 -> 0.000 | CO8: ='CSO CALCULATIONS'!CR91 -> 0.000 | CP8: ='CSO CALCULATIONS'!CS91 -> 0.000 | CQ8: ='CSO CALCULATIONS'!CT91 -> 0.000 | CR8: ='CSO CALCULATIONS'!CU91 -> 0.000 | CS8: ='CSO CALCULATIONS'!CV91 -> 0.000 | CT8: ='CSO CALCULATIONS'!CW91 -> 0.000 | CU8: ='CSO CALCULATIONS'!CX91 -> 0.000 | CV8: ='CSO CALCULATIONS'!CY91 -> 0.000 | CW8: ='CSO CALCULATIONS'!CZ91 -> 0.000 | CX8: =SUM(F8:CW8) -> 0.000
B9: b. | C9: Total treated CSO volume (MG). Sum of Line 14d. | D9: 16b. | F9: ='CSO CALCULATIONS'!I121 -> 0.000 | G9: ='CSO CALCULATIONS'!J121 -> 0.000 | H9: ='CSO CALCULATIONS'!K121 -> 0.000 | I9: ='CSO CALCULATIONS'!L121 -> 0.000 | J9: ='CSO CALCULATIONS'!M121 -> 0.000 | K9: ='CSO CALCULATIONS'!N121 -> 0.000 | L9: ='CSO CALCULATIONS'!O121 -> 0.000 | M9: ='CSO CALCULATIONS'!P121 -> 0.000 | N9: ='CSO CALCULATIONS'!Q121 -> 0.000 | O9: ='CSO CALCULATIONS'!R121 -> 0.000 | P9: ='CSO CALCULATIONS'!S121 -> 0.000 | Q9: ='CSO CALCULATIONS'!T121 -> 0.000 | R9: ='CSO CALCULATIONS'!U121 -> 0.000 | S9: ='CSO CALCULATIONS'!V121 -> 0.000 | T9: ='CSO CALCULATIONS'!W121 -> 0.000 | U9: ='CSO CALCULATIONS'!X121 -> 0.000 | V9: ='CSO CALCULATIONS'!Y121 -> 0.000 | W9: ='CSO CALCULATIONS'!Z121 -> 0.000 | X9: ='CSO CALCULATIONS'!AA121 -> 0.000 | Y9: ='CSO CALCULATIONS'!AB121 -> 0.000 | Z9: ='CSO CALCULATIONS'!AC121 -> 0.000 | AA9: ='CSO CALCULATIONS'!AD121 -> 0.000 | AB9: ='CSO CALCULATIONS'!AE121 -> 0.000 | AC9: ='CSO CALCULATIONS'!AF121 -> 0.000 | AD9: ='CSO CALCULATIONS'!AG121 -> 0.000 | AE9: ='CSO CALCULATIONS'!AH121 -> 0.000 | AF9: ='CSO CALCULATIONS'!AI121 -> 0.000 | AG9: ='CSO CALCULATIONS'!AJ121 -> 0.000 | AH9: ='CSO CALCULATIONS'!AK121 -> 0.000 | AI9: ='CSO CALCULATIONS'!AL121 -> 0.000 | AJ9: ='CSO CALCULATIONS'!AM121 -> 0.000 | AK9: ='CSO CALCULATIONS'!AN121 -> 0.000 | AL9: ='CSO CALCULATIONS'!AO121 -> 0.000 | AM9: ='CSO CALCULATIONS'!AP121 -> 0.000 | AN9: ='CSO CALCULATIONS'!AQ121 -> 0.000 | AO9: ='CSO CALCULATIONS'!AR121 -> 0.000 | AP9: ='CSO CALCULATIONS'!AS121 -> 0.000 | AQ9: ='CSO CALCULATIONS'!AT121 -> 0.000 | AR9: ='CSO CALCULATIONS'!AU121 -> 0.000 | AS9: ='CSO CALCULATIONS'!AV121 -> 0.000 | AT9: ='CSO CALCULATIONS'!AW121 -> 0.000 | AU9: ='CSO CALCULATIONS'!AX121 -> 0.000 | AV9: ='CSO CALCULATIONS'!AY121 -> 0.000 | AW9: ='CSO CALCULATIONS'!AZ121 -> 0.000 | AX9: ='CSO CALCULATIONS'!BA121 -> 0.000 | AY9: ='CSO CALCULATIONS'!BB121 -> 0.000 | AZ9: ='CSO CALCULATIONS'!BC121 -> 0.000 | BA9: ='CSO CALCULATIONS'!BD121 -> 0.000 | BB9: ='CSO CALCULATIONS'!BE121 -> 0.000 | BC9: ='CSO CALCULATIONS'!BF121 -> 0.000 | BD9: ='CSO CALCULATIONS'!BG121 -> 0.000 | BE9: ='CSO CALCULATIONS'!BH121 -> 0.000 | BF9: ='CSO CALCULATIONS'!BI121 -> 0.000 | BG9: ='CSO CALCULATIONS'!BJ121 -> 0.000 | BH9: ='CSO CALCULATIONS'!BK121 -> 0.000 | BI9: ='CSO CALCULATIONS'!BL121 -> 0.000 | BJ9: ='CSO CALCULATIONS'!BM121 -> 0.000 | BK9: ='CSO CALCULATIONS'!BN121 -> 0.000 | BL9: ='CSO CALCULATIONS'!BO121 -> 0.000 | BM9: ='CSO CALCULATIONS'!BP121 -> 0.000 | BN9: ='CSO CALCULATIONS'!BQ121 -> 0.000 | BO9: ='CSO CALCULATIONS'!BR121 -> 0.000 | BP9: ='CSO CALCULATIONS'!BS121 -> 0.000 | BQ9: ='CSO CALCULATIONS'!BT121 -> 0.000 | BR9: ='CSO CALCULATIONS'!BU121 -> 0.000 | BS9: ='CSO CALCULATIONS'!BV121 -> 0.000 | BT9: ='CSO CALCULATIONS'!BW121 -> 0.000 | BU9: ='CSO CALCULATIONS'!BX121 -> 0.000 | BV9: ='CSO CALCULATIONS'!BY121 -> 0.000 | BW9: ='CSO CALCULATIONS'!BZ121 -> 0.000 | BX9: ='CSO CALCULATIONS'!CA121 -> 0.000 | BY9: ='CSO CALCULATIONS'!CB121 -> 0.000 | BZ9: ='CSO CALCULATIONS'!CC121 -> 0.000 | CA9: ='CSO CALCULATIONS'!CD121 -> 0.000 | CB9: ='CSO CALCULATIONS'!CE121 -> 0.000 | CC9: ='CSO CALCULATIONS'!CF121 -> 0.000 | CD9: ='CSO CALCULATIONS'!CG121 -> 0.000 | CE9: ='CSO CALCULATIONS'!CH121 -> 0.000 | CF9: ='CSO CALCULATIONS'!CI121 -> 0.000 | CG9: ='CSO CALCULATIONS'!CJ121 -> 0.000 | CH9: ='CSO CALCULATIONS'!CK121 -> 0.000 | CI9: ='CSO CALCULATIONS'!CL121 -> 0.000 | CJ9: ='CSO CALCULATIONS'!CM121 -> 0.000 | CK9: ='CSO CALCULATIONS'!CN121 -> 0.000 | CL9: ='CSO CALCULATIONS'!CO121 -> 0.000 | CM9: ='CSO CALCULATIONS'!CP121 -> 0.000 | CN9: ='CSO CALCULATIONS'!CQ121 -> 0.000 | CO9: ='CSO CALCULATIONS'!CR121 -> 0.000 | CP9: ='CSO CALCULATIONS'!CS121 -> 0.000 | CQ9: ='CSO CALCULATIONS'!CT121 -> 0.000 | CR9: ='CSO CALCULATIONS'!CU121 -> 0.000 | CS9: ='CSO CALCULATIONS'!CV121 -> 0.000 | CT9: ='CSO CALCULATIONS'!CW121 -> 0.000 | CU9: ='CSO CALCULATIONS'!CX121 -> 0.000 | CV9: ='CSO CALCULATIONS'!CY121 -> 0.000 | CW9: ='CSO CALCULATIONS'!CZ121 -> 0.000 | CX9: 0.000
B10: c. | C10: Total untreated CSO volume (MG). Sum of Line 14e. | D10: 16c. | F10: ='CSO CALCULATIONS'!I151 -> 0.000 | G10: ='CSO CALCULATIONS'!J151 -> 0.000 | H10: ='CSO CALCULATIONS'!K151 -> 0.000 | I10: ='CSO CALCULATIONS'!L151 -> 0.000 | J10: ='CSO CALCULATIONS'!M151 -> 0.000 | K10: ='CSO CALCULATIONS'!N151 -> 0.000 | L10: ='CSO CALCULATIONS'!O151 -> 0.000 | M10: ='CSO CALCULATIONS'!P151 -> 0.000 | N10: ='CSO CALCULATIONS'!Q151 -> 0.000 | O10: ='CSO CALCULATIONS'!R151 -> 0.000 | P10: ='CSO CALCULATIONS'!S151 -> 0.000 | Q10: ='CSO CALCULATIONS'!T151 -> 0.000 | R10: ='CSO CALCULATIONS'!U151 -> 0.000 | S10: ='CSO CALCULATIONS'!V151 -> 0.000 | T10: ='CSO CALCULATIONS'!W151 -> 0.000 | U10: ='CSO CALCULATIONS'!X151 -> 0.000 | V10: ='CSO CALCULATIONS'!Y151 -> 0.000 | W10: ='CSO CALCULATIONS'!Z151 -> 0.000 | X10: ='CSO CALCULATIONS'!AA151 -> 0.000 | Y10: ='CSO CALCULATIONS'!AB151 -> 0.000 | Z10: ='CSO CALCULATIONS'!AC151 -> 0.000 | AA10: ='CSO CALCULATIONS'!AD151 -> 0.000 | AB10: ='CSO CALCULATIONS'!AE151 -> 0.000 | AC10: ='CSO CALCULATIONS'!AF151 -> 0.000 | AD10: ='CSO CALCULATIONS'!AG151 -> 0.000 | AE10: ='CSO CALCULATIONS'!AH151 -> 0.000 | AF10: ='CSO CALCULATIONS'!AI151 -> 0.000 | AG10: ='CSO CALCULATIONS'!AJ151 -> 0.000 | AH10: ='CSO CALCULATIONS'!AK151 -> 0.000 | AI10: ='CSO CALCULATIONS'!AL151 -> 0.000 | AJ10: ='CSO CALCULATIONS'!AM151 -> 0.000 | AK10: ='CSO CALCULATIONS'!AN151 -> 0.000 | AL10: ='CSO CALCULATIONS'!AO151 -> 0.000 | AM10: ='CSO CALCULATIONS'!AP151 -> 0.000 | AN10: ='CSO CALCULATIONS'!AQ151 -> 0.000 | AO10: ='CSO CALCULATIONS'!AR151 -> 0.000 | AP10: ='CSO CALCULATIONS'!AS151 -> 0.000 | AQ10: ='CSO CALCULATIONS'!AT151 -> 0.000 | AR10: ='CSO CALCULATIONS'!AU151 -> 0.000 | AS10: ='CSO CALCULATIONS'!AV151 -> 0.000 | AT10: ='CSO CALCULATIONS'!AW151 -> 0.000 | AU10: ='CSO CALCULATIONS'!AX151 -> 0.000 | AV10: ='CSO CALCULATIONS'!AY151 -> 0.000 | AW10: ='CSO CALCULATIONS'!AZ151 -> 0.000 | AX10: ='CSO CALCULATIONS'!BA151 -> 0.000 | AY10: ='CSO CALCULATIONS'!BB151 -> 0.000 | AZ10: ='CSO CALCULATIONS'!BC151 -> 0.000 | BA10: ='CSO CALCULATIONS'!BD151 -> 0.000 | BB10: ='CSO CALCULATIONS'!BE151 -> 0.000 | BC10: ='CSO CALCULATIONS'!BF151 -> 0.000 | BD10: ='CSO CALCULATIONS'!BG151 -> 0.000 | BE10: ='CSO CALCULATIONS'!BH151 -> 0.000 | BF10: ='CSO CALCULATIONS'!BI151 -> 0.000 | BG10: ='CSO CALCULATIONS'!BJ151 -> 0.000 | BH10: ='CSO CALCULATIONS'!BK151 -> 0.000 | BI10: ='CSO CALCULATIONS'!BL151 -> 0.000 | BJ10: ='CSO CALCULATIONS'!BM151 -> 0.000 | BK10: ='CSO CALCULATIONS'!BN151 -> 0.000 | BL10: ='CSO CALCULATIONS'!BO151 -> 0.000 | BM10: ='CSO CALCULATIONS'!BP151 -> 0.000 | BN10: ='CSO CALCULATIONS'!BQ151 -> 0.000 | BO10: ='CSO CALCULATIONS'!BR151 -> 0.000 | BP10: ='CSO CALCULATIONS'!BS151 -> 0.000 | BQ10: ='CSO CALCULATIONS'!BT151 -> 0.000 | BR10: ='CSO CALCULATIONS'!BU151 -> 0.000 | BS10: ='CSO CALCULATIONS'!BV151 -> 0.000 | BT10: ='CSO CALCULATIONS'!BW151 -> 0.000 | BU10: ='CSO CALCULATIONS'!BX151 -> 0.000 | BV10: ='CSO CALCULATIONS'!BY151 -> 0.000 | BW10: ='CSO CALCULATIONS'!BZ151 -> 0.000 | BX10: ='CSO CALCULATIONS'!CA151 -> 0.000 | BY10: ='CSO CALCULATIONS'!CB151 -> 0.000 | BZ10: ='CSO CALCULATIONS'!CC151 -> 0.000 | CA10: ='CSO CALCULATIONS'!CD151 -> 0.000 | CB10: ='CSO CALCULATIONS'!CE151 -> 0.000 | CC10: ='CSO CALCULATIONS'!CF151 -> 0.000 | CD10: ='CSO CALCULATIONS'!CG151 -> 0.000 | CE10: ='CSO CALCULATIONS'!CH151 -> 0.000 | CF10: ='CSO CALCULATIONS'!CI151 -> 0.000 | CG10: ='CSO CALCULATIONS'!CJ151 -> 0.000 | CH10: ='CSO CALCULATIONS'!CK151 -> 0.000 | CI10: ='CSO CALCULATIONS'!CL151 -> 0.000 | CJ10: ='CSO CALCULATIONS'!CM151 -> 0.000 | CK10: ='CSO CALCULATIONS'!CN151 -> 0.000 | CL10: ='CSO CALCULATIONS'!CO151 -> 0.000 | CM10: ='CSO CALCULATIONS'!CP151 -> 0.000 | CN10: ='CSO CALCULATIONS'!CQ151 -> 0.000 | CO10: ='CSO CALCULATIONS'!CR151 -> 0.000 | CP10: ='CSO CALCULATIONS'!CS151 -> 0.000 | CQ10: ='CSO CALCULATIONS'!CT151 -> 0.000 | CR10: ='CSO CALCULATIONS'!CU151 -> 0.000 | CS10: ='CSO CALCULATIONS'!CV151 -> 0.000 | CT10: ='CSO CALCULATIONS'!CW151 -> 0.000 | CU10: ='CSO CALCULATIONS'!CX151 -> 0.000 | CV10: ='CSO CALCULATIONS'!CY151 -> 0.000 | CW10: ='CSO CALCULATIONS'!CZ151 -> 0.000 | CX10: 0.000
